Workbook

Sheet Synthèse
K1: N° | L1: P1 | M1: P2 | N1: P3 | O1: P4 | P1: P5 | Q1: P6 | R1: PK | S1: Px | T1: LS | U1: SF | V1: BIN | W1: Total | X1: vB% | Y1: b% | Z1: N° | AA1: RH | AB1: RgRH | AC1: FHC | AD1: IdBF | AE1: FHC | AF1: Priorité | AG1: > 4 | AH1: NbC | AI1: N° | AJ1: Vgap | AM1: GapForm | AN1: Ch R | AO1: MW | AP1: DC | AQ1: avDC | AR1: avavDC | AS1: PW2 | AT1: BO | AU1: N° | AV1: Cote / 1 | AW1: % cote | BE1: Manque | BF1: N° | BG1: 1 | BH1: 2 | BI1: 3 | BJ1: 4 | BK1: 5 | BL1: 0 | BR1: Correspondances FHC | BW1: GapForm
A2: Bin | B2: 0 | C2: 1 | D2: 2 | E2: 3 | F2: 4 | G2: 5 | I2: =IF(L2="","",IF(AND(COUNTIF(L2:Q2,1)=0,COUNT(L2:Q2)<6),1,0)) -> 0 | K2: =IF(Musique!D2<>"",Musique!A2,"") -> 1 | L2: =IF(Musique!F2="","",Musique!F2) -> 4 | M2: =IF(Musique!G2="","",Musique!G2) -> 0 | N2: =IF(Musique!H2="","",Musique!H2) -> 4 | O2: =IF(Musique!I2="","",Musique!I2) -> 0 | P2: =IF(Musique!J2="","",Musique!J2) -> 4 | Q2: =IF(Musique!K2="","",Musique!K2) -> 2 | R2: =IF(L2="","",IF(I2=1,COUNT(L2:Q2)+1,IFERROR(MATCH(1,L2:Q2,0)-1,6))) -> 6 | S2: =IF(R2<>"",IF(R2<6,"Pi","Ps"),"") -> Ps | T2: =IF(Musique!D2="","",100+COUNTIF(B26:G26,"<7")*7-SUMIF(B26:G26,"<7")) -> 114 | U2: =IF(Musique!D2<>"",I49,"") -> 3 | V2: =IF(L2<>"",SUMPRODUCT((COUNTIF(L2:Q2,{0,1,2,3,4,5})=0)*{10,1,2,3,4,5}),"") -> 9 | W2: =IF(Musique!D2<>"",SUM(T2:V2),"") -> 126 | X2: =IF(L2<>"",1-SUMPRODUCT((COUNTIF(L2:Q2,{1,2,3,4,5,0})=0)*{10,5,4,3,2,1})/26,"") -> 0.3846153846 | Y2: =IF(L2<>"",1-SUMPRODUCT((COUNTIF(L2:Q2,{1,2,3,4,5,0})=0)*{1,2,3,4,5,10})/26,"") -> 0.6538461538 | Z2: =K2 -> 1 | AA2: =IF(L2="","",IF(R2=6,(H26*10)+AS2,(H26*10)+I26)) -> 40 | AB2: =IF(S2<>"",COUNTIFS(Px,S2)-COUNTIFS(Px,S2,$AA$2:$AA$21,"<="&AA2)+COUNTIFS($S$2:S2,S2,$AA$2:AA2,AA2),"") -> 1 | AC2: =IFERROR(BM2,"") -> ODE_3 | AD2: =IF(BF2<>"",COUNTIF($AC$2:$AC$21,AC2),"") -> 3 | AE2: =IFERROR(BN2,"") -> OUTSIDER DÉGRADÉ | AF2: =IF(K2="","",IF(BO2=0,"",BO2)) ->  | AG2: =IF(Musique!D2="","",COUNTIF(L2:Q2,">4")+COUNTIF(L2:Q2,"=0")) -> 2 | AH2: =Musique!R2 -> 6 | AI2: =K2 -> 1 | AJ2: =IF(K2<>"",(COUNTIF(L2:Q2,">4")+COUNTIF(L2:Q2,"=0")&Musique!R2),"") -> 26 | AK2: =IF(K2<>"",VALUE(AJ2),"") -> 26 | AL2: =IF(AI2<>"",INDEX($B$119:$C$125,MATCH(VALUE(AG2),$B$119:$B$125,0),2),"") -> Très bon_3 | AM2: =IF(K2="","",IF(BP2=0,"",BP2)) -> 102 | AN2: =IF(COUNTIF($R$2:$R$21,R2)=1,K2,"") ->  | AO2: =IF(K2="","",SUM(B97:G97)-AVERAGE(B97:G97)) -> 28.33333333 | AP2: =IF(L2=1,9,IF(L2=2,6,IF(L2=3,3,""))) ->  | AQ2: =IF(M2=1,6,IF(M2=2,4,IF(M2=3,2,""))) ->  | AR2: =IF(N2=1,3,IF(N2=2,2,IF(N2=3,1,""))) ->  | AS2: =SUM(AP2:AR2) -> 0 | AT2: =IF(K2="","",IF(COUNTIF(L2:Q2,"<4")-COUNTIF(L2:Q2,"=0")>=4,"FAV","OUT")) -> OUT | AU2: =K2 -> 1 | AW2: =IF(AV2<>"",1/(AV2+1),"") ->  | AZ2: DC | BA2: =BA8 & IF(BA8<>"","." & BA9,BA9) & IF(BA9<>"","." & BA10,BA10) & IF(BA10<>"","." & BA11,BA11) & IF(BA11<>"","." & BA12,BA12) & IF(BA12<>"","." & BA13,BA13) & IF(BA13<>"","." & BA14,BA14) -> 66666.2.111.0 | BE2: =BG2&BH2&BI2&BJ2&BK2&BL2 -> 135 | BF2: =K2 -> 1 | BG2: =IF(BF2<>"",IF(C3=0,1,""),"") -> 1 | BH2: =IF(BF2<>"",IF(D3=0,2,""),"") ->  | BI2: =IF(BF2<>"",IF(E3=0,3,""),"") -> 3 | BJ2: =IF(BF2<>"",IF(F3=0,4,""),"") ->  | BK2: =IF(BF2<>"",IF(G3=0,5,""),"") -> 5 | BL2: =IF(BF2<>"",IF(B3=0,0,""),"") ->  | BM2: =IF(BF2<>"",INDEX($BR$2:$BV$64,MATCH(VALUE(BE2),$BR$2:$BR$64,0),3),"") -> ODE_3 | BN2: =IF(BF2<>"",INDEX($BR$2:$BV$64,MATCH(VALUE(BE2),$BR$2:$BR$64,0),4),"") -> OUTSIDER DÉGRADÉ | BO2: =IF(BF2<>"",INDEX($BR$2:$BV$64,MATCH(VALUE(BE2),$BR$2:$BR$64,0),5),"") -> 0 | BP2: =IF(BF2<>"",INDEX($BR$2:$BW$64,MATCH(VALUE(BE2),$BR$2:$BR$64,0),6),"") -> 102 | BR2: 0 | BS2: 0 | BT2: FBS | BU2: CAS SPÉCIAL | BV2: CAS SPÉCIAL | BW2: 17
A3: 1 | B3: =IF(Musique!D2<>"",COUNTIF(L2:Q2,$B$2),"") -> 2 | C3: =IF(Musique!D2<>"",COUNTIF(L2:Q2,$C$2),"") -> 0 | D3: =IF(Musique!D2<>"",COUNTIF(L2:Q2,$D$2),"") -> 1 | E3: =IF(Musique!D2<>"",COUNTIF(L2:Q2,$E$2),"") -> 0 | F3: =IF(Musique!D2<>"",COUNTIF(L2:Q2,$F$2),"") -> 3 | G3: =IF(Musique!D2<>"",COUNTIF(L2:Q2,$G$2),"") -> 0 | I3: =IF(L3="","",IF(AND(COUNTIF(L3:Q3,1)=0,COUNT(L3:Q3)<6),1,0)) -> 0 | K3: =IF(Musique!D3<>"",Musique!A3,"") -> 2 | L3: =IF(Musique!F3="","",Musique!F3) -> 0 | M3: =IF(Musique!G3="","",Musique!G3) -> 1 | N3: =IF(Musique!H3="","",Musique!H3) -> 9 | O3: =IF(Musique!I3="","",Musique!I3) -> 7 | P3: =IF(Musique!J3="","",Musique!J3) -> 3 | Q3: =IF(Musique!K3="","",Musique!K3) -> 3 | R3: =IF(L3="","",IF(I3=1,COUNT(L3:Q3)+1,IFERROR(MATCH(1,L3:Q3,0)-1,6))) -> 1 | S3: Pi | T3: =IF(Musique!D3="","",100+COUNTIF(B27:G27,"<7")*7-SUMIF(B27:G27,"<7")) -> 114 | U3: =IF(Musique!D3<>"",I50,"") -> 7 | V3: =IF(L3<>"",SUMPRODUCT((COUNTIF(L3:Q3,{0,1,2,3,4,5})=0)*{10,1,2,3,4,5}),"") -> 11 | W3: =IF(Musique!D3<>"",SUM(T3:V3),"") -> 132 | X3: =IF(L3<>"",1-SUMPRODUCT((COUNTIF(L3:Q3,{1,2,3,4,5,0})=0)*{10,5,4,3,2,1})/26,"") -> 0.6153846154 | Y3: =IF(L3<>"",1-SUMPRODUCT((COUNTIF(L3:Q3,{1,2,3,4,5,0})=0)*{1,2,3,4,5,10})/26,"") -> 0.5769230769 | Z3: 2 | AA3: =IF(L3="","",IF(R3=6,(H27*10)+AS3,(H27*10)+I27)) -> 31 | AB3: =IF(S3<>"",COUNTIFS(Px,S3)-COUNTIFS(Px,S3,$AA$2:$AA$21,"<="&AA3)+COUNTIFS($S$2:S3,S3,$AA$2:AA3,AA3),"") -> 2 | AC3: =IFERROR(BM3,"") -> FOF_2 | AD3: 2 | AE3: =IFERROR(BN3,"") -> FAVORI SUR OUT OF FORM | AF3: MÉDIUM | AG3: =IF(Musique!D3="","",COUNTIF(L3:Q3,">4")+COUNTIF(L3:Q3,"=0")) -> 3 | AH3: =Musique!R3 -> 6 | AI3: 2 | AJ3: =IF(K3<>"",(COUNTIF(L3:Q3,">4")+COUNTIF(L3:Q3,"=0")&Musique!R3),"") -> 36 | AK3: 36 | AL3: Semi-tocard_1 | AM3: =IF(K3="","",IF(BP3=0,"",BP3)) -> 153 | AO3: 27.5 | AQ3: 6 | AS3: =SUM(AP3:AR3) -> 6 | AT3: OUT | AU3: 2 | AW3: =IF(AV3<>"",1/(AV3+1),"") ->  | AZ3: Pi | BA3: =IF($S$2="Pi",$K$2 & " - ","") & IF($S$3="Pi",$K$3 & " - ","") & IF($S$4="Pi",$K$4 & " - ","") & IF($S$5="Pi",$K$5 & " - ","") & IF($S$6="Pi",$K$6 & " - ","") & IF($S$7="Pi",$K$7 & " - ","") & IF($S$8="Pi",$K$8 & " - ","") & IF($S$9="Pi",$K$9 & " - ","") & IF($S$10="Pi",$K$10 & " - ","") & IF($S$11="Pi",$K$11 & " - ","") & IF($S$12="Pi",$K$12 & " - ","") & IF($S$13="Pi",$K$13 & " - ","") & IF($S$14="Pi",$K$14 & " - ","") & IF($S$15="Pi",$K$15 & " - ","") & IF($S$16="Pi",$K$16 & " - ","") & IF($S$17="Pi",$K$17 & " - ","") & IF($S$18="Pi",$K$18 & " - ","") & IF($S$19="Pi",$K$19 & " - ","") & IF($S$20="Pi",$K$20 & " - ","") & IF($S$21="Pi",$K$21 & " - ","") -> 2 - 5 - 7 - 8 - 9 - | BE3: =BG3&BH3&BI3&BJ3&BK3&BL3 -> 245 | BF3: 2 | BH3: 2 | BJ3: 4 | BK3: 5 | BM3: FOF_2 | BN3: FAVORI SUR OUT OF FORM | BO3: MÉDIUM | BP3: =IF(BF3<>"",INDEX($BR$2:$BW$64,MATCH(VALUE(BE3),$BR$2:$BR$64,0),6),"") -> 153 | BR3: 1 | BS3: 1 | BT3: OFB_2 | BU3: OUTSIDER FAVORIS | BV3: BANQUIER | BW3: 31
A4: 2 | B4: =IF(Musique!D3<>"",COUNTIF(L3:Q3,$B$2),"") -> 1 | C4: =IF(Musique!D3<>"",COUNTIF(L3:Q3,$C$2),"") -> 1 | D4: =IF(Musique!D3<>"",COUNTIF(L3:Q3,$D$2),"") -> 0 | E4: =IF(Musique!D3<>"",COUNTIF(L3:Q3,$E$2),"") -> 2 | F4: =IF(Musique!D3<>"",COUNTIF(L3:Q3,$F$2),"") -> 0 | G4: =IF(Musique!D3<>"",COUNTIF(L3:Q3,$G$2),"") -> 0 | I4: 0 | K4: =IF(Musique!D4<>"",Musique!A4,"") -> 3 | L4: =IF(Musique!F4="","",Musique!F4) -> 7 | M4: =IF(Musique!G4="","",Musique!G4) -> 5 | N4: =IF(Musique!H4="","",Musique!H4) -> 0 | O4: =IF(Musique!I4="","",Musique!I4) -> 3 | P4: =IF(Musique!J4="","",Musique!J4) -> 6 | Q4: =IF(Musique!K4="","",Musique!K4) -> 4 | R4: 6 | S4: Ps | T4: =IF(Musique!D4="","",100+COUNTIF(B28:G28,"<7")*7-SUMIF(B28:G28,"<7")) -> 110 | U4: =IF(Musique!D4<>"",I51,"") -> 0 | V4: =IF(L4<>"",SUMPRODUCT((COUNTIF(L4:Q4,{0,1,2,3,4,5})=0)*{10,1,2,3,4,5}),"") -> 3 | W4: =IF(Musique!D4<>"",SUM(T4:V4),"") -> 113 | X4: =IF(L4<>"",1-SUMPRODUCT((COUNTIF(L4:Q4,{1,2,3,4,5,0})=0)*{10,5,4,3,2,1})/26,"") -> 0.4230769231 | Y4: =IF(L4<>"",1-SUMPRODUCT((COUNTIF(L4:Q4,{1,2,3,4,5,0})=0)*{1,2,3,4,5,10})/26,"") -> 0.8846153846 | Z4: 3 | AA4: =IF(L4="","",IF(R4=6,(H28*10)+AS4,(H28*10)+I28)) -> 30 | AB4: =IF(S4<>"",COUNTIFS(Px,S4)-COUNTIFS(Px,S4,$AA$2:$AA$21,"<="&AA4)+COUNTIFS($S$2:S4,S4,$AA$2:AA4,AA4),"") -> 4 | AC4: OFV | AD4: 1 | AE4: OUTSIDERS FAVORIS | AF4: MÉDIUM | AG4: =IF(Musique!D4="","",COUNTIF(L4:Q4,">4")+COUNTIF(L4:Q4,"=0")) -> 4 | AH4: =Musique!R4 -> 6 | AI4: 3 | AJ4: =IF(K4<>"",(COUNTIF(L4:Q4,">4")+COUNTIF(L4:Q4,"=0")&Musique!R4),"") -> 46 | AK4: 46 | AL4: Semi-tocard_2 | AM4: 58 | AO4: 29.16666667 | AS4: 0 | AT4: OUT | AU4: 3 | AZ4: Ps | BA4: =IF($S$2="Ps",$K$2 & " - ","") & IF($S$3="Ps",$K$3 & " - ","") & IF($S$4="Ps",$K$4 & " - ","") & IF($S$5="Ps",$K$5 & " - ","") & IF($S$6="Ps",$K$6 & " - ","") & IF($S$7="Ps",$K$7 & " - ","") & IF($S$8="Ps",$K$8 & " - ","") & IF($S$9="Ps",$K$9 & " - ","") & IF($S$10="Ps",$K$10 & " - ","") & IF($S$11="Ps",$K$11 & " - ","") & IF($S$12="Ps",$K$12 & " - ","") & IF($S$13="Ps",$K$13 & " - ","") & IF($S$14="Ps",$K$14 & " - ","") & IF($S$15="Ps",$K$15 & " - ","") & IF($S$16="Ps",$K$16 & " - ","") & IF($S$17="Ps",$K$17 & " - ","") & IF($S$18="Ps",$K$18 & " - ","") & IF($S$19="Ps",$K$19 & " - ","") & IF($S$20="Ps",$K$20 & " - ","") & IF($S$21="Ps",$K$21 & " - ","") -> 1 - 3 - 4 - 6 - 10 - | BE4: 12 | BF4: 3 | BG4: 1 | BH4: 2 | BM4: OFV | BN4: OUTSIDERS FAVORIS | BO4: MÉDIUM | BP4: 58 | BR4: 2 | BS4: 2 | BT4: FOF_1 | BU4: FAVORI SUR OUT OF FORM | BV4: MINORANT | BW4: 23
A5: 3 | B5: =IF(Musique!D4<>"",COUNTIF(L4:Q4,$B$2),"") -> 1 | C5: =IF(Musique!D4<>"",COUNTIF(L4:Q4,$C$2),"") -> 0 | D5: =IF(Musique!D4<>"",COUNTIF(L4:Q4,$D$2),"") -> 0 | E5: =IF(Musique!D4<>"",COUNTIF(L4:Q4,$E$2),"") -> 1 | F5: =IF(Musique!D4<>"",COUNTIF(L4:Q4,$F$2),"") -> 1 | G5: =IF(Musique!D4<>"",COUNTIF(L4:Q4,$G$2),"") -> 1 | I5: 0 | K5: =IF(Musique!D5<>"",Musique!A5,"") -> 4 | L5: =IF(Musique!F5="","",Musique!F5) -> 3 | M5: =IF(Musique!G5="","",Musique!G5) -> 2 | N5: =IF(Musique!H5="","",Musique!H5) -> 0 | O5: =IF(Musique!I5="","",Musique!I5) -> 2 | P5: =IF(Musique!J5="","",Musique!J5) -> 0 | Q5: =IF(Musique!K5="","",Musique!K5) -> 6 | R5: 6 | S5: Ps | T5: =IF(Musique!D5="","",100+COUNTIF(B29:G29,"<7")*7-SUMIF(B29:G29,"<7")) -> 115 | U5: =IF(Musique!D5<>"",I52,"") -> 7 | V5: =IF(L5<>"",SUMPRODUCT((COUNTIF(L5:Q5,{0,1,2,3,4,5})=0)*{10,1,2,3,4,5}),"") -> 10 | W5: =IF(Musique!D5<>"",SUM(T5:V5),"") -> 132 | X5: =IF(L5<>"",1-SUMPRODUCT((COUNTIF(L5:Q5,{1,2,3,4,5,0})=0)*{10,5,4,3,2,1})/26,"") -> 0.4230769231 | Y5: =IF(L5<>"",1-SUMPRODUCT((COUNTIF(L5:Q5,{1,2,3,4,5,0})=0)*{1,2,3,4,5,10})/26,"") -> 0.6153846154 | Z5: 4 | AA5: 37 | AB5: =IF(S5<>"",COUNTIFS(Px,S5)-COUNTIFS(Px,S5,$AA$2:$AA$21,"<="&AA5)+COUNTIFS($S$2:S5,S5,$AA$2:AA5,AA5),"") -> 2 | AC5: ODE_3 | AD5: 3 | AE5: OUTSIDER DÉGRADÉ | AG5: =IF(Musique!D5="","",COUNTIF(L5:Q5,">4")+COUNTIF(L5:Q5,"=0")) -> 3 | AH5: =Musique!R5 -> 6 | AI5: 4 | AJ5: =IF(K5<>"",(COUNTIF(L5:Q5,">4")+COUNTIF(L5:Q5,"=0")&Musique!R5),"") -> 36 | AK5: 36 | AL5: Semi-tocard_1 | AM5: 143 | AO5: 27.5 | AP5: 3 | AQ5: 4 | AS5: 7 | AT5: OUT | AU5: 4 | AZ5: Nbre Pi | BA5: =COUNTIF(S2:S21,"Pi") -> 5 | BE5: 145 | BF5: 4 | BG5: 1 | BJ5: 4 | BK5: 5 | BM5: ODE_3 | BN5: OUTSIDER DÉGRADÉ | BO5: 0 | BP5: 143 | BR5: 3 | BS5: 3 | BT5: FAV | BU5: FAVORI | BV5: AUTRE | BW5: 22
A6: 4 | B6: =IF(Musique!D5<>"",COUNTIF(L5:Q5,$B$2),"") -> 2 | C6: =IF(Musique!D5<>"",COUNTIF(L5:Q5,$C$2),"") -> 0 | D6: =IF(Musique!D5<>"",COUNTIF(L5:Q5,$D$2),"") -> 2 | E6: =IF(Musique!D5<>"",COUNTIF(L5:Q5,$E$2),"") -> 1 | F6: =IF(Musique!D5<>"",COUNTIF(L5:Q5,$F$2),"") -> 0 | G6: =IF(Musique!D5<>"",COUNTIF(L5:Q5,$G$2),"") -> 0 | I6: 0 | K6: =IF(Musique!D6<>"",Musique!A6,"") -> 5 | L6: =IF(Musique!F6="","",Musique!F6) -> 1 | M6: =IF(Musique!G6="","",Musique!G6) -> 0 | N6: =IF(Musique!H6="","",Musique!H6) -> 7 | O6: =IF(Musique!I6="","",Musique!I6) -> 0 | P6: =IF(Musique!J6="","",Musique!J6) -> 7 | Q6: =IF(Musique!K6="","",Musique!K6) -> 1 | R6: 0 | S6: Pi | T6: =IF(Musique!D6="","",100+COUNTIF(B30:G30,"<7")*7-SUMIF(B30:G30,"<7")) -> 112 | U6: =IF(Musique!D6<>"",I53,"") -> 7 | V6: =IF(L6<>"",SUMPRODUCT((COUNTIF(L6:Q6,{0,1,2,3,4,5})=0)*{10,1,2,3,4,5}),"") -> 14 | W6: =IF(Musique!D6<>"",SUM(T6:V6),"") -> 133 | X6: =IF(L6<>"",1-SUMPRODUCT((COUNTIF(L6:Q6,{1,2,3,4,5,0})=0)*{10,5,4,3,2,1})/26,"") -> 0.4615384615 | Y6: =IF(L6<>"",1-SUMPRODUCT((COUNTIF(L6:Q6,{1,2,3,4,5,0})=0)*{1,2,3,4,5,10})/26,"") -> 0.4615384615 | Z6: 5 | AA6: 22 | AB6: =IF(S6<>"",COUNTIFS(Px,S6)-COUNTIFS(Px,S6,$AA$2:$AA$21,"<="&AA6)+COUNTIFS($S$2:S6,S6,$AA$2:AA6,AA6),"") -> 4 | AC6: FGO_2 | AD6: 1 | AE6: FAVORI GROS OUTSIDERS | AF6: MÉDIUM | AG6: =IF(Musique!D6="","",COUNTIF(L6:Q6,">4")+COUNTIF(L6:Q6,"=0")) -> 4 | AH6: =Musique!R6 -> 6 | AI6: 5 | AJ6: =IF(K6<>"",(COUNTIF(L6:Q6,">4")+COUNTIF(L6:Q6,"=0")&Musique!R6),"") -> 46 | AK6: 46 | AL6: Semi-tocard_2 | AM6: 224 | AN6: 5 | AO6: 30 | AP6: 9 | AS6: 9 | AT6: OUT | AU6: 5 | AZ6: Nbre Ps | BA6: =COUNTIF(S2:S21,"Ps") -> 5 | BE6: 2345 | BF6: 5 | BH6: 2 | BI6: 3 | BJ6: 4 | BK6: 5 | BM6: FGO_2 | BN6: FAVORI GROS OUTSIDERS | BO6: MÉDIUM | BP6: 224 | BR6: 4 | BS6: 4 | BT6: FAV | BU6: FAVORI | BV6: AUTRE | BW6: 35
A7: 5 | B7: =IF(Musique!D6<>"",COUNTIF(L6:Q6,$B$2),"") -> 2 | C7: =IF(Musique!D6<>"",COUNTIF(L6:Q6,$C$2),"") -> 2 | D7: =IF(Musique!D6<>"",COUNTIF(L6:Q6,$D$2),"") -> 0 | E7: =IF(Musique!D6<>"",COUNTIF(L6:Q6,$E$2),"") -> 0 | F7: =IF(Musique!D6<>"",COUNTIF(L6:Q6,$F$2),"") -> 0 | G7: =IF(Musique!D6<>"",COUNTIF(L6:Q6,$G$2),"") -> 0 | I7: 0 | K7: =IF(Musique!D7<>"",Musique!A7,"") -> 6 | L7: =IF(Musique!F7="","",Musique!F7) -> 2 | M7: =IF(Musique!G7="","",Musique!G7) -> 0 | N7: =IF(Musique!H7="","",Musique!H7) -> 6 | O7: =IF(Musique!I7="","",Musique!I7) -> 0 | P7: =IF(Musique!J7="","",Musique!J7) -> 7 | Q7: =IF(Musique!K7="","",Musique!K7) -> 9 | R7: 6 | S7: Ps | T7: =IF(Musique!D7="","",100+COUNTIF(B31:G31,"<7")*7-SUMIF(B31:G31,"<7")) -> 106 | U7: =IF(Musique!D7<>"",I54,"") -> 5 | V7: =IF(L7<>"",SUMPRODUCT((COUNTIF(L7:Q7,{0,1,2,3,4,5})=0)*{10,1,2,3,4,5}),"") -> 13 | W7: =IF(Musique!D7<>"",SUM(T7:V7),"") -> 124 | X7: =IF(L7<>"",1-SUMPRODUCT((COUNTIF(L7:Q7,{1,2,3,4,5,0})=0)*{10,5,4,3,2,1})/26,"") -> 0.2692307692 | Y7: =IF(L7<>"",1-SUMPRODUCT((COUNTIF(L7:Q7,{1,2,3,4,5,0})=0)*{1,2,3,4,5,10})/26,"") -> 0.5 | Z7: 6 | AA7: 16 | AB7: =IF(S7<>"",COUNTIFS(Px,S7)-COUNTIFS(Px,S7,$AA$2:$AA$21,"<="&AA7)+COUNTIFS($S$2:S7,S7,$AA$2:AA7,AA7),"") -> 5 | AC7: ODE_1 | AD7: 1 | AE7: OUTSIDER DÉGRADÉ | AF7: AUTRE | AG7: =IF(Musique!D7="","",COUNTIF(L7:Q7,">4")+COUNTIF(L7:Q7,"=0")) -> 5 | AH7: =Musique!R7 -> 6 | AI7: 6 | AJ7: =IF(K7<>"",(COUNTIF(L7:Q7,">4")+COUNTIF(L7:Q7,"=0")&Musique!R7),"") -> 56 | AK7: 56 | AL7: Tocard_1 | AM7: 151 | AO7: 36.66666667 | AP7: 6 | AS7: 6 | AT7: OUT | AU7: 6 | BC7: Chevaux | BE7: 1345 | BF7: 6 | BG7: 1 | BI7: 3 | BJ7: 4 | BK7: 5 | BM7: ODE_1 | BN7: OUTSIDER DÉGRADÉ | BO7: AUTRE | BP7: 151 | BR7: 5 | BS7: 5 | BT7: FAV | BU7: FAVORI | BV7: AUTRE | BW7: 44
A8: 6 | B8: =IF(Musique!D7<>"",COUNTIF(L7:Q7,$B$2),"") -> 2 | C8: =IF(Musique!D7<>"",COUNTIF(L7:Q7,$C$2),"") -> 0 | D8: =IF(Musique!D7<>"",COUNTIF(L7:Q7,$D$2),"") -> 1 | E8: =IF(Musique!D7<>"",COUNTIF(L7:Q7,$E$2),"") -> 0 | F8: =IF(Musique!D7<>"",COUNTIF(L7:Q7,$F$2),"") -> 0 | G8: =IF(Musique!D7<>"",COUNTIF(L7:Q7,$G$2),"") -> 0 | I8: 0 | K8: =IF(Musique!D8<>"",Musique!A8,"") -> 7 | L8: =IF(Musique!F8="","",Musique!F8) -> 0 | M8: =IF(Musique!G8="","",Musique!G8) -> 1 | N8: =IF(Musique!H8="","",Musique!H8) -> 0 | O8: =IF(Musique!I8="","",Musique!I8) -> 3 | P8: =IF(Musique!J8="","",Musique!J8) -> 0 | Q8: =IF(Musique!K8="","",Musique!K8) -> 6 | R8: 1 | S8: Pi | T8: =IF(Musique!D8="","",100+COUNTIF(B32:G32,"<7")*7-SUMIF(B32:G32,"<7")) -> 111 | U8: =IF(Musique!D8<>"",I55,"") -> 7 | V8: =IF(L8<>"",SUMPRODUCT((COUNTIF(L8:Q8,{0,1,2,3,4,5})=0)*{10,1,2,3,4,5}),"") -> 11 | W8: =IF(Musique!D8<>"",SUM(T8:V8),"") -> 129 | X8: =IF(L8<>"",1-SUMPRODUCT((COUNTIF(L8:Q8,{1,2,3,4,5,0})=0)*{10,5,4,3,2,1})/26,"") -> 0.6153846154 | Y8: =IF(L8<>"",1-SUMPRODUCT((COUNTIF(L8:Q8,{1,2,3,4,5,0})=0)*{1,2,3,4,5,10})/26,"") -> 0.5769230769 | Z8: 7 | AA8: 21 | AB8: =IF(S8<>"",COUNTIFS(Px,S8)-COUNTIFS(Px,S8,$AA$2:$AA$21,"<="&AA8)+COUNTIFS($S$2:S8,S8,$AA$2:AA8,AA8),"") -> 5 | AC8: FOF_2 | AD8: 2 | AE8: FAVORI SUR OUT OF FORM | AF8: MÉDIUM | AG8: =IF(Musique!D8="","",COUNTIF(L8:Q8,">4")+COUNTIF(L8:Q8,"=0")) -> 4 | AH8: =Musique!R8 -> 6 | AI8: 7 | AJ8: =IF(K8<>"",(COUNTIF(L8:Q8,">4")+COUNTIF(L8:Q8,"=0")&Musique!R8),"") -> 46 | AK8: 46 | AL8: Semi-tocard_2 | AM8: 153 | AO8: 33.33333333 | AQ8: 6 | AS8: 6 | AT8: OUT | AU8: 7 | AY8: PK6 | AZ8: =COUNTIF($R$2:$R$21,6) -> 5 | BA8: =IF($R$2=6,"6","") & IF($R$3=6,"6","") & IF($R$4=6,"6","") & IF($R$5=6,"6","") & IF($R$6=6,"6","") & IF($R$7=6,"6","") & IF($R$8=6,"6","") & IF($R$9=6,"6","") & IF($R$10=6,"6","") & IF($R$11=6,"6","") & IF($R$12=6,"6","") & IF($R$13=6,"6","") & IF($R$14=6,"6","") & IF($R$15=6,"6","") & IF($R$16=6,"6","") & IF($R$17=6,"6","") & IF($R$18=6,"6","") & IF($R$19=6,"6","") & IF($R$20=6,"6","") & IF($R$21=6,"6","") -> 66666 | BC8: =IF($R$2=6,$K$2 & "-","") & IF($R$3=6,$K$3 & "-","") & IF($R$4=6,$K$4 & "-","") & IF($R$5=6,$K$5 & "-","") & IF($R$6=6,$K$6 & "-","") & IF($R$7=6,$K$7 & "-","") & IF($R$8=6,$K$8 & "-","") & IF($R$9=6,$K$9 & "-","") & IF($R$10=6,$K$10 & "-","") & IF($R$11=6,$K$11 & "-","") & IF($R$12=6,$K$12 & "-","") & IF($R$13=6,$K$13 & "-","") & IF($R$14=6,$K$14 & "-","") & IF($R$15=6,$K$15 & "-","") & IF($R$16=6,$K$16 & "-","") & IF($R$17=6,$K$17 & "-","") & IF($R$18=6,$K$18 & "-","") & IF($R$19=6,$K$19 & "-","") & IF($R$20=6,$K$20 & "-","") & IF($R$21=6,$K$21 & "-","") -> 1-3-4-6-10- | BE8: 245 | BF8: 7 | BH8: 2 | BJ8: 4 | BK8: 5 | BM8: FOF_2 | BN8: FAVORI SUR OUT OF FORM | BO8: MÉDIUM | BP8: 153 | BR8: 10 | BS8: 0 1 | BT8: OFV | BU8: OUTSIDERS FAVORIS | BW8: 40
A9: 7 | B9: =IF(Musique!D8<>"",COUNTIF(L8:Q8,$B$2),"") -> 3 | C9: =IF(Musique!D8<>"",COUNTIF(L8:Q8,$C$2),"") -> 1 | D9: =IF(Musique!D8<>"",COUNTIF(L8:Q8,$D$2),"") -> 0 | E9: =IF(Musique!D8<>"",COUNTIF(L8:Q8,$E$2),"") -> 1 | F9: =IF(Musique!D8<>"",COUNTIF(L8:Q8,$F$2),"") -> 0 | G9: =IF(Musique!D8<>"",COUNTIF(L8:Q8,$G$2),"") -> 0 | I9: 0 | K9: =IF(Musique!D9<>"",Musique!A9,"") -> 8 | L9: =IF(Musique!F9="","",Musique!F9) -> 0 | M9: =IF(Musique!G9="","",Musique!G9) -> 0 | N9: =IF(Musique!H9="","",Musique!H9) -> 1 | O9: =IF(Musique!I9="","",Musique!I9) -> 2 | P9: =IF(Musique!J9="","",Musique!J9) -> 0 | Q9: =IF(Musique!K9="","",Musique!K9) -> 4 | R9: 2 | S9: Pi | T9: =IF(Musique!D9="","",100+COUNTIF(B33:G33,"<7")*7-SUMIF(B33:G33,"<7")) -> 114 | U9: =IF(Musique!D9<>"",I56,"") -> 0 | V9: =IF(L9<>"",SUMPRODUCT((COUNTIF(L9:Q9,{0,1,2,3,4,5})=0)*{10,1,2,3,4,5}),"") -> 8 | W9: =IF(Musique!D9<>"",SUM(T9:V9),"") -> 122 | X9: =IF(L9<>"",1-SUMPRODUCT((COUNTIF(L9:Q9,{1,2,3,4,5,0})=0)*{10,5,4,3,2,1})/26,"") -> 0.7692307692 | Y9: =IF(L9<>"",1-SUMPRODUCT((COUNTIF(L9:Q9,{1,2,3,4,5,0})=0)*{1,2,3,4,5,10})/26,"") -> 0.6923076923 | Z9: 8 | AA9: 31 | AB9: =IF(S9<>"",COUNTIFS(Px,S9)-COUNTIFS(Px,S9,$AA$2:$AA$21,"<="&AA9)+COUNTIFS($S$2:S9,S9,$AA$2:AA9,AA9),"") -> 3 | AC9: FAV | AD9: 2 | AE9: FAVORI | AF9: AUTRE | AG9: =IF(Musique!D9="","",COUNTIF(L9:Q9,">4")+COUNTIF(L9:Q9,"=0")) -> 3 | AH9: =Musique!R9 -> 6 | AI9: 8 | AJ9: =IF(K9<>"",(COUNTIF(L9:Q9,">4")+COUNTIF(L9:Q9,"=0")&Musique!R9),"") -> 36 | AK9: 36 | AL9: Semi-tocard_1 | AM9: 135 | AN9: 8 | AO9: 30.83333333 | AR9: 3 | AS9: 3 | AT9: OUT | AU9: 8 | AY9: PK5 | AZ9: =COUNTIF($R$2:$R$21,5) -> 0 | BA9: =IF($R$2=5,"5","") & IF($R$3=5,"5","") & IF($R$4=5,"5","") & IF($R$5=5,"5","") & IF($R$6=5,"5","") & IF($R$7=5,"5","") & IF($R$8=5,"5","") & IF($R$9=5,"5","") & IF($R$10=5,"5","") & IF($R$11=5,"5","") & IF($R$12=5,"5","") & IF($R$13=5,"5","") & IF($R$14=5,"5","") & IF($R$15=5,"5","") & IF($R$16=5,"5","") & IF($R$17=5,"5","") & IF($R$18=5,"5","") & IF($R$19=5,"5","") & IF($R$20=5,"5","") & IF($R$21=5,"5","") ->  | BC9: =IF($R$2=5,$K$2 & "-","") & IF($R$3=5,$K$3 & "-","") & IF($R$4=5,$K$4 & "-","") & IF($R$5=5,$K$5 & "-","") & IF($R$6=5,$K$6 & "-","") & IF($R$7=5,$K$7 & "-","") & IF($R$8=5,$K$8 & "-","") & IF($R$9=5,$K$9 & "-","") & IF($R$10=5,$K$10 & "-","") & IF($R$11=5,$K$11 & "-","") & IF($R$12=5,$K$12 & "-","") & IF($R$13=5,$K$13 & "-","") & IF($R$14=5,$K$14 & "-","") & IF($R$15=5,$K$15 & "-","") & IF($R$16=5,$K$16 & "-","") & IF($R$17=5,$K$17 & "-","") & IF($R$18=5,$K$18 & "-","") & IF($R$19=5,$K$19 & "-","") & IF($R$20=5,$K$20 & "-","") & IF($R$21=5,$K$21 & "-","") ->  | BE9: 35 | BF9: 8 | BI9: 3 | BK9: 5 | BM9: FAV | BN9: FAVORI | BO9: AUTRE | BP9: 135 | BR9: 12 | BS9: 1 2 | BT9: OFV | BU9: OUTSIDERS FAVORIS | BV9: MÉDIUM | BW9: 58
A10: 8 | B10: =IF(Musique!D9<>"",COUNTIF(L9:Q9,$B$2),"") -> 3 | C10: =IF(Musique!D9<>"",COUNTIF(L9:Q9,$C$2),"") -> 1 | D10: =IF(Musique!D9<>"",COUNTIF(L9:Q9,$D$2),"") -> 1 | E10: =IF(Musique!D9<>"",COUNTIF(L9:Q9,$E$2),"") -> 0 | F10: =IF(Musique!D9<>"",COUNTIF(L9:Q9,$F$2),"") -> 1 | G10: =IF(Musique!D9<>"",COUNTIF(L9:Q9,$G$2),"") -> 0 | I10: 0 | K10: =IF(Musique!D10<>"",Musique!A10,"") -> 9 | L10: =IF(Musique!F10="","",Musique!F10) -> 2 | M10: =IF(Musique!G10="","",Musique!G10) -> 1 | N10: =IF(Musique!H10="","",Musique!H10) -> 0 | O10: =IF(Musique!I10="","",Musique!I10) -> 0 | P10: =IF(Musique!J10="","",Musique!J10) -> 3 | Q10: =IF(Musique!K10="","",Musique!K10) -> 1 | R10: 1 | S10: Pi | T10: =IF(Musique!D10="","",100+COUNTIF(B34:G34,"<7")*7-SUMIF(B34:G34,"<7")) -> 121 | U10: =IF(Musique!D10<>"",I57,"") -> 9 | V10: =IF(L10<>"",SUMPRODUCT((COUNTIF(L10:Q10,{0,1,2,3,4,5})=0)*{10,1,2,3,4,5}),"") -> 9 | W10: =IF(Musique!D10<>"",SUM(T10:V10),"") -> 139 | X10: =IF(L10<>"",1-SUMPRODUCT((COUNTIF(L10:Q10,{1,2,3,4,5,0})=0)*{10,5,4,3,2,1})/26,"") -> 0.8076923077 | Y10: =IF(L10<>"",1-SUMPRODUCT((COUNTIF(L10:Q10,{1,2,3,4,5,0})=0)*{1,2,3,4,5,10})/26,"") -> 0.6538461538 | Z10: 9 | AA10: 42 | AB10: =IF(S10<>"",COUNTIFS(Px,S10)-COUNTIFS(Px,S10,$AA$2:$AA$21,"<="&AA10)+COUNTIFS($S$2:S10,S10,$AA$2:AA10,AA10),"") -> 1 | AC10: FAV | AD10: 2 | AE10: AUTRE | AF10: AUTRE | AG10: =IF(Musique!D10="","",COUNTIF(L10:Q10,">4")+COUNTIF(L10:Q10,"=0")) -> 2 | AH10: =Musique!R10 -> 6 | AI10: 9 | AJ10: =IF(K10<>"",(COUNTIF(L10:Q10,">4")+COUNTIF(L10:Q10,"=0")&Musique!R10),"") -> 26 | AK10: 26 | AL10: Très bon_3 | AM10: 122 | AO10: 22.5 | AP10: 6 | AQ10: 6 | AS10: 12 | AT10: FAV | AU10: 9 | AY10: PK4 | AZ10: =COUNTIF($R$2:$R$21,4) -> 0 | BA10: =IF($R$2=4,"4","") & IF($R$3=4,"4","") & IF($R$4=4,"4","") & IF($R$5=4,"4","") & IF($R$6=4,"4","") & IF($R$7=4,"4","") & IF($R$8=4,"4","") & IF($R$9=4,"4","") & IF($R$10=4,"4","") & IF($R$11=4,"4","") & IF($R$12=4,"4","") & IF($R$13=4,"4","") & IF($R$14=4,"4","") & IF($R$15=4,"4","") & IF($R$16=4,"4","") & IF($R$17=4,"4","") & IF($R$18=4,"4","") & IF($R$19=4,"4","") & IF($R$20=4,"4","") & IF($R$21=4,"4","") ->  | BC10: =IF($R$2=4,$K$2 & "-","") & IF($R$3=4,$K$3 & "-","") & IF($R$4=4,$K$4 & "-","") & IF($R$5=4,$K$5 & "-","") & IF($R$6=4,$K$6 & "-","") & IF($R$7=4,$K$7 & "-","") & IF($R$8=4,$K$8 & "-","") & IF($R$9=4,$K$9 & "-","") & IF($R$10=4,$K$10 & "-","") & IF($R$11=4,$K$11 & "-","") & IF($R$12=4,$K$12 & "-","") & IF($R$13=4,$K$13 & "-","") & IF($R$14=4,$K$14 & "-","") & IF($R$15=4,$K$15 & "-","") & IF($R$16=4,$K$16 & "-","") & IF($R$17=4,$K$17 & "-","") & IF($R$18=4,$K$18 & "-","") & IF($R$19=4,$K$19 & "-","") & IF($R$20=4,$K$20 & "-","") & IF($R$21=4,$K$21 & "-","") ->  | BE10: 45 | BF10: 9 | BJ10: 4 | BK10: 5 | BM10: FAV | BN10: AUTRE | BO10: AUTRE | BP10: 122 | BR10: 13 | BS10: 1 3 | BT10: OFV | BU10: OUTSIDERS FAVORIS | BW10: 53
A11: 9 | B11: =IF(Musique!D10<>"",COUNTIF(L10:Q10,$B$2),"") -> 2 | C11: =IF(Musique!D10<>"",COUNTIF(L10:Q10,$C$2),"") -> 2 | D11: =IF(Musique!D10<>"",COUNTIF(L10:Q10,$D$2),"") -> 1 | E11: =IF(Musique!D10<>"",COUNTIF(L10:Q10,$E$2),"") -> 1 | F11: =IF(Musique!D10<>"",COUNTIF(L10:Q10,$F$2),"") -> 0 | G11: =IF(Musique!D10<>"",COUNTIF(L10:Q10,$G$2),"") -> 0 | I11: 0 | K11: =IF(Musique!D11<>"",Musique!A11,"") -> 10 | L11: =IF(Musique!F11="","",Musique!F11) -> 4 | M11: =IF(Musique!G11="","",Musique!G11) -> 3 | N11: =IF(Musique!H11="","",Musique!H11) -> 6 | O11: =IF(Musique!I11="","",Musique!I11) -> 0 | P11: =IF(Musique!J11="","",Musique!J11) -> 4 | Q11: =IF(Musique!K11="","",Musique!K11) -> 8 | R11: 6 | S11: Ps | T11: =IF(Musique!D11="","",100+COUNTIF(B35:G35,"<7")*7-SUMIF(B35:G35,"<7")) -> 111 | U11: =IF(Musique!D11<>"",I58,"") -> 5 | V11: =IF(L11<>"",SUMPRODUCT((COUNTIF(L11:Q11,{0,1,2,3,4,5})=0)*{10,1,2,3,4,5}),"") -> 8 | W11: =IF(Musique!D11<>"",SUM(T11:V11),"") -> 124 | X11: =IF(L11<>"",1-SUMPRODUCT((COUNTIF(L11:Q11,{1,2,3,4,5,0})=0)*{10,5,4,3,2,1})/26,"") -> 0.3461538462 | Y11: =IF(L11<>"",1-SUMPRODUCT((COUNTIF(L11:Q11,{1,2,3,4,5,0})=0)*{1,2,3,4,5,10})/26,"") -> 0.6923076923 | Z11: 10 | AA11: 32 | AB11: =IF(S11<>"",COUNTIFS(Px,S11)-COUNTIFS(Px,S11,$AA$2:$AA$21,"<="&AA11)+COUNTIFS($S$2:S11,S11,$AA$2:AA11,AA11),"") -> 3 | AC11: ODE_3 | AD11: 3 | AE11: OUTSIDER DÉGRADÉ | AG11: =IF(Musique!D11="","",COUNTIF(L11:Q11,">4")+COUNTIF(L11:Q11,"=0")) -> 3 | AH11: =Musique!R11 -> 6 | AI11: 10 | AJ11: =IF(K11<>"",(COUNTIF(L11:Q11,">4")+COUNTIF(L11:Q11,"=0")&Musique!R11),"") -> 36 | AK11: 36 | AL11: Semi-tocard_1 | AM11: 112 | AO11: 29.16666667 | AQ11: 2 | AS11: 2 | AT11: OUT | AU11: 10 | AY11: PK3 | AZ11: =COUNTIF($R$2:$R$21,3) -> 0 | BA11: =IF($R$2=3,"3","") & IF($R$3=3,"3","") & IF($R$4=3,"3","") & IF($R$5=3,"3","") & IF($R$6=3,"3","") & IF($R$7=3,"3","") & IF($R$8=3,"3","") & IF($R$9=3,"3","") & IF($R$10=3,"3","") & IF($R$11=3,"3","") & IF($R$12=3,"3","") & IF($R$13=3,"3","") & IF($R$14=3,"3","") & IF($R$15=3,"3","") & IF($R$16=3,"3","") & IF($R$17=3,"3","") & IF($R$18=3,"3","") & IF($R$19=3,"3","") & IF($R$20=3,"3","") & IF($R$21=3,"3","") ->  | BC11: =IF($R$2=3,$K$2 & "-","") & IF($R$3=3,$K$3 & "-","") & IF($R$4=3,$K$4 & "-","") & IF($R$5=3,$K$5 & "-","") & IF($R$6=3,$K$6 & "-","") & IF($R$7=3,$K$7 & "-","") & IF($R$8=3,$K$8 & "-","") & IF($R$9=3,$K$9 & "-","") & IF($R$10=3,$K$10 & "-","") & IF($R$11=3,$K$11 & "-","") & IF($R$12=3,$K$12 & "-","") & IF($R$13=3,$K$13 & "-","") & IF($R$14=3,$K$14 & "-","") & IF($R$15=3,$K$15 & "-","") & IF($R$16=3,$K$16 & "-","") & IF($R$17=3,$K$17 & "-","") & IF($R$18=3,$K$18 & "-","") & IF($R$19=3,$K$19 & "-","") & IF($R$20=3,$K$20 & "-","") & IF($R$21=3,$K$21 & "-","") ->  | BE11: 125 | BF11: 10 | BG11: 1 | BH11: 2 | BK11: 5 | BM11: ODE_3 | BN11: OUTSIDER DÉGRADÉ | BO11: 0 | BP11: 112 | BR11: 14 | BS11: 1 4 | BT11: OFV | BU11: OUTSIDERS FAVORIS | BV11: AUTRE | BW11: 84
A12: 10 | B12: =IF(Musique!D11<>"",COUNTIF(L11:Q11,$B$2),"") -> 1 | C12: =IF(Musique!D11<>"",COUNTIF(L11:Q11,$C$2),"") -> 0 | D12: =IF(Musique!D11<>"",COUNTIF(L11:Q11,$D$2),"") -> 0 | E12: =IF(Musique!D11<>"",COUNTIF(L11:Q11,$E$2),"") -> 1 | F12: =IF(Musique!D11<>"",COUNTIF(L11:Q11,$F$2),"") -> 2 | G12: =IF(Musique!D11<>"",COUNTIF(L11:Q11,$G$2),"") -> 0 | K12: =IF(Musique!D12<>"",Musique!A12,"") ->  | L12: =IF(Musique!F12="","",Musique!F12) ->  | M12: =IF(Musique!G12="","",Musique!G12) ->  | N12: =IF(Musique!H12="","",Musique!H12) ->  | O12: =IF(Musique!I12="","",Musique!I12) ->  | P12: =IF(Musique!J12="","",Musique!J12) ->  | Q12: =IF(Musique!K12="","",Musique!K12) ->  | T12: =IF(Musique!D12="","",100+COUNTIF(B36:G36,"<7")*7-SUMIF(B36:G36,"<7")) ->  | U12: =IF(Musique!D12<>"",I59,"") ->  | V12: =IF(L12<>"",SUMPRODUCT((COUNTIF(L12:Q12,{0,1,2,3,4,5})=0)*{10,1,2,3,4,5}),"") ->  | W12: =IF(Musique!D12<>"",SUM(T12:V12),"") ->  | X12: =IF(L12<>"",1-SUMPRODUCT((COUNTIF(L12:Q12,{1,2,3,4,5,0})=0)*{10,5,4,3,2,1})/26,"") ->  | Y12: =IF(L12<>"",1-SUMPRODUCT((COUNTIF(L12:Q12,{1,2,3,4,5,0})=0)*{1,2,3,4,5,10})/26,"") ->  | AB12: =IF(S12<>"",COUNTIFS(Px,S12)-COUNTIFS(Px,S12,$AA$2:$AA$21,"<="&AA12)+COUNTIFS($S$2:S12,S12,$AA$2:AA12,AA12),"") ->  | AG12: =IF(Musique!D12="","",COUNTIF(L12:Q12,">4")+COUNTIF(L12:Q12,"=0")) ->  | AH12: =Musique!R12 ->  | AJ12: =IF(K12<>"",(COUNTIF(L12:Q12,">4")+COUNTIF(L12:Q12,"=0")&Musique!R12),"") ->  | AS12: 0 | AY12: PK2 | AZ12: =COUNTIF($R$2:$R$21,2) -> 1 | BA12: =IF($R$2=2,"2","") & IF($R$3=2,"2","") & IF($R$4=2,"2","") & IF($R$5=2,"2","") & IF($R$6=2,"2","") & IF($R$7=2,"2","") & IF($R$8=2,"2","") & IF($R$9=2,"2","") & IF($R$10=2,"2","") & IF($R$11=2,"2","") & IF($R$12=2,"2","") & IF($R$13=2,"2","") & IF($R$14=2,"2","") & IF($R$15=2,"2","") & IF($R$16=2,"2","") & IF($R$17=2,"2","") & IF($R$18=2,"2","") & IF($R$19=2,"2","") & IF($R$20=2,"2","") & IF($R$21=2,"2","") -> 2 | BC12: =IF($R$2=2,$K$2 & "-","") & IF($R$3=2,$K$3 & "-","") & IF($R$4=2,$K$4 & "-","") & IF($R$5=2,$K$5 & "-","") & IF($R$6=2,$K$6 & "-","") & IF($R$7=2,$K$7 & "-","") & IF($R$8=2,$K$8 & "-","") & IF($R$9=2,$K$9 & "-","") & IF($R$10=2,$K$10 & "-","") & IF($R$11=2,$K$11 & "-","") & IF($R$12=2,$K$12 & "-","") & IF($R$13=2,$K$13 & "-","") & IF($R$14=2,$K$14 & "-","") & IF($R$15=2,$K$15 & "-","") & IF($R$16=2,$K$16 & "-","") & IF($R$17=2,$K$17 & "-","") & IF($R$18=2,$K$18 & "-","") & IF($R$19=2,$K$19 & "-","") & IF($R$20=2,$K$20 & "-","") & IF($R$21=2,$K$21 & "-","") -> 8- | BR12: 15 | BS12: 1 5 | BT12: OFV | BU12: OUTSIDERS FAVORIS | BW12: 98
A13: 11 | B13: =IF(Musique!D12<>"",COUNTIF(L12:Q12,$B$2),"") ->  | C13: =IF(Musique!D12<>"",COUNTIF(L12:Q12,$C$2),"") ->  | D13: =IF(Musique!D12<>"",COUNTIF(L12:Q12,$D$2),"") ->  | E13: =IF(Musique!D12<>"",COUNTIF(L12:Q12,$E$2),"") ->  | F13: =IF(Musique!D12<>"",COUNTIF(L12:Q12,$F$2),"") ->  | G13: =IF(Musique!D12<>"",COUNTIF(L12:Q12,$G$2),"") ->  | K13: =IF(Musique!D13<>"",Musique!A13,"") ->  | L13: =IF(Musique!F13="","",Musique!F13) ->  | M13: =IF(Musique!G13="","",Musique!G13) ->  | N13: =IF(Musique!H13="","",Musique!H13) ->  | O13: =IF(Musique!I13="","",Musique!I13) ->  | P13: =IF(Musique!J13="","",Musique!J13) ->  | Q13: =IF(Musique!K13="","",Musique!K13) ->  | T13: =IF(Musique!D13="","",100+COUNTIF(B37:G37,"<7")*7-SUMIF(B37:G37,"<7")) ->  | U13: =IF(Musique!D13<>"",I60,"") ->  | V13: =IF(L13<>"",SUMPRODUCT((COUNTIF(L13:Q13,{0,1,2,3,4,5})=0)*{10,1,2,3,4,5}),"") ->  | W13: =IF(Musique!D13<>"",SUM(T13:V13),"") ->  | X13: =IF(L13<>"",1-SUMPRODUCT((COUNTIF(L13:Q13,{1,2,3,4,5,0})=0)*{10,5,4,3,2,1})/26,"") ->  | Y13: =IF(L13<>"",1-SUMPRODUCT((COUNTIF(L13:Q13,{1,2,3,4,5,0})=0)*{1,2,3,4,5,10})/26,"") ->  | AB13: =IF(S13<>"",COUNTIFS(Px,S13)-COUNTIFS(Px,S13,$AA$2:$AA$21,"<="&AA13)+COUNTIFS($S$2:S13,S13,$AA$2:AA13,AA13),"") ->  | AG13: =IF(Musique!D13="","",COUNTIF(L13:Q13,">4")+COUNTIF(L13:Q13,"=0")) ->  | AH13: =Musique!R13 ->  | AJ13: =IF(K13<>"",(COUNTIF(L13:Q13,">4")+COUNTIF(L13:Q13,"=0")&Musique!R13),"") ->  | AS13: 0 | AY13: PK1 | AZ13: =COUNTIF($R$2:$R$21,1) -> 3 | BA13: =IF($R$2=1,"1","") & IF($R$3=1,"1","") & IF($R$4=1,"1","") & IF($R$5=1,"1","") & IF($R$6=1,"1","") & IF($R$7=1,"1","") & IF($R$8=1,"1","") & IF($R$9=1,"1","") & IF($R$10=1,"1","") & IF($R$11=1,"1","") & IF($R$12=1,"1","") & IF($R$13=1,"1","") & IF($R$14=1,"1","") & IF($R$15=1,"1","") & IF($R$16=1,"1","") & IF($R$17=1,"1","") & IF($R$18=1,"1","") & IF($R$19=1,"1","") & IF($R$20=1,"1","") & IF($R$21=1,"1","") -> 111 | BC13: =IF($R$2=1,$K$2 & "-","") & IF($R$3=1,$K$3 & "-","") & IF($R$4=1,$K$4 & "-","") & IF($R$5=1,$K$5 & "-","") & IF($R$6=1,$K$6 & "-","") & IF($R$7=1,$K$7 & "-","") & IF($R$8=1,$K$8 & "-","") & IF($R$9=1,$K$9 & "-","") & IF($R$10=1,$K$10 & "-","") & IF($R$11=1,$K$11 & "-","") & IF($R$12=1,$K$12 & "-","") & IF($R$13=1,$K$13 & "-","") & IF($R$14=1,$K$14 & "-","") & IF($R$15=1,$K$15 & "-","") & IF($R$16=1,$K$16 & "-","") & IF($R$17=1,$K$17 & "-","") & IF($R$18=1,$K$18 & "-","") & IF($R$19=1,$K$19 & "-","") & IF($R$20=1,$K$20 & "-","") & IF($R$21=1,$K$21 & "-","") -> 2-7-9- | BR13: 20 | BS13: 0 2 | BT13: FBB | BU13: FAVORI BANQUIER | BW13: 31
A14: 12 | B14: =IF(Musique!D13<>"",COUNTIF(L13:Q13,$B$2),"") ->  | C14: =IF(Musique!D13<>"",COUNTIF(L13:Q13,$C$2),"") ->  | D14: =IF(Musique!D13<>"",COUNTIF(L13:Q13,$D$2),"") ->  | E14: =IF(Musique!D13<>"",COUNTIF(L13:Q13,$E$2),"") ->  | F14: =IF(Musique!D13<>"",COUNTIF(L13:Q13,$F$2),"") ->  | G14: =IF(Musique!D13<>"",COUNTIF(L13:Q13,$G$2),"") ->  | K14: =IF(Musique!D14<>"",Musique!A14,"") ->  | L14: =IF(Musique!F14="","",Musique!F14) ->  | M14: =IF(Musique!G14="","",Musique!G14) ->  | N14: =IF(Musique!H14="","",Musique!H14) ->  | O14: =IF(Musique!I14="","",Musique!I14) ->  | P14: =IF(Musique!J14="","",Musique!J14) ->  | Q14: =IF(Musique!K14="","",Musique!K14) ->  | T14: =IF(Musique!D14="","",100+COUNTIF(B38:G38,"<7")*7-SUMIF(B38:G38,"<7")) ->  | U14: =IF(Musique!D14<>"",I61,"") ->  | V14: =IF(L14<>"",SUMPRODUCT((COUNTIF(L14:Q14,{0,1,2,3,4,5})=0)*{10,1,2,3,4,5}),"") ->  | W14: =IF(Musique!D14<>"",SUM(T14:V14),"") ->  | X14: =IF(L14<>"",1-SUMPRODUCT((COUNTIF(L14:Q14,{1,2,3,4,5,0})=0)*{10,5,4,3,2,1})/26,"") ->  | Y14: =IF(L14<>"",1-SUMPRODUCT((COUNTIF(L14:Q14,{1,2,3,4,5,0})=0)*{1,2,3,4,5,10})/26,"") ->  | AB14: =IF(S14<>"",COUNTIFS(Px,S14)-COUNTIFS(Px,S14,$AA$2:$AA$21,"<="&AA14)+COUNTIFS($S$2:S14,S14,$AA$2:AA14,AA14),"") ->  | AG14: =IF(Musique!D14="","",COUNTIF(L14:Q14,">4")+COUNTIF(L14:Q14,"=0")) ->  | AH14: =Musique!R14 ->  | AJ14: =IF(K14<>"",(COUNTIF(L14:Q14,">4")+COUNTIF(L14:Q14,"=0")&Musique!R14),"") ->  | AS14: 0 | AY14: PK0 | AZ14: =COUNTIF($R$2:$R$21,0) -> 1 | BA14: =IF($R$2=0,"0","") & IF($R$3=0,"0","") & IF($R$4=0,"0","") & IF($R$5=0,"0","") & IF($R$6=0,"0","") & IF($R$7=0,"0","") & IF($R$8=0,"0","") & IF($R$9=0,"0","") & IF($R$10=0,"0","") & IF($R$11=0,"0","") & IF($R$12=0,"0","") & IF($R$13=0,"0","") & IF($R$14=0,"0","") & IF($R$15=0,"0","") & IF($R$16=0,"0","") & IF($R$17=0,"0","") & IF($R$18=0,"0","") & IF($R$19=0,"0","") & IF($R$20=0,"0","") & IF($R$21=0,"0","") -> 0 | BC14: =IF($R$2=0,$K$2 & "-","") & IF($R$3=0,$K$3 & "-","") & IF($R$4=0,$K$4 & "-","") & IF($R$5=0,$K$5 & "-","") & IF($R$6=0,$K$6 & "-","") & IF($R$7=0,$K$7 & "-","") & IF($R$8=0,$K$8 & "-","") & IF($R$9=0,$K$9 & "-","") & IF($R$10=0,$K$10 & "-","") & IF($R$11=0,$K$11 & "-","") & IF($R$12=0,$K$12 & "-","") & IF($R$13=0,$K$13 & "-","") & IF($R$14=0,$K$14 & "-","") & IF($R$15=0,$K$15 & "-","") & IF($R$16=0,$K$16 & "-","") & IF($R$17=0,$K$17 & "-","") & IF($R$18=0,$K$18 & "-","") & IF($R$19=0,$K$19 & "-","") & IF($R$20=0,$K$20 & "-","") & IF($R$21=0,$K$21 & "-","") -> 5- | BR14: 23 | BS14: 2 3 | BT14: FGO_1 | BU14: FAVORI GROS OUTSIDERS | BV14: MINORANT | BW14: 69
A15: 13 | B15: =IF(Musique!D14<>"",COUNTIF(L14:Q14,$B$2),"") ->  | C15: =IF(Musique!D14<>"",COUNTIF(L14:Q14,$C$2),"") ->  | D15: =IF(Musique!D14<>"",COUNTIF(L14:Q14,$D$2),"") ->  | E15: =IF(Musique!D14<>"",COUNTIF(L14:Q14,$E$2),"") ->  | F15: =IF(Musique!D14<>"",COUNTIF(L14:Q14,$F$2),"") ->  | G15: =IF(Musique!D14<>"",COUNTIF(L14:Q14,$G$2),"") ->  | K15: =IF(Musique!D15<>"",Musique!A15,"") ->  | L15: =IF(Musique!F15="","",Musique!F15) ->  | M15: =IF(Musique!G15="","",Musique!G15) ->  | N15: =IF(Musique!H15="","",Musique!H15) ->  | O15: =IF(Musique!I15="","",Musique!I15) ->  | P15: =IF(Musique!J15="","",Musique!J15) ->  | Q15: =IF(Musique!K15="","",Musique!K15) ->  | T15: =IF(Musique!D15="","",100+COUNTIF(B39:G39,"<7")*7-SUMIF(B39:G39,"<7")) ->  | U15: =IF(Musique!D15<>"",I62,"") ->  | V15: =IF(L15<>"",SUMPRODUCT((COUNTIF(L15:Q15,{0,1,2,3,4,5})=0)*{10,1,2,3,4,5}),"") ->  | W15: =IF(Musique!D15<>"",SUM(T15:V15),"") ->  | X15: =IF(L15<>"",1-SUMPRODUCT((COUNTIF(L15:Q15,{1,2,3,4,5,0})=0)*{10,5,4,3,2,1})/26,"") ->  | Y15: =IF(L15<>"",1-SUMPRODUCT((COUNTIF(L15:Q15,{1,2,3,4,5,0})=0)*{1,2,3,4,5,10})/26,"") ->  | AB15: =IF(S15<>"",COUNTIFS(Px,S15)-COUNTIFS(Px,S15,$AA$2:$AA$21,"<="&AA15)+COUNTIFS($S$2:S15,S15,$AA$2:AA15,AA15),"") ->  | AG15: =IF(Musique!D15="","",COUNTIF(L15:Q15,">4")+COUNTIF(L15:Q15,"=0")) ->  | AH15: =Musique!R15 ->  | AJ15: =IF(K15<>"",(COUNTIF(L15:Q15,">4")+COUNTIF(L15:Q15,"=0")&Musique!R15),"") ->  | AS15: 0 | BR15: 24 | BS15: 2 4 | BT15: FOF_2 | BU15: FAVORI SUR OUT OF FORM | BV15: MÉDIUM | BW15: 63
A16: 14 | B16: =IF(Musique!D15<>"",COUNTIF(L15:Q15,$B$2),"") ->  | C16: =IF(Musique!D15<>"",COUNTIF(L15:Q15,$C$2),"") ->  | D16: =IF(Musique!D15<>"",COUNTIF(L15:Q15,$D$2),"") ->  | E16: =IF(Musique!D15<>"",COUNTIF(L15:Q15,$E$2),"") ->  | F16: =IF(Musique!D15<>"",COUNTIF(L15:Q15,$F$2),"") ->  | G16: =IF(Musique!D15<>"",COUNTIF(L15:Q15,$G$2),"") ->  | K16: =IF(Musique!D16<>"",Musique!A16,"") ->  | L16: =IF(Musique!F16="","",Musique!F16) ->  | M16: =IF(Musique!G16="","",Musique!G16) ->  | N16: =IF(Musique!H16="","",Musique!H16) ->  | O16: =IF(Musique!I16="","",Musique!I16) ->  | P16: =IF(Musique!J16="","",Musique!J16) ->  | Q16: =IF(Musique!K16="","",Musique!K16) ->  | T16: =IF(Musique!D16="","",100+COUNTIF(B40:G40,"<7")*7-SUMIF(B40:G40,"<7")) ->  | U16: =IF(Musique!D16<>"",I63,"") ->  | V16: =IF(L16<>"",SUMPRODUCT((COUNTIF(L16:Q16,{0,1,2,3,4,5})=0)*{10,1,2,3,4,5}),"") ->  | W16: =IF(Musique!D16<>"",SUM(T16:V16),"") ->  | X16: =IF(L16<>"",1-SUMPRODUCT((COUNTIF(L16:Q16,{1,2,3,4,5,0})=0)*{10,5,4,3,2,1})/26,"") ->  | Y16: =IF(L16<>"",1-SUMPRODUCT((COUNTIF(L16:Q16,{1,2,3,4,5,0})=0)*{1,2,3,4,5,10})/26,"") ->  | AB16: =IF(S16<>"",COUNTIFS(Px,S16)-COUNTIFS(Px,S16,$AA$2:$AA$21,"<="&AA16)+COUNTIFS($S$2:S16,S16,$AA$2:AA16,AA16),"") ->  | AG16: =IF(Musique!D16="","",COUNTIF(L16:Q16,">4")+COUNTIF(L16:Q16,"=0")) ->  | AH16: =Musique!R16 ->  | AJ16: =IF(K16<>"",(COUNTIF(L16:Q16,">4")+COUNTIF(L16:Q16,"=0")&Musique!R16),"") ->  | AS16: 0 | BR16: 25 | BS16: 2 5 | BT16: FOF_2 | BU16: FAVORI SUR OUT OF FORM | BV16: MÉDIUM | BW16: 88
A17: 15 | B17: =IF(Musique!D16<>"",COUNTIF(L16:Q16,$B$2),"") ->  | C17: =IF(Musique!D16<>"",COUNTIF(L16:Q16,$C$2),"") ->  | D17: =IF(Musique!D16<>"",COUNTIF(L16:Q16,$D$2),"") ->  | E17: =IF(Musique!D16<>"",COUNTIF(L16:Q16,$E$2),"") ->  | F17: =IF(Musique!D16<>"",COUNTIF(L16:Q16,$F$2),"") ->  | G17: =IF(Musique!D16<>"",COUNTIF(L16:Q16,$G$2),"") ->  | K17: =IF(Musique!D17<>"",Musique!A17,"") ->  | L17: =IF(Musique!F17="","",Musique!F17) ->  | M17: =IF(Musique!G17="","",Musique!G17) ->  | N17: =IF(Musique!H17="","",Musique!H17) ->  | O17: =IF(Musique!I17="","",Musique!I17) ->  | P17: =IF(Musique!J17="","",Musique!J17) ->  | Q17: =IF(Musique!K17="","",Musique!K17) ->  | T17: =IF(Musique!D17="","",100+COUNTIF(B41:G41,"<7")*7-SUMIF(B41:G41,"<7")) ->  | U17: =IF(Musique!D17<>"",I64,"") ->  | V17: =IF(L17<>"",SUMPRODUCT((COUNTIF(L17:Q17,{0,1,2,3,4,5})=0)*{10,1,2,3,4,5}),"") ->  | W17: =IF(Musique!D17<>"",SUM(T17:V17),"") ->  | X17: =IF(L17<>"",1-SUMPRODUCT((COUNTIF(L17:Q17,{1,2,3,4,5,0})=0)*{10,5,4,3,2,1})/26,"") ->  | Y17: =IF(L17<>"",1-SUMPRODUCT((COUNTIF(L17:Q17,{1,2,3,4,5,0})=0)*{1,2,3,4,5,10})/26,"") ->  | AB17: =IF(S17<>"",COUNTIFS(Px,S17)-COUNTIFS(Px,S17,$AA$2:$AA$21,"<="&AA17)+COUNTIFS($S$2:S17,S17,$AA$2:AA17,AA17),"") ->  | AG17: =IF(Musique!D17="","",COUNTIF(L17:Q17,">4")+COUNTIF(L17:Q17,"=0")) ->  | AH17: =Musique!R17 ->  | AJ17: =IF(K17<>"",(COUNTIF(L17:Q17,">4")+COUNTIF(L17:Q17,"=0")&Musique!R17),"") ->  | AS17: 0 | BR17: 30 | BS17: 0 3 | BT17: FBB | BU17: FAVORI BANQUIER | BV17: AUTRE | BW17: 56
A18: 16 | B18: =IF(Musique!D17<>"",COUNTIF(L17:Q17,$B$2),"") ->  | C18: =IF(Musique!D17<>"",COUNTIF(L17:Q17,$C$2),"") ->  | D18: =IF(Musique!D17<>"",COUNTIF(L17:Q17,$D$2),"") ->  | E18: =IF(Musique!D17<>"",COUNTIF(L17:Q17,$E$2),"") ->  | F18: =IF(Musique!D17<>"",COUNTIF(L17:Q17,$F$2),"") ->  | G18: =IF(Musique!D17<>"",COUNTIF(L17:Q17,$G$2),"") ->  | K18: =IF(Musique!D18<>"",Musique!A18,"") ->  | L18: =IF(Musique!F18="","",Musique!F18) ->  | M18: =IF(Musique!G18="","",Musique!G18) ->  | N18: =IF(Musique!H18="","",Musique!H18) ->  | O18: =IF(Musique!I18="","",Musique!I18) ->  | P18: =IF(Musique!J18="","",Musique!J18) ->  | Q18: =IF(Musique!K18="","",Musique!K18) ->  | T18: =IF(Musique!D18="","",100+COUNTIF(B42:G42,"<7")*7-SUMIF(B42:G42,"<7")) ->  | U18: =IF(Musique!D18<>"",I65,"") ->  | V18: =IF(L18<>"",SUMPRODUCT((COUNTIF(L18:Q18,{0,1,2,3,4,5})=0)*{10,1,2,3,4,5}),"") ->  | W18: =IF(Musique!D18<>"",SUM(T18:V18),"") ->  | X18: =IF(L18<>"",1-SUMPRODUCT((COUNTIF(L18:Q18,{1,2,3,4,5,0})=0)*{10,5,4,3,2,1})/26,"") ->  | Y18: =IF(L18<>"",1-SUMPRODUCT((COUNTIF(L18:Q18,{1,2,3,4,5,0})=0)*{1,2,3,4,5,10})/26,"") ->  | AB18: =IF(S18<>"",COUNTIFS(Px,S18)-COUNTIFS(Px,S18,$AA$2:$AA$21,"<="&AA18)+COUNTIFS($S$2:S18,S18,$AA$2:AA18,AA18),"") ->  | AG18: =IF(Musique!D18="","",COUNTIF(L18:Q18,">4")+COUNTIF(L18:Q18,"=0")) ->  | AH18: =Musique!R18 ->  | AJ18: =IF(K18<>"",(COUNTIF(L18:Q18,">4")+COUNTIF(L18:Q18,"=0")&Musique!R18),"") ->  | AS18: 0 | BR18: 34 | BS18: 3 4 | BT18: FAV | BU18: FAVORI | BV18: AUTRE | BW18: 96
A19: 17 | B19: =IF(Musique!D18<>"",COUNTIF(L18:Q18,$B$2),"") ->  | C19: =IF(Musique!D18<>"",COUNTIF(L18:Q18,$C$2),"") ->  | D19: =IF(Musique!D18<>"",COUNTIF(L18:Q18,$D$2),"") ->  | E19: =IF(Musique!D18<>"",COUNTIF(L18:Q18,$E$2),"") ->  | F19: =IF(Musique!D18<>"",COUNTIF(L18:Q18,$F$2),"") ->  | G19: =IF(Musique!D18<>"",COUNTIF(L18:Q18,$G$2),"") ->  | K19: =IF(Musique!D19<>"",Musique!A19,"") ->  | L19: =IF(Musique!F19="","",Musique!F19) ->  | M19: =IF(Musique!G19="","",Musique!G19) ->  | N19: =IF(Musique!H19="","",Musique!H19) ->  | O19: =IF(Musique!I19="","",Musique!I19) ->  | P19: =IF(Musique!J19="","",Musique!J19) ->  | Q19: =IF(Musique!K19="","",Musique!K19) ->  | T19: =IF(Musique!D19="","",100+COUNTIF(B43:G43,"<7")*7-SUMIF(B43:G43,"<7")) ->  | U19: =IF(Musique!D19<>"",I66,"") ->  | V19: =IF(L19<>"",SUMPRODUCT((COUNTIF(L19:Q19,{0,1,2,3,4,5})=0)*{10,1,2,3,4,5}),"") ->  | W19: =IF(Musique!D19<>"",SUM(T19:V19),"") ->  | X19: =IF(L19<>"",1-SUMPRODUCT((COUNTIF(L19:Q19,{1,2,3,4,5,0})=0)*{10,5,4,3,2,1})/26,"") ->  | Y19: =IF(L19<>"",1-SUMPRODUCT((COUNTIF(L19:Q19,{1,2,3,4,5,0})=0)*{1,2,3,4,5,10})/26,"") ->  | AB19: =IF(S19<>"",COUNTIFS(Px,S19)-COUNTIFS(Px,S19,$AA$2:$AA$21,"<="&AA19)+COUNTIFS($S$2:S19,S19,$AA$2:AA19,AA19),"") ->  | AG19: =IF(Musique!D19="","",COUNTIF(L19:Q19,">4")+COUNTIF(L19:Q19,"=0")) ->  | AH19: =Musique!R19 ->  | AJ19: =IF(K19<>"",(COUNTIF(L19:Q19,">4")+COUNTIF(L19:Q19,"=0")&Musique!R19),"") ->  | AS19: 0 | BR19: 35 | BS19: 3 5 | BT19: FAV | BU19: FAVORI | BV19: AUTRE | BW19: 135
A20: 18 | B20: =IF(Musique!D19<>"",COUNTIF(L19:Q19,$B$2),"") ->  | C20: =IF(Musique!D19<>"",COUNTIF(L19:Q19,$C$2),"") ->  | D20: =IF(Musique!D19<>"",COUNTIF(L19:Q19,$D$2),"") ->  | E20: =IF(Musique!D19<>"",COUNTIF(L19:Q19,$E$2),"") ->  | F20: =IF(Musique!D19<>"",COUNTIF(L19:Q19,$F$2),"") ->  | G20: =IF(Musique!D19<>"",COUNTIF(L19:Q19,$G$2),"") ->  | K20: =IF(Musique!D20<>"",Musique!A20,"") ->  | L20: =IF(Musique!F20="","",Musique!F20) ->  | M20: =IF(Musique!G20="","",Musique!G20) ->  | N20: =IF(Musique!H20="","",Musique!H20) ->  | O20: =IF(Musique!I20="","",Musique!I20) ->  | P20: =IF(Musique!J20="","",Musique!J20) ->  | Q20: =IF(Musique!K20="","",Musique!K20) ->  | T20: =IF(Musique!D20="","",100+COUNTIF(B44:G44,"<7")*7-SUMIF(B44:G44,"<7")) ->  | U20: =IF(Musique!D20<>"",I67,"") ->  | V20: =IF(L20<>"",SUMPRODUCT((COUNTIF(L20:Q20,{0,1,2,3,4,5})=0)*{10,1,2,3,4,5}),"") ->  | W20: =IF(Musique!D20<>"",SUM(T20:V20),"") ->  | X20: =IF(L20<>"",1-SUMPRODUCT((COUNTIF(L20:Q20,{1,2,3,4,5,0})=0)*{10,5,4,3,2,1})/26,"") ->  | Y20: =IF(L20<>"",1-SUMPRODUCT((COUNTIF(L20:Q20,{1,2,3,4,5,0})=0)*{1,2,3,4,5,10})/26,"") ->  | AB20: =IF(S20<>"",COUNTIFS(Px,S20)-COUNTIFS(Px,S20,$AA$2:$AA$21,"<="&AA20)+COUNTIFS($S$2:S20,S20,$AA$2:AA20,AA20),"") ->  | AG20: =IF(Musique!D20="","",COUNTIF(L20:Q20,">4")+COUNTIF(L20:Q20,"=0")) ->  | AH20: =Musique!R20 ->  | AJ20: =IF(K20<>"",(COUNTIF(L20:Q20,">4")+COUNTIF(L20:Q20,"=0")&Musique!R20),"") ->  | AS20: 0 | BR20: 40 | BS20: 0 4 | BT20: FBB | BU20: FAVORI BANQUIER | BV20: AUTRE | BW20: 57
A21: 19 | B21: =IF(Musique!D20<>"",COUNTIF(L20:Q20,$B$2),"") ->  | C21: =IF(Musique!D20<>"",COUNTIF(L20:Q20,$C$2),"") ->  | D21: =IF(Musique!D20<>"",COUNTIF(L20:Q20,$D$2),"") ->  | E21: =IF(Musique!D20<>"",COUNTIF(L20:Q20,$E$2),"") ->  | F21: =IF(Musique!D20<>"",COUNTIF(L20:Q20,$F$2),"") ->  | G21: =IF(Musique!D20<>"",COUNTIF(L20:Q20,$G$2),"") ->  | K21: =IF(Musique!D21<>"",Musique!A21,"") ->  | L21: =IF(Musique!F21="","",Musique!F21) ->  | M21: =IF(Musique!G21="","",Musique!G21) ->  | N21: =IF(Musique!H21="","",Musique!H21) ->  | O21: =IF(Musique!I21="","",Musique!I21) ->  | P21: =IF(Musique!J21="","",Musique!J21) ->  | Q21: =IF(Musique!K21="","",Musique!K21) ->  | T21: =IF(Musique!D21="","",100+COUNTIF(B45:G45,"<7")*7-SUMIF(B45:G45,"<7")) ->  | U21: =IF(Musique!D21<>"",I68,"") ->  | V21: =IF(L21<>"",SUMPRODUCT((COUNTIF(L21:Q21,{0,1,2,3,4,5})=0)*{10,1,2,3,4,5}),"") ->  | W21: =IF(Musique!D21<>"",SUM(T21:V21),"") ->  | X21: =IF(L21<>"",1-SUMPRODUCT((COUNTIF(L21:Q21,{1,2,3,4,5,0})=0)*{10,5,4,3,2,1})/26,"") ->  | Y21: =IF(L21<>"",1-SUMPRODUCT((COUNTIF(L21:Q21,{1,2,3,4,5,0})=0)*{1,2,3,4,5,10})/26,"") ->  | AB21: =IF(S21<>"",COUNTIFS(Px,S21)-COUNTIFS(Px,S21,$AA$2:$AA$21,"<="&AA21)+COUNTIFS($S$2:S21,S21,$AA$2:AA21,AA21),"") ->  | AG21: =IF(Musique!D21="","",COUNTIF(L21:Q21,">4")+COUNTIF(L21:Q21,"=0")) ->  | AH21: =Musique!R21 ->  | AJ21: =IF(K21<>"",(COUNTIF(L21:Q21,">4")+COUNTIF(L21:Q21,"=0")&Musique!R21),"") ->  | AS21: 0 | BR21: 45 | BS21: 4 5 | BT21: FAV | BU21: AUTRE | BV21: AUTRE | BW21: 122
A22: 20 | B22: =IF(Musique!D21<>"",COUNTIF(L21:Q21,$B$2),"") ->  | C22: =IF(Musique!D21<>"",COUNTIF(L21:Q21,$C$2),"") ->  | D22: =IF(Musique!D21<>"",COUNTIF(L21:Q21,$D$2),"") ->  | E22: =IF(Musique!D21<>"",COUNTIF(L21:Q21,$E$2),"") ->  | F22: =IF(Musique!D21<>"",COUNTIF(L21:Q21,$F$2),"") ->  | G22: =IF(Musique!D21<>"",COUNTIF(L21:Q21,$G$2),"") ->  | AV22: Total : | AW22: =IF(AV2<>"",SUM(AW2:AW21),"") ->  | BR22: 50 | BS22: 0 5 | BT22: FBB | BU22: FAVORI BANQUIER | BV22: AUTRE | BW22: 36
Q23: Arrivée : | BR23: 120 | BS23: 0 1 2 | BT23: OFB_1 | BU23: OUTSIDER DÉGRADÉ | BV23: MINORANT | BW23: 24
BR24: 123 | BS24: 1 2 3 | BT24: OGO_2 | BU24: GROS OUTSIDERS | BV24: MAJORANT | BW24: 96
A25: LS | V25: R | W25: C | BR25: 124 | BS25: 1 2 4 | BT25: ODE_1 | BU25: OUTSIDER DÉGRADÉ | BV25: MINORANT | BW25: 87
A26: 1 | B26: =IF(Musique!F2="","",IF(Musique!F2=0,10,Musique!F2)) -> 4 | C26: =IF(Musique!G2="","",IF(Musique!G2=0,10,Musique!G2)) -> 10 | D26: =IF(Musique!H2="","",IF(Musique!H2=0,10,Musique!H2)) -> 4 | E26: =IF(Musique!I2="","",IF(Musique!I2=0,10,Musique!I2)) -> 10 | F26: =IF(Musique!J2="","",IF(Musique!J2=0,10,Musique!J2)) -> 4 | G26: =IF(Musique!K2="","",IF(Musique!K2=0,10,Musique!K2)) -> 2 | H26: =IF(B26="","",COUNTIF(B26:G26,"<=5")) -> 4 | I26: =IF(B26="","",COUNTIF(B26:G26,"=1")) -> 0 | Q26: Date : | BR26: 125 | BS26: 1 2 5 | BT26: ODE_3 | BU26: OUTSIDER DÉGRADÉ | BW26: 112
A27: 2 | B27: =IF(Musique!F3="","",IF(Musique!F3=0,10,Musique!F3)) -> 10 | C27: =IF(Musique!G3="","",IF(Musique!G3=0,10,Musique!G3)) -> 1 | D27: =IF(Musique!H3="","",IF(Musique!H3=0,10,Musique!H3)) -> 9 | E27: =IF(Musique!I3="","",IF(Musique!I3=0,10,Musique!I3)) -> 7 | F27: =IF(Musique!J3="","",IF(Musique!J3=0,10,Musique!J3)) -> 3 | G27: =IF(Musique!K3="","",IF(Musique!K3=0,10,Musique!K3)) -> 3 | H27: =IF(B27="","",COUNTIF(B27:G27,"<=5")) -> 3 | I27: 1 | BR27: 130 | BS27: 0 1 3 | BT27: OFB_1 | BU27: OUTSIDERS FAVORIS | BW27: 35
A28: 3 | B28: =IF(Musique!F4="","",IF(Musique!F4=0,10,Musique!F4)) -> 7 | C28: =IF(Musique!G4="","",IF(Musique!G4=0,10,Musique!G4)) -> 5 | D28: =IF(Musique!H4="","",IF(Musique!H4=0,10,Musique!H4)) -> 10 | E28: =IF(Musique!I4="","",IF(Musique!I4=0,10,Musique!I4)) -> 3 | F28: =IF(Musique!J4="","",IF(Musique!J4=0,10,Musique!J4)) -> 6 | G28: =IF(Musique!K4="","",IF(Musique!K4=0,10,Musique!K4)) -> 4 | H28: 3 | I28: 0 | BR28: 134 | BS28: 1 3 4 | BT28: ODE_1 | BU28: OUTSIDER DÉGRADÉ | BV28: MINORANT | BW28: 83
A29: 4 | B29: =IF(Musique!F5="","",IF(Musique!F5=0,10,Musique!F5)) -> 3 | C29: =IF(Musique!G5="","",IF(Musique!G5=0,10,Musique!G5)) -> 2 | D29: =IF(Musique!H5="","",IF(Musique!H5=0,10,Musique!H5)) -> 10 | E29: =IF(Musique!I5="","",IF(Musique!I5=0,10,Musique!I5)) -> 2 | F29: =IF(Musique!J5="","",IF(Musique!J5=0,10,Musique!J5)) -> 10 | G29: =IF(Musique!K5="","",IF(Musique!K5=0,10,Musique!K5)) -> 6 | H29: 3 | I29: 0 | BR29: 135 | BS29: 1 3 5 | BT29: ODE_3 | BU29: OUTSIDER DÉGRADÉ | BW29: 102
A30: 5 | B30: =IF(Musique!F6="","",IF(Musique!F6=0,10,Musique!F6)) -> 1 | C30: =IF(Musique!G6="","",IF(Musique!G6=0,10,Musique!G6)) -> 10 | D30: =IF(Musique!H6="","",IF(Musique!H6=0,10,Musique!H6)) -> 7 | E30: =IF(Musique!I6="","",IF(Musique!I6=0,10,Musique!I6)) -> 10 | F30: =IF(Musique!J6="","",IF(Musique!J6=0,10,Musique!J6)) -> 7 | G30: =IF(Musique!K6="","",IF(Musique!K6=0,10,Musique!K6)) -> 1 | H30: 2 | I30: 2 | BR30: 140 | BS30: 0 1 4 | BT30: OFB_1 | BU30: OUTSIDERS FAVORIS | BW30: 37
A31: 6 | B31: =IF(Musique!F7="","",IF(Musique!F7=0,10,Musique!F7)) -> 2 | C31: =IF(Musique!G7="","",IF(Musique!G7=0,10,Musique!G7)) -> 10 | D31: =IF(Musique!H7="","",IF(Musique!H7=0,10,Musique!H7)) -> 6 | E31: =IF(Musique!I7="","",IF(Musique!I7=0,10,Musique!I7)) -> 10 | F31: =IF(Musique!J7="","",IF(Musique!J7=0,10,Musique!J7)) -> 7 | G31: =IF(Musique!K7="","",IF(Musique!K7=0,10,Musique!K7)) -> 9 | H31: 1 | I31: 0 | BR31: 145 | BS31: 1 4 5 | BT31: ODE_3 | BU31: OUTSIDER DÉGRADÉ | BW31: 143
A32: 7 | B32: =IF(Musique!F8="","",IF(Musique!F8=0,10,Musique!F8)) -> 10 | C32: =IF(Musique!G8="","",IF(Musique!G8=0,10,Musique!G8)) -> 1 | D32: =IF(Musique!H8="","",IF(Musique!H8=0,10,Musique!H8)) -> 10 | E32: =IF(Musique!I8="","",IF(Musique!I8=0,10,Musique!I8)) -> 3 | F32: =IF(Musique!J8="","",IF(Musique!J8=0,10,Musique!J8)) -> 10 | G32: =IF(Musique!K8="","",IF(Musique!K8=0,10,Musique!K8)) -> 6 | H32: 2 | I32: 1 | BR32: 150 | BS32: 0 1 5 | BT32: OFB_1 | BU32: OUTSIDERS FAVORIS | BW32: 50
A33: 8 | B33: =IF(Musique!F9="","",IF(Musique!F9=0,10,Musique!F9)) -> 10 | C33: =IF(Musique!G9="","",IF(Musique!G9=0,10,Musique!G9)) -> 10 | D33: =IF(Musique!H9="","",IF(Musique!H9=0,10,Musique!H9)) -> 1 | E33: =IF(Musique!I9="","",IF(Musique!I9=0,10,Musique!I9)) -> 2 | F33: =IF(Musique!J9="","",IF(Musique!J9=0,10,Musique!J9)) -> 10 | G33: =IF(Musique!K9="","",IF(Musique!K9=0,10,Musique!K9)) -> 4 | H33: 3 | I33: 1 | BR33: 230 | BS33: 0 2 3 | BT33: FBB | BU33: FAVORI BANQUIER | BV33: HAUTE | BW33: 26
A34: 9 | B34: =IF(Musique!F10="","",IF(Musique!F10=0,10,Musique!F10)) -> 2 | C34: =IF(Musique!G10="","",IF(Musique!G10=0,10,Musique!G10)) -> 1 | D34: =IF(Musique!H10="","",IF(Musique!H10=0,10,Musique!H10)) -> 10 | E34: =IF(Musique!I10="","",IF(Musique!I10=0,10,Musique!I10)) -> 10 | F34: =IF(Musique!J10="","",IF(Musique!J10=0,10,Musique!J10)) -> 3 | G34: =IF(Musique!K10="","",IF(Musique!K10=0,10,Musique!K10)) -> 1 | H34: 4 | I34: 2 | BR34: 234 | BS34: 2 3 4 | BT34: FGO_2 | BU34: FAVORI GROS OUTSIDERS | BV34: MÉDIUM | BW34: 95
A35: 10 | B35: =IF(Musique!F11="","",IF(Musique!F11=0,10,Musique!F11)) -> 4 | C35: =IF(Musique!G11="","",IF(Musique!G11=0,10,Musique!G11)) -> 3 | D35: =IF(Musique!H11="","",IF(Musique!H11=0,10,Musique!H11)) -> 6 | E35: =IF(Musique!I11="","",IF(Musique!I11=0,10,Musique!I11)) -> 10 | F35: =IF(Musique!J11="","",IF(Musique!J11=0,10,Musique!J11)) -> 4 | G35: =IF(Musique!K11="","",IF(Musique!K11=0,10,Musique!K11)) -> 8 | H35: 3 | I35: 0 | BR35: 235 | BS35: 2 3 5 | BT35: FGO_2 | BU35: FAVORI GROS OUTSIDERS | BV35: MÉDIUM | BW35: 117
A36: 11 | B36: =IF(Musique!F12="","",IF(Musique!F12=0,10,Musique!F12)) ->  | C36: =IF(Musique!G12="","",IF(Musique!G12=0,10,Musique!G12)) ->  | D36: =IF(Musique!H12="","",IF(Musique!H12=0,10,Musique!H12)) ->  | E36: =IF(Musique!I12="","",IF(Musique!I12=0,10,Musique!I12)) ->  | F36: =IF(Musique!J12="","",IF(Musique!J12=0,10,Musique!J12)) ->  | G36: =IF(Musique!K12="","",IF(Musique!K12=0,10,Musique!K12)) ->  | BR36: 240 | BS36: 0 2 4 | BT36: FBB | BU36: FAVORI BANQUIER | BV36: HAUTE | BW36: 56
A37: 12 | B37: =IF(Musique!F13="","",IF(Musique!F13=0,10,Musique!F13)) ->  | C37: =IF(Musique!G13="","",IF(Musique!G13=0,10,Musique!G13)) ->  | D37: =IF(Musique!H13="","",IF(Musique!H13=0,10,Musique!H13)) ->  | E37: =IF(Musique!I13="","",IF(Musique!I13=0,10,Musique!I13)) ->  | F37: =IF(Musique!J13="","",IF(Musique!J13=0,10,Musique!J13)) ->  | G37: =IF(Musique!K13="","",IF(Musique!K13=0,10,Musique!K13)) ->  | BR37: 245 | BS37: 2 4 5 | BT37: FOF_2 | BU37: FAVORI SUR OUT OF FORM | BV37: MÉDIUM | BW37: 153
A38: 13 | B38: =IF(Musique!F14="","",IF(Musique!F14=0,10,Musique!F14)) ->  | C38: =IF(Musique!G14="","",IF(Musique!G14=0,10,Musique!G14)) ->  | D38: =IF(Musique!H14="","",IF(Musique!H14=0,10,Musique!H14)) ->  | E38: =IF(Musique!I14="","",IF(Musique!I14=0,10,Musique!I14)) ->  | F38: =IF(Musique!J14="","",IF(Musique!J14=0,10,Musique!J14)) ->  | G38: =IF(Musique!K14="","",IF(Musique!K14=0,10,Musique!K14)) ->  | BR38: 250 | BS38: 0 2 5 | BT38: FBB | BU38: FAVORI BANQUIER | BW38: 56
A39: 14 | B39: =IF(Musique!F15="","",IF(Musique!F15=0,10,Musique!F15)) ->  | C39: =IF(Musique!G15="","",IF(Musique!G15=0,10,Musique!G15)) ->  | D39: =IF(Musique!H15="","",IF(Musique!H15=0,10,Musique!H15)) ->  | E39: =IF(Musique!I15="","",IF(Musique!I15=0,10,Musique!I15)) ->  | F39: =IF(Musique!J15="","",IF(Musique!J15=0,10,Musique!J15)) ->  | G39: =IF(Musique!K15="","",IF(Musique!K15=0,10,Musique!K15)) ->  | BR39: 340 | BS39: 0 3 4 | BT39: FBB | BU39: FAVORI BANQUIER | BW39: 58
A40: 15 | B40: =IF(Musique!F16="","",IF(Musique!F16=0,10,Musique!F16)) ->  | C40: =IF(Musique!G16="","",IF(Musique!G16=0,10,Musique!G16)) ->  | D40: =IF(Musique!H16="","",IF(Musique!H16=0,10,Musique!H16)) ->  | E40: =IF(Musique!I16="","",IF(Musique!I16=0,10,Musique!I16)) ->  | F40: =IF(Musique!J16="","",IF(Musique!J16=0,10,Musique!J16)) ->  | G40: =IF(Musique!K16="","",IF(Musique!K16=0,10,Musique!K16)) ->  | BR40: 345 | BS40: 3 4 5 | BT40: FAV | BU40: FAVORI MAJORANT | BV40: HAUTE | BW40: 220
A41: 16 | B41: =IF(Musique!F17="","",IF(Musique!F17=0,10,Musique!F17)) ->  | C41: =IF(Musique!G17="","",IF(Musique!G17=0,10,Musique!G17)) ->  | D41: =IF(Musique!H17="","",IF(Musique!H17=0,10,Musique!H17)) ->  | E41: =IF(Musique!I17="","",IF(Musique!I17=0,10,Musique!I17)) ->  | F41: =IF(Musique!J17="","",IF(Musique!J17=0,10,Musique!J17)) ->  | G41: =IF(Musique!K17="","",IF(Musique!K17=0,10,Musique!K17)) ->  | BR41: 350 | BS41: 0 3 5 | BT41: FBB | BU41: FAVORI BANQUIER | BV41: MAJORANT | BW41: 68
A42: 17 | B42: =IF(Musique!F18="","",IF(Musique!F18=0,10,Musique!F18)) ->  | C42: =IF(Musique!G18="","",IF(Musique!G18=0,10,Musique!G18)) ->  | D42: =IF(Musique!H18="","",IF(Musique!H18=0,10,Musique!H18)) ->  | E42: =IF(Musique!I18="","",IF(Musique!I18=0,10,Musique!I18)) ->  | F42: =IF(Musique!J18="","",IF(Musique!J18=0,10,Musique!J18)) ->  | G42: =IF(Musique!K18="","",IF(Musique!K18=0,10,Musique!K18)) ->  | BR42: 450 | BS42: 0 4 5 | BT42: FBB | BU42: FAVORI BANQUIER | BV42: AUTRE | BW42: 118
A43: 18 | B43: =IF(Musique!F19="","",IF(Musique!F19=0,10,Musique!F19)) ->  | C43: =IF(Musique!G19="","",IF(Musique!G19=0,10,Musique!G19)) ->  | D43: =IF(Musique!H19="","",IF(Musique!H19=0,10,Musique!H19)) ->  | E43: =IF(Musique!I19="","",IF(Musique!I19=0,10,Musique!I19)) ->  | F43: =IF(Musique!J19="","",IF(Musique!J19=0,10,Musique!J19)) ->  | G43: =IF(Musique!K19="","",IF(Musique!K19=0,10,Musique!K19)) ->  | BR43: 1230 | BS43: 0 1 2 3 | BT43: OGO_2 | BU43: GROS OUTSIDERS | BW43: 96
A44: 19 | B44: =IF(Musique!F20="","",IF(Musique!F20=0,10,Musique!F20)) ->  | C44: =IF(Musique!G20="","",IF(Musique!G20=0,10,Musique!G20)) ->  | D44: =IF(Musique!H20="","",IF(Musique!H20=0,10,Musique!H20)) ->  | E44: =IF(Musique!I20="","",IF(Musique!I20=0,10,Musique!I20)) ->  | F44: =IF(Musique!J20="","",IF(Musique!J20=0,10,Musique!J20)) ->  | G44: =IF(Musique!K20="","",IF(Musique!K20=0,10,Musique!K20)) ->  | BR44: 1234 | BS44: 1 2 3 4 | BT44: OGO_1 | BU44: GROS OUTSIDERS | BW44: 124
A45: 20 | B45: =IF(Musique!F21="","",IF(Musique!F21=0,10,Musique!F21)) ->  | C45: =IF(Musique!G21="","",IF(Musique!G21=0,10,Musique!G21)) ->  | D45: =IF(Musique!H21="","",IF(Musique!H21=0,10,Musique!H21)) ->  | E45: =IF(Musique!I21="","",IF(Musique!I21=0,10,Musique!I21)) ->  | F45: =IF(Musique!J21="","",IF(Musique!J21=0,10,Musique!J21)) ->  | G45: =IF(Musique!K21="","",IF(Musique!K21=0,10,Musique!K21)) ->  | BR45: 1235 | BS45: 1 2 3 5 | BT45: ODE_2 | BU45: OUTSIDER DÉGRADÉ | BV45: MAJORANT | BW45: 129
BR46: 1240 | BS46: 0 1 2 4 | BT46: OFB_1 | BU46: OUTSIDER DÉGRADÉ | BV46: MINORANT | BW46: 25
BR47: 1245 | BS47: 1 2 4 5 | BT47: ODE_1 | BU47: AUTRE | BV47: AUTRE | BW47: 126
A48: SF | BR48: 1250 | BS48: 0 1 2 5 | BT48: OFB_1 | BU48: OUTSIDERS FAVORIS | BW48: 46
A49: 1 | B49: =IF(L2>4,0,L2) -> 4 | C49: =IF(M2>4,0,M2) -> 0 | D49: =IF(N2>4,0,N2) -> 4 | E49: =IF(O2>4,0,O2) -> 0 | F49: =IF(P2>4,0,P2) -> 4 | G49: =IF(Q2>4,0,Q2) -> 2 | H49: =B49&C49 -> 40 | I49: =INDEX($C$71:$D$95,MATCH(VALUE(H49),$C$71:$C$95,0),2) -> 3 | BR49: 1340 | BS49: 0 1 3 4 | BT49: OFB_1 | BU49: OUTSIDERS FAVORIS | BV49: AUTRE | BW49: 31
A50: 2 | B50: 0 | C50: 1 | D50: 0 | E50: 0 | F50: 3 | G50: 3 | H50: =B50&C50 -> 01 | I50: =INDEX($C$71:$D$95,MATCH(VALUE(H50),$C$71:$C$95,0),2) -> 7 | BR50: 1345 | BS50: 1 3 4 5 | BT50: ODE_1 | BU50: OUTSIDER DÉGRADÉ | BV50: AUTRE | BW50: 151
A51: 3 | B51: 0 | C51: 0 | D51: 0 | E51: 3 | F51: 0 | G51: 4 | H51: 00 | I51: 0 | BR51: 1350 | BS51: 0 1 3 5 | BT51: OFB_1 | BU51: OUTSIDER DÉGRADÉ | BW51: 34
A52: 4 | B52: 3 | C52: 2 | D52: 0 | E52: 2 | F52: 0 | G52: 0 | H52: 32 | I52: 7 | BR52: 1450 | BS52: 0 1 4 5 | BT52: OFB_1 | BU52: OUTSIDER DÉGRADÉ | BW52: 57
A53: 5 | B53: 1 | C53: 0 | D53: 0 | E53: 0 | F53: 0 | G53: 1 | H53: 10 | I53: 7 | BR53: 2340 | BS53: 0 2 3 4 | BT53: FBB | BU53: FAVORI BANQUIER | BV53: HAUTE | BW53: 118
A54: 6 | B54: 2 | C54: 0 | D54: 0 | E54: 0 | F54: 0 | G54: 0 | H54: 20 | I54: 5 | BR54: 2345 | BS54: 2 3 4 5 | BT54: FGO_2 | BU54: FAVORI GROS OUTSIDERS | BV54: MÉDIUM | BW54: 224
A55: 7 | B55: 0 | C55: 1 | D55: 0 | E55: 3 | F55: 0 | G55: 0 | H55: 01 | I55: 7 | BR55: 2350 | BS55: 0 2 3 5 | BT55: FBB | BU55: FAVORI BANQUIER | BW55: 50
A56: 8 | B56: 0 | C56: 0 | D56: 1 | E56: 2 | F56: 0 | G56: 4 | H56: 00 | I56: 0 | BR56: 2450 | BS56: 0 2 4 5 | BT56: FBB | BU56: FAVORI BANQUIER | BW56: 58
A57: 9 | B57: 2 | C57: 1 | D57: 0 | E57: 0 | F57: 3 | G57: 1 | H57: 21 | I57: 9 | BR57: 3450 | BS57: 0 3 4 5 | BT57: FBB | BU57: FAVORI BANQUIER | BV57: AUTRE | BW57: 111
A58: 10 | B58: 4 | C58: 3 | D58: 0 | E58: 0 | F58: 4 | G58: 0 | H58: 43 | I58: 5 | BR58: 12340 | BS58: 0 1 2 3 4 | BT58: OGB | BU58: GROS OUTSIDERS | BW58: 48
A59: 11 | B59: 0 | C59: 0 | D59: 0 | E59: 0 | F59: 0 | G59: 0 | H59: 00 | I59: 0 | BR59: 12345 | BS59: 1 2 3 4 5 | BT59: OGO_0 | BU59: GROS OUTSIDERS | BV59: MAJORANT | BW59: 196
A60: 12 | B60: 0 | C60: 0 | D60: 0 | E60: 0 | F60: 0 | G60: 0 | H60: 00 | I60: 0 | BR60: 12350 | BS60: 0 1 2 3 5 | BT60: OGB | BU60: FAVORI BANQUIER | BW60: 50
A61: 13 | B61: 0 | C61: 0 | D61: 0 | E61: 0 | F61: 0 | G61: 0 | H61: 00 | I61: 0 | BR61: 12450 | BS61: 0 1 2 4 5 | BT61: OFB_1 | BU61: OUTSIDERS FAVORIS | BW61: 48
A62: 14 | B62: 0 | C62: 0 | D62: 0 | E62: 0 | F62: 0 | G62: 0 | H62: 00 | I62: 0 | BR62: 13450 | BS62: 0 1 3 4 5 | BT62: OFB_1 | BU62: OUTSIDER DÉGRADÉ | BV62: MINORANT | BW62: 66
A63: 15 | B63: 0 | C63: 0 | D63: 0 | E63: 0 | F63: 0 | G63: 0 | H63: 00 | I63: 0 | BR63: 23450 | BS63: 0 2 3 4 5 | BT63: FBB | BU63: FAVORI BANQUIER | BV63: HAUTE | BW63: 104
A64: 16 | B64: 0 | C64: 0 | D64: 0 | E64: 0 | F64: 0 | G64: 0 | H64: 00 | I64: 0 | BR64: 123450 | BS64: 0 1 2 3 4 5 | BT64: OGO_0 | BU64: GROS OUTSIDERS | BV64: HAUTE | BW64: 142
A65: 17 | B65: 0 | C65: 0 | D65: 0 | E65: 0 | F65: 0 | G65: 0 | H65: 00 | I65: 0
A66: 18 | B66: 0 | C66: 0 | D66: 0 | E66: 0 | F66: 0 | G66: 0 | H66: 00 | I66: 0
A67: 19 | B67: 0 | C67: 0 | D67: 0 | E67: 0 | F67: 0 | G67: 0 | H67: 00 | I67: 0
A68: 20 | B68: 0 | C68: 0 | D68: 0 | E68: 0 | F68: 0 | G68: 0 | H68: 00 | I68: 0
B71: 1 | C71: 11 | D71: 10
B72: 2 | C72: 21 | D72: 9
B73: 3 | C73: 12 | D73: 9
B74: 4 | C74: 31 | D74: 8
B75: 5 | C75: 13 | D75: 8
B76: 6 | C76: 41 | D76: 8
B77: 7 | C77: 14 | D77: 8
B78: 8 | C78: 22 | D78: 8
B79: 9 | C79: 1 | D79: 7
B80: 10 | C80: 10 | D80: 7
B81: 11 | C81: 32 | D81: 7
B82: 12 | C82: 23 | D82: 7
B83: 13 | C83: 42 | D83: 6
B84: 14 | C84: 24 | D84: 6
B85: 15 | C85: 33 | D85: 6
B86: 16 | C86: 2 | D86: 5
B87: 17 | C87: 20 | D87: 5
B88: 18 | C88: 43 | D88: 5
B89: 19 | C89: 34 | D89: 5
B90: 20 | C90: 3 | D90: 4
B91: 21 | C91: 30 | D91: 4
B92: 22 | C92: 44 | D92: 4
B93: 23 | C93: 4 | D93: 3
B94: 24 | C94: 40 | D94: 3
B95: 25 | C95: 0 | D95: 0
B97: =IF(L2="","",IF(L2=0,10,L2)) -> 4 | C97: 10 | D97: 4 | E97: 10 | F97: 4 | G97: 2
B98: =IF(L3="","",IF(L3=0,10,L3)) -> 10 | C98: =IF(M3="","",IF(M3=0,10,M3)) -> 1 | D98: =IF(N3="","",IF(N3=0,10,N3)) -> 9 | E98: =IF(O3="","",IF(O3=0,10,O3)) -> 7 | F98: =IF(P3="","",IF(P3=0,10,P3)) -> 3 | G98: =IF(Q3="","",IF(Q3=0,10,Q3)) -> 3
B99: 7 | C99: 5 | D99: 10 | E99: 3 | F99: 6 | G99: 4
B100: 3 | C100: 2 | D100: 10 | E100: 2 | F100: 10 | G100: 6
B101: 1 | C101: 10 | D101: 7 | E101: 10 | F101: 7 | G101: 1
B102: 2 | C102: 10 | D102: 6 | E102: 10 | F102: 7 | G102: 9
B103: 10 | C103: 1 | D103: 10 | E103: 3 | F103: 10 | G103: 6
B104: 10 | C104: 10 | D104: 1 | E104: 2 | F104: 10 | G104: 4
B105: 2 | C105: 1 | D105: 10 | E105: 10 | F105: 3 | G105: 1
B106: 4 | C106: 3 | D106: 6 | E106: 10 | F106: 4 | G106: 8
B112: =IF(L17="","",IF(L17=0,10,L17)) -> 
B118: Vgap
B119: 0 | C119: Très bon_1
B120: 1 | C120: Très bon_2
B121: 2 | C121: Très bon_3
B122: 3 | C122: Semi-tocard_1
B123: 4 | C123: Semi-tocard_2
B124: 5 | C124: Tocard_1
B125: 6 | C125: Tocard_2

Sheet à corriger
B1: Correspondances FHC | G1: GapForm | H1: Bin | I1: Bin | J1: Correspondances FHC | O1: GapForm | P1: Bin | R1: Correspondances FHC | W1: GapForm | X1: Bin
B2: 0 | C2: 0 | D2: FBS | E2: CAS SPÉCIAL | F2: CAS SPÉCIAL | G2: 17 | H2: 10
B3: 1 | C3: 1 | D3: OFV | E3: OUTSIDER FAVORIS | F3: BANQUIER | G3: 40 | H3: 11 | J3: 1 | K3: 1 | L3: OFB_2 | M3: OUTSIDER FAVORIS | N3: BANQUIER | O3: 31 | P3: 1
B4: 2 | C4: 2 | D4: FOF_1 | E4: FAVORI SUR OUT OF FORM | F4: MINORANT | G4: 23 | H4: 2 | J4: 2 | K4: 2 | L4: FBB | M4: FAVORI | N4: MINORANT | O4: 31 | P4: 12
B5: 3 | C5: 3 | D5: FAV | E5: FAVORI | F5: AUTRE | G5: 22 | H5: 3 | J5: 3 | K5: 3 | L5: FBB | M5: FAVORI | N5: AUTRE | O5: 56 | P5: 13
B6: 4 | C6: 4 | D6: FAV | E6: FAVORI | F6: AUTRE | G6: 35 | H6: 4 | J6: 4 | K6: 4 | L6: FBB | M6: FAVORI | N6: AUTRE | O6: 57 | P6: 14
B7: 5 | C7: 5 | D7: FBB | E7: FAVORI | F7: AUTRE | G7: 78 | H7: 15 | I7: 17 | J7: 5 | K7: 5 | L7: FAV | M7: FAVORI | N7: AUTRE | O7: 44 | P7: 5
B8: 10 | C8: 0 1 | D8: OFV | E8: OUTSIDERS FAVORIS | G8: 40 | H8: 11
B9: 12 | C9: 1 2 | D9: OFV | E9: OUTSIDERS FAVORIS | F9: MÉDIUM | G9: 58 | H9: 3 | J9: 12 | K9: 12 | L9: OFB_1 | P9: 24 | Q9: 13
B10: 13 | C10: 1 3 | D10: OFB-1 | E10: OUTSIDERS FAVORIS | G10: 35 | H10: 14 | J10: 13 | K10: 1 3 | L10: OFV | M10: OUTSIDERS FAVORIS | O10: 56 | P10: 4 | R10: 13 | S10: 1 3 | T10: OFV | U10: OUTSIDERS FAVORIS | W10: 53 | X10: 4
B11: 14 | C11: 1 4 | D11: OFV | E11: OUTSIDERS FAVORIS | F11: AUTRE | G11: 84 | H11: 5 | J11: 14 | K11: 1 4 | L11: OFB_1 | M11: OUTSIDERS FAVORIS | N11: AUTRE | O11: 37 | P11: 6 | Q11: 15
B12: 15 | C12: 1 5 | D12: FBB | E12: OUTSIDERS FAVORIS | G12: 78 | H12: 6 | J12: 15 | K12: 1 5 | L12: OFV | M12: OUTSIDERS FAVORIS | O12: 98 | P12: 6 | R12: 15 | S12: 1 5 | T12: OFB_1 | U12: OUTSIDERS FAVORIS | W12: 50 | X12: 16
B13: 20 | C13: 0 2 | D13: FBB | E13: FAVORI BANQUIER | G13: 31 | H13: 12
B14: 23 | C14: 2 3 | D14: FBB | E14: FAVORI GROS OUTSIDERS | F14: MINORANT | G14: 26 | H14: 15 | J14: 23 | K14: 2 3 | L14: FGO_1 | M14: FAVORI GROS OUTSIDERS | N14: MINORANT | O14: 69 | P14: 5
B15: 24 | C15: 2 4 | D15: FBB | E15: FAVORI SUR OUT OF FORM | F15: MÉDIUM | G15: 39 | H15: 16 | J15: 24 | K15: 2 4 | L15: FOF_2 | M15: FAVORI SUR OUT OF FORM | N15: MÉDIUM | O15: 63 | P15: 6
B16: 25 | C16: 2 5 | D16: FBB | E16: FAVORI SUR OUT OF FORM | F16: MÉDIUM | G16: 56 | H16: 17 | J16: 25 | K16: 2 5 | L16: FOF_2 | M16: FAVORI SUR OUT OF FORM | N16: MÉDIUM | O16: 88 | P16: 7
B17: 30 | C17: 0 3 | D17: FBB | E17: FAVORI BANQUIER | F17: AUTRE | G17: 56 | H17: 13
B18: 34 | C18: 3 4 | D18: FAV | E18: FAVORI | F18: AUTRE | G18: 96 | H18: 7 | J18: 34 | K18: 3 4 | L18: FBB | M18: FAVORI | N18: AUTRE | O18: 58 | P18: 17
B19: 35 | C19: 3 5 | D19: FAV | E19: FAVORI | F19: AUTRE | G19: 135 | H19: 8 | J19: 35 | K19: 3 5 | L19: FBB | M19: FAVORI | N19: AUTRE | O19: 68 | P19: 18 | Q19: 17
B20: 40 | C20: 0 4 | D20: FBB | E20: FAVORI BANQUIER | F20: AUTRE | G20: 57 | H20: 14
B21: 45 | C21: 4 5 | D21: FBB | E21: AUTRE | F21: AUTRE | G21: 118 | H21: 19 | J21: 45 | K21: 4 5 | L21: FAV | M21: AUTRE | N21: AUTRE | O21: 122 | P21: 9
B22: 50 | C22: 0 5 | D22: FBB | E22: FAVORI BANQUIER | F22: AUTRE | G22: 118 | H22: 19 | I22: 9 | J22: 50 | K22: 0 5 | L22: FBB | M22: FAVORI BANQUIER | N22: AUTRE | O22: 78 | P22: 15
B23: 120 | C23: 0 1 2 | D23: OFB_1 | E23: OUTSIDER DÉGRADÉ | F23: MINORANT | G23: 24 | H23: 13
B24: 123 | C24: 1 2 3 | D24: OGO_2 | E24: GROS OUTSIDERS | F24: MAJORANT | G24: 96 | H24: 6 | J24: 123 | K24: 1 2 3 | L24: OGO_2 | M24: GROS OUTSIDERS | N24: MAJORANT | O24: 32 | P24: 16
B25: 124 | C25: 1 2 4 | D25: OFB-1 | E25: OUTSIDER DÉGRADÉ | F25: MINORANT | G25: 25 | H25: 17 | J25: 124 | K25: 1 2 4 | L25: ODE_1 | M25: OUTSIDER DÉGRADÉ | N25: MINORANT | O25: 87 | P25: 7
B26: 125 | C26: 1 2 5 | D26: ODE_3 | E26: OUTSIDER DÉGRADÉ | G26: 112 | H26: 8 | J26: 125 | K26: 1 2 5 | L26: OFB_1 | M26: OUTSIDER DÉGRADÉ | O26: 46 | P26: 18
B27: 130 | C27: 0 1 3 | D27: OFB_1 | E27: OUTSIDERS FAVORIS | G27: 35
B28: 134 | C28: 1 3 4 | D28: ODE_1 | E28: OUTSIDER DÉGRADÉ | F28: MINORANT | G28: 83 | H28: 8 | J28: 134 | K28: 1 3 4 | L28: OFB_1 | M28: OUTSIDER DÉGRADÉ | N28: MINORANT | O28: 31 | P28: 18
B29: 135 | C29: 1 3 5 | D29: ODE_3 | E29: OUTSIDER DÉGRADÉ | G29: 102 | H29: 9 | J29: 135 | K29: 1 3 5 | L29: OFB_1 | M29: OUTSIDER DÉGRADÉ | O29: 34 | P29: 19
B30: 140 | C30: 0 1 4 | D30: OFB_1 | E30: OUTSIDERS FAVORIS | G30: 37 | H30: 15
B31: 145 | C31: 1 4 5 | D31: ODE_3 | E31: OUTSIDER DÉGRADÉ | G31: 143 | H31: 10 | J31: 145 | K31: 1 4 5 | L31: OFB_1 | M31: OUTSIDER DÉGRADÉ | O31: 57 | P31: 20
B32: 150 | C32: 0 1 5 | D32: OFB_1 | E32: OUTSIDERS FAVORIS | G32: 50 | H32: 16
B33: 230 | C33: 0 2 3 | D33: FBB | E33: FAVORI BANQUIER | F33: HAUTE | G33: 26
B34: 234 | C34: 2 3 4 | D34: FGO_2 | E34: FAVORI GROS OUTSIDERS | F34: MÉDIUM | G34: 95 | H34: 9 | J34: 234 | K34: 2 3 4 | L34: FBB | M34: FAVORI GROS OUTSIDERS | N34: MÉDIUM | O34: 36 | P34: 19
B35: 235 | C35: 2 3 5 | D35: FGO_2 | E35: FAVORI GROS OUTSIDERS | F35: MÉDIUM | G35: 117 | H35: 10 | J35: 235 | K35: 2 3 5 | L35: FBB | M35: FAVORI GROS OUTSIDERS | N35: MÉDIUM | O35: 50 | P35: 20
B36: 240 | C36: 0 2 4 | D36: FBB | E36: FAVORI BANQUIER | F36: HAUTE | G36: 39 | H36: 16
B37: 245 | C37: 2 4 5 | D37: FOF_2 | E37: FAVORI SUR OUT OF FORM | F37: MÉDIUM | G37: 153 | H37: 11 | J37: 245 | K37: 2 4 5 | L37: FBB | M37: FAVORI SUR OUT OF FORM | N37: MÉDIUM | O37: 58 | P37: 21
B38: 250 | C38: 0 2 5 | D38: FBB | E38: FAVORI BANQUIER | G38: 56
B39: 340 | C39: 0 3 4 | D39: FBB | E39: FAVORI BANQUIER | G39: 58 | H39: 17
B40: 345 | C40: 3 4 5 | D40: FAV | E40: FAVORI MAJORANT | F40: HAUTE | G40: 220 | H40: 12 | J40: 345 | K40: 3 4 5 | L40: FBB | M40: FAVORI MAJORANT | N40: HAUTE | O40: 111 | P40: 22
B41: 350 | C41: 0 3 5 | D41: FGO-2 | E41: FAVORI BANQUIER | F41: MAJORANT | G41: 224 | H41: 18
B42: 450 | C42: 0 4 5 | D42: FBB | E42: FAVORI BANQUIER | F42: AUTRE | G42: 118 | H42: 19
B43: 1230 | C43: 0 1 2 3 | D43: OGO_2 | E43: GROS OUTSIDERS | G43: 96
B44: 1234 | C44: 1 2 3 4 | D44: OGB | E44: GROS OUTSIDERS | G44: 48 | H44: 20 | J44: 1234 | K44: 1 2 3 4 | L44: OGO_1 | M44: GROS OUTSIDERS | O44: 124 | P44: 10
B45: 1235 | C45: 1 2 3 5 | D45: ODE_2 | E45: OUTSIDER DÉGRADÉ | F45: MAJORANT | G45: 129 | H45: 11
B46: 1240 | C46: 0 1 2 4 | D46: OFB_1 | E46: OUTSIDER DÉGRADÉ | F46: MINORANT | G46: 25
B47: 1245 | C47: 1 2 4 5 | D47: ODE_1 | E47: AUTRE | F47: AUTRE | G47: 126 | H47: 12 | J47: 1245 | K47: 1 2 4 5 | L47: OFB_1 | M47: AUTRE | N47: AUTRE | O47: 46 | P47: 22
B48: 1250 | C48: 0 1 2 5 | D48: OFB_1 | E48: OUTSIDERS FAVORIS | G48: 46
B49: 1340 | C49: 0 1 3 4 | D49: OFB_1 | E49: OUTSIDERS FAVORIS | F49: AUTRE | G49: 31
B50: 1345 | C50: 1 3 4 5 | D50: ODE_1 | E50: OUTSIDER DÉGRADÉ | F50: AUTRE | G50: 151 | H50: 13
B51: 1350 | C51: 0 1 3 5 | D51: OFB_1 | E51: OUTSIDER DÉGRADÉ | G51: 34 | H51: 19
B52: 1450 | C52: 0 1 4 5 | D52: OFB_1 | E52: OUTSIDER DÉGRADÉ | G52: 57
B53: 2340 | C53: 0 2 3 4 | D53: FBB | E53: FAVORI BANQUIER | F53: HAUTE | G53: 118
B54: 2345 | C54: 2 3 4 5 | D54: FGO_2 | E54: FAVORI GROS OUTSIDERS | F54: MÉDIUM | G54: 224 | H54: 14 | J54: 2345 | K54: 2 3 4 5 | L54: ???? | O54: ???? | P54: 24
B55: 2350 | C55: 0 2 3 5 | D55: FBB | E55: FAVORI BANQUIER | G55: 50
B56: 2450 | C56: 0 2 4 5 | D56: FBB | E56: FAVORI BANQUIER | G56: 58
B57: 3450 | C57: 0 3 4 5 | D57: FBB | E57: FAVORI BANQUIER | F57: AUTRE | G57: 111
B58: 12340 | C58: 0 1 2 3 4 | D58: OGB | E58: GROS OUTSIDERS | G58: 48
B59: 12345 | C59: 1 2 3 4 5 | D59: OGO_0 | E59: GROS OUTSIDERS | F59: MAJORANT | G59: 196 | H59: 15 | J59: 12345 | K59: 1 2 3 4 5 | L59: OGO_0 | M59: GROS OUTSIDERS | N59: MAJORANT | O59: 142 | P59: 25
B60: 12350 | C60: 0 1 2 3 5 | D60: OFB_1 | E60: FAVORI BANQUIER | G60: 50 | H60: 21
B61: 12450 | C61: 0 1 2 4 5 | D61: OFB_1 | E61: OUTSIDERS FAVORIS | G61: 48
B62: 13450 | C62: 0 1 3 4 5 | D62: OFB_1 | E62: OUTSIDER DÉGRADÉ | F62: MINORANT | G62: 66 | H62: 23
B63: 23450 | C63: 0 2 3 4 5 | D63: FBB | E63: FAVORI BANQUIER | F63: HAUTE | G63: 104 | H63: 24
B64: 123450 | C64: 0 1 2 3 4 5 | D64: OGO_0 | E64: GROS OUTSIDERS | F64: HAUTE | G64: 142 | H64: 25 | K64: SURTOUT CHEZ LES INEDIT
B65: RIEN | C65: RIEN | D65: FBS | G65: 17 | H65: 10 | J65: RIEN | K65: RIEN | L65: FBB | O65: 2 | P65: 0

Sheet Résumé
R1: =IF(SUM(AB2,X2,T2)=0,"",SUM(AB2,X2,T2)) -> 55
B2: N° | C2: Px | D2: Cote | E2: Sag | F2: FHC | G2: IdBF | H2: RH | I2: PW | J2: GV | K2: Bin | L2: GF | M2: LS | N2: N° | O2: Cheval | R2: Pi/Pi : | T2: =COUNTIF(R3:R150,"*") -> 36 | V2: Pi/Ps : | X2: =COUNTIF(V3:V150,"*") -> 18 | Z2: Ps/Ps : | AB2: =COUNTIF(Z3:Z150,"*") -> 1
B3: =N3 -> 3 | C3: =IF(Musique!B4<>"",Synthèse!$R4,"") -> 6 | D3: =IF(Musique!B4<>"",Synthèse!AV4,"") -> 0 | E3: =IF(Musique!B4<>"",Musique!C4,"") -> 2875 | F3: =IF(Musique!B4<>"",Synthèse!AC4,"") -> OFV | G3: =IF(Musique!B4<>"",Synthèse!AD4,"") -> 1 | H3: =IF(Musique!B4<>"",Synthèse!AA4,"") -> 30 | I3: =IF(Musique!B4<>"",Synthèse!AS4,"") -> 0 | J3: =IF(Musique!B4<>"",VALUE(Synthèse!$AJ4),"") -> 46 | K3: =IF(Musique!B4<>"",Synthèse!V4,"") -> 3 | L3: =Synthèse!AM4 -> 58 | M3: =IF(Musique!B4<>"",Synthèse!$T4,"") -> 110 | N3: =Synthèse!$K4 -> 3 | O3: =IF(Musique!B4<>"",Musique!B4,"") -> ALTARE SI | R3: 8*6 | S3: 51 + 52 | T3: FBB-FBB | U3: 103 | V3: 6*11 | W3: 52 + 30 | X3: FBB-OGO_2 | Y3: 82 | Z3: 11*3 | AA3: 30 + 10 | AB3: OGO_2-ODE_1 | AC3: 40
B4: 1 | C4: =IF(Musique!B2<>"",Synthèse!$R2,"") -> 6 | D4: =IF(Musique!B2<>"",Synthèse!AV2,"") -> 0 | E4: =IF(Musique!B2<>"",Musique!C2,"") -> 2875 | F4: =IF(Musique!B2<>"",Synthèse!AC2,"") -> ODE_3 | G4: =IF(Musique!B2<>"",Synthèse!AD2,"") -> 3 | H4: =IF(Musique!B2<>"",Synthèse!$AA$2,"") -> 40 | I4: =IF(Musique!B2<>"",Synthèse!AS2,"") -> 0 | J4: =IF(Musique!B2<>"",VALUE(Synthèse!$AJ2),"") -> 26 | K4: =IF(Musique!B2<>"",Synthèse!V2,"") -> 9 | L4: =Synthèse!AM2 -> 102 | M4: =IF(Musique!B2<>"",Synthèse!$T2,"") -> 114 | N4: =Synthèse!$K2 -> 1 | O4: =IF(Musique!B2<>"",Musique!B2,"") -> SAON SECRET | R4: 6*5 | S4: 52 + 51 | T4: FBB-FBB | U4: 103 | V4: 8*11 | W4: 51 + 30 | X4: FBB-OGO_2 | Y4: 81
B5: 10 | C5: =IF(Musique!B11<>"",Synthèse!$R11,"") -> 6 | D5: =IF(Musique!B11<>"",Synthèse!AV11,"") -> 0 | E5: =IF(Musique!B11<>"",Musique!C11,"") -> 2875 | F5: =IF(Musique!B11<>"",Synthèse!AC11,"") -> ODE_3 | G5: =IF(Musique!B11<>"",Synthèse!AD11,"") -> 3 | H5: =IF(Musique!B11<>"",Synthèse!AA11,"") -> 32 | I5: =IF(Musique!B11<>"",Synthèse!AS11,"") -> 2 | J5: =IF(Musique!B11<>"",VALUE(Synthèse!$AJ11),"") -> 36 | K5: =IF(Musique!B11<>"",Synthèse!V11,"") -> 8 | L5: =Synthèse!AM11 -> 112 | M5: =IF(Musique!B11<>"",Synthèse!$T11,"") -> 111 | N5: =Synthèse!$K11 -> 10 | O5: =IF(Musique!B11<>"",Musique!B11,"") -> LE VALENTIN | R5: 6*1 | S5: 52 + 51 | T5: FBB-FAV | U5: 103 | V5: 5*11 | W5: 51 + 30 | X5: FBB-OGO_2 | Y5: 81
B6: 6 | C6: =IF(Musique!B7<>"",Synthèse!$R7,"") -> 6 | D6: =IF(Musique!B7<>"",Synthèse!AV7,"") -> 0 | E6: =IF(Musique!B7<>"",Musique!C7,"") -> 2875 | F6: =IF(Musique!B7<>"",Synthèse!AC7,"") -> ODE_1 | G6: =IF(Musique!B7<>"",Synthèse!AD7,"") -> 1 | H6: =IF(Musique!B7<>"",Synthèse!AA7,"") -> 16 | I6: =IF(Musique!B7<>"",Synthèse!AS7,"") -> 6 | J6: =IF(Musique!B7<>"",VALUE(Synthèse!$AJ7),"") -> 56 | K6: =IF(Musique!B7<>"",Synthèse!V7,"") -> 13 | L6: =Synthèse!AM7 -> 151 | M6: =IF(Musique!B7<>"",Synthèse!$T7,"") -> 106 | N6: =Synthèse!$K7 -> 6 | O6: =IF(Musique!B7<>"",Musique!B7,"") -> ORANGEFIELD | R6: 8*5 | S6: 51 + 51 | T6: FBB-FBB | U6: 102 | V6: 1*11 | W6: 51 + 30 | X6: FAV-OGO_2 | Y6: 81
B7: 4 | C7: =IF(Musique!B5<>"",Synthèse!$R5,"") -> 6 | D7: =IF(Musique!B5<>"",Synthèse!AV5,"") -> 0 | E7: =IF(Musique!B5<>"",Musique!C5,"") -> 2875 | F7: =IF(Musique!B5<>"",Synthèse!AC5,"") -> ODE_3 | G7: =IF(Musique!B5<>"",Synthèse!AD5,"") -> 3 | H7: =IF(Musique!B5<>"",Synthèse!AA5,"") -> 37 | I7: =IF(Musique!B5<>"",Synthèse!AS5,"") -> 7 | J7: =IF(Musique!B5<>"",VALUE(Synthèse!$AJ5),"") -> 36 | K7: =IF(Musique!B5<>"",Synthèse!V5,"") -> 10 | L7: =Synthèse!AM5 -> 143 | M7: =IF(Musique!B5<>"",Synthèse!$T5,"") -> 115 | N7: =Synthèse!$K5 -> 4 | O7: =IF(Musique!B5<>"",Musique!B5,"") -> LAIA CHOPE | R7: 8*1 | S7: 51 + 51 | T7: FBB-FAV | U7: 102 | V7: 4*11 | W7: 41 + 30 | X7: FAV-OGO_2 | Y7: 71
B8: 8 | C8: =IF(Musique!B9<>"",Synthèse!$R9,"") -> 2 | D8: =IF(Musique!B9<>"",Synthèse!AV9,"") -> 0 | E8: =IF(Musique!B9<>"",Musique!C9,"") -> 2875 | F8: =IF(Musique!B9<>"",Synthèse!AC9,"") -> FAV | G8: =IF(Musique!B9<>"",Synthèse!AD9,"") -> 2 | H8: =IF(Musique!B9<>"",Synthèse!AA9,"") -> 31 | I8: =IF(Musique!B9<>"",Synthèse!AS9,"") -> 3 | J8: =IF(Musique!B9<>"",VALUE(Synthèse!$AJ9),"") -> 36 | K8: =IF(Musique!B9<>"",Synthèse!V9,"") -> 8 | L8: =Synthèse!AM9 -> 135 | M8: =IF(Musique!B9<>"",Synthèse!$T9,"") -> 114 | N8: =Synthèse!$K9 -> 8 | O8: =IF(Musique!B9<>"",Musique!B9,"") -> FRED LALLOUPET | R8: 5*1 | S8: 51 + 51 | T8: FBB-FAV | U8: 102 | V8: 10*11 | W8: 41 + 30 | X8: FAV-OGO_2 | Y8: 71
B9: 7 | C9: =IF(Musique!B8<>"",Synthèse!$R8,"") -> 1 | D9: =IF(Musique!B8<>"",Synthèse!AV8,"") -> 0 | E9: =IF(Musique!B8<>"",Musique!C8,"") -> 2875 | F9: =IF(Musique!B8<>"",Synthèse!AC8,"") -> FOF_2 | G9: =IF(Musique!B8<>"",Synthèse!AD8,"") -> 2 | H9: =IF(Musique!B8<>"",Synthèse!AA8,"") -> 21 | I9: =IF(Musique!B8<>"",Synthèse!AS8,"") -> 6 | J9: =IF(Musique!B8<>"",VALUE(Synthèse!$AJ8),"") -> 46 | K9: =IF(Musique!B8<>"",Synthèse!V8,"") -> 11 | L9: =Synthèse!AM8 -> 153 | M9: =IF(Musique!B8<>"",Synthèse!$T8,"") -> 111 | N9: =Synthèse!$K8 -> 7 | O9: =IF(Musique!B8<>"",Musique!B8,"") -> PUPA DI SARONNO | R9: 4*6 | S9: 41 + 52 | T9: FAV-FBB | U9: 93 | V9: 9*11 | W9: 33 + 30 | X9: FGO_2-OGO_2 | Y9: 63
B10: 2 | C10: =IF(Musique!B3<>"",Synthèse!$R3,"") -> 1 | D10: =IF(Musique!B3<>"",Synthèse!AV3,"") -> 0 | E10: =IF(Musique!B3<>"",Musique!C3,"") -> 2875 | F10: =IF(Musique!B3<>"",Synthèse!AC3,"") -> FOF_2 | G10: =IF(Musique!B3<>"",Synthèse!AD3,"") -> 2 | H10: =IF(Musique!B3<>"",Synthèse!AA3,"") -> 31 | I10: =IF(Musique!B3<>"",Synthèse!AS3,"") -> 6 | J10: =IF(Musique!B3<>"",VALUE(Synthèse!$AJ3),"") -> 36 | K10: =IF(Musique!B3<>"",Synthèse!V3,"") -> 11 | L10: =Synthèse!AM3 -> 153 | M10: =IF(Musique!B3<>"",Synthèse!$T3,"") -> 114 | N10: =Synthèse!$K3 -> 2 | O10: =IF(Musique!B3<>"",Musique!B3,"") -> SEA TRIAL | R10: 10*6 | S10: 41 + 52 | T10: FAV-FBB | U10: 93 | V10: 6*3 | W10: 52 + 10 | X10: FBB-ODE_1 | Y10: 62
B11: 9 | C11: =IF(Musique!B10<>"",Synthèse!$R10,"") -> 1 | D11: =IF(Musique!B10<>"",Synthèse!AV10,"") -> 0 | E11: =IF(Musique!B10<>"",Musique!C10,"") -> 2875 | F11: =IF(Musique!B10<>"",Synthèse!AC10,"") -> FAV | G11: =IF(Musique!B10<>"",Synthèse!AD10,"") -> 2 | H11: =IF(Musique!B10<>"",Synthèse!AA10,"") -> 42 | I11: =IF(Musique!B10<>"",Synthèse!AS10,"") -> 12 | J11: =IF(Musique!B10<>"",VALUE(Synthèse!$AJ10),"") -> 26 | K11: =IF(Musique!B10<>"",Synthèse!V10,"") -> 9 | L11: =Synthèse!AM10 -> 122 | M11: =IF(Musique!B10<>"",Synthèse!$T10,"") -> 121 | N11: =Synthèse!$K10 -> 9 | O11: =IF(Musique!B10<>"",Musique!B10,"") -> PROPOSAL | R11: 4*8 | S11: 41 + 51 | T11: FAV-FBB | U11: 92 | V11: 8*3 | W11: 51 + 10 | X11: FBB-ODE_1 | Y11: 61
B12: 5 | C12: =IF(Musique!B6<>"",Synthèse!$R6,"") -> 0 | D12: =IF(Musique!B6<>"",Synthèse!AV6,"") -> 0 | E12: =IF(Musique!B6<>"",Musique!C6,"") -> 2875 | F12: =IF(Musique!B6<>"",Synthèse!AC6,"") -> FGO_2 | G12: =IF(Musique!B6<>"",Synthèse!AD6,"") -> 1 | H12: =IF(Musique!B6<>"",Synthèse!AA6,"") -> 22 | I12: =IF(Musique!B6<>"",Synthèse!AS6,"") -> 9 | J12: =IF(Musique!B6<>"",VALUE(Synthèse!$AJ6),"") -> 46 | K12: =IF(Musique!B6<>"",Synthèse!V6,"") -> 14 | L12: =Synthèse!AM6 -> 224 | M12: =IF(Musique!B6<>"",Synthèse!$T6,"") -> 112 | N12: =Synthèse!$K6 -> 5 | O12: =IF(Musique!B6<>"",Musique!B6,"") -> RUBY WEDDING | R12: 4*5 | S12: 41 + 51 | T12: FAV-FBB | U12: 92 | V12: 2*11 | W12: 31 + 30 | X12: FOF_2-OGO_2 | Y12: 61
C13: =IF(Musique!B12<>"",Synthèse!$R12,"") ->  | D13: =IF(Musique!B12<>"",Synthèse!AV12,"") ->  | E13: =IF(Musique!B12<>"",Musique!C12,"") ->  | F13: =IF(Musique!B12<>"",Synthèse!AC12,"") ->  | G13: =IF(Musique!B12<>"",Synthèse!AD12,"") ->  | H13: =IF(Musique!B12<>"",Synthèse!AA12,"") ->  | I13: =IF(Musique!B12<>"",Synthèse!AS12,"") ->  | J13: =IF(Musique!B12<>"",VALUE(Synthèse!$AJ12),"") ->  | K13: =IF(Musique!B12<>"",Synthèse!V12,"") ->  | L13: =Synthèse!AM12 ->  | M13: =IF(Musique!B12<>"",Synthèse!$T12,"") ->  | N13: =Synthèse!$K12 ->  | O13: =IF(Musique!B12<>"",Musique!B12,"") ->  | R13: 4*1 | S13: 41 + 51 | T13: FAV-FAV | U13: 92 | V13: 5*3 | W13: 51 + 10 | X13: FBB-ODE_1 | Y13: 61
C14: =IF(Musique!B20<>"",Synthèse!$R20,"") ->  | D14: =IF(Musique!B20<>"",Synthèse!AV20,"") ->  | E14: =IF(Musique!B20<>"",Musique!C20,"") ->  | F14: =IF(Musique!B20<>"",Synthèse!AC20,"") ->  | G14: =IF(Musique!B20<>"",Synthèse!AD20,"") ->  | H14: =IF(Musique!B20<>"",Synthèse!AA20,"") ->  | I14: =IF(Musique!B20<>"",Synthèse!AS20,"") ->  | J14: =IF(Musique!B20<>"",VALUE(Synthèse!$AJ20),"") ->  | K14: =IF(Musique!B20<>"",Synthèse!V20,"") ->  | L14: =Synthèse!AM20 ->  | M14: =IF(Musique!B20<>"",Synthèse!$T20,"") ->  | N14: =Synthèse!$K20 ->  | O14: =IF(Musique!B20<>"",Musique!B20,"") ->  | R14: 10*8 | S14: 41 + 51 | T14: FAV-FBB | U14: 92 | V14: 1*3 | W14: 51 + 10 | X14: FAV-ODE_1 | Y14: 61
C15: =IF(Musique!B21<>"",Synthèse!$R21,"") ->  | D15: =IF(Musique!B21<>"",Synthèse!AV21,"") ->  | E15: =IF(Musique!B21<>"",Musique!C21,"") ->  | F15: =IF(Musique!B21<>"",Synthèse!AC21,"") ->  | G15: =IF(Musique!B21<>"",Synthèse!AD21,"") ->  | H15: =IF(Musique!B21<>"",Synthèse!AA21,"") ->  | I15: =IF(Musique!B21<>"",Synthèse!AS21,"") ->  | J15: =IF(Musique!B21<>"",VALUE(Synthèse!$AJ21),"") ->  | K15: =IF(Musique!B21<>"",Synthèse!V21,"") ->  | L15: =Synthèse!AM21 ->  | M15: =IF(Musique!B21<>"",Synthèse!$T21,"") ->  | N15: =Synthèse!$K21 ->  | O15: =IF(Musique!B21<>"",Musique!B21,"") ->  | R15: 10*5 | S15: 41 + 51 | T15: FAV-FBB | U15: 92 | V15: 7*11 | W15: 31 + 30 | X15: FAV-OGO_2 | Y15: 61
C16: =IF(Musique!B19<>"",Synthèse!$R19,"") ->  | D16: =IF(Musique!B19<>"",Synthèse!AV19,"") ->  | E16: =IF(Musique!B19<>"",Musique!C19,"") ->  | F16: =IF(Musique!B19<>"",Synthèse!AC19,"") ->  | G16: =IF(Musique!B19<>"",Synthèse!AD19,"") ->  | H16: =IF(Musique!B19<>"",Synthèse!AA19,"") ->  | I16: =IF(Musique!B19<>"",Synthèse!AS19,"") ->  | J16: =IF(Musique!B19<>"",VALUE(Synthèse!$AJ19),"") ->  | K16: =IF(Musique!B19<>"",Synthèse!V19,"") ->  | L16: =Synthèse!AM19 ->  | M16: =IF(Musique!B19<>"",Synthèse!$T19,"") ->  | N16: =Synthèse!$K19 ->  | O16: =IF(Musique!B19<>"",Musique!B19,"") ->  | R16: 10*1 | S16: 41 + 51 | T16: FAV-FAV | U16: 92 | V16: 4*3 | W16: 41 + 10 | X16: FAV-ODE_1 | Y16: 51
C17: =IF(Musique!B18<>"",Synthèse!$R18,"") ->  | D17: =IF(Musique!B18<>"",Synthèse!AV18,"") ->  | E17: =IF(Musique!B18<>"",Musique!C18,"") ->  | F17: =IF(Musique!B18<>"",Synthèse!AC18,"") ->  | G17: =IF(Musique!B18<>"",Synthèse!AD18,"") ->  | H17: =IF(Musique!B18<>"",Synthèse!AA18,"") ->  | I17: =IF(Musique!B18<>"",Synthèse!AS18,"") ->  | J17: =IF(Musique!B18<>"",VALUE(Synthèse!$AJ18),"") ->  | K17: =IF(Musique!B18<>"",Synthèse!V18,"") ->  | L17: =Synthèse!AM18 ->  | M17: =IF(Musique!B18<>"",Synthèse!$T18,"") ->  | N17: =Synthèse!$K18 ->  | O17: =IF(Musique!B18<>"",Musique!B18,"") ->  | R17: 6*9 | S17: 52 + 33 | T17: FBB-FGO_2 | U17: 85 | V17: 10*3 | W17: 41 + 10 | X17: FAV-ODE_1 | Y17: 51
C18: =IF(Musique!B17<>"",Synthèse!$R17,"") ->  | D18: =IF(Musique!B17<>"",Synthèse!AV17,"") ->  | E18: =IF(Musique!B17<>"",Musique!C17,"") ->  | F18: =IF(Musique!B17<>"",Synthèse!AC17,"") ->  | G18: =IF(Musique!B17<>"",Synthèse!AD17,"") ->  | H18: =IF(Musique!B17<>"",Synthèse!AA17,"") ->  | I18: =IF(Musique!B17<>"",Synthèse!AS17,"") ->  | J18: =IF(Musique!B17<>"",VALUE(Synthèse!$AJ17),"") ->  | K18: =IF(Musique!B17<>"",Synthèse!V17,"") ->  | L18: =Synthèse!AM17 ->  | M18: =IF(Musique!B17<>"",Synthèse!$T17,"") ->  | N18: =Synthèse!$K17 ->  | O18: =IF(Musique!B17<>"",Musique!B17,"") ->  | R18: 8*9 | S18: 51 + 33 | T18: FBB-FGO_2 | U18: 84 | V18: 9*3 | W18: 33 + 10 | X18: FGO_2-ODE_1 | Y18: 43
C19: =IF(Musique!B16<>"",Synthèse!$R16,"") ->  | D19: =IF(Musique!B16<>"",Synthèse!AV16,"") ->  | E19: =IF(Musique!B16<>"",Musique!C16,"") ->  | F19: =IF(Musique!B16<>"",Synthèse!AC16,"") ->  | G19: =IF(Musique!B16<>"",Synthèse!AD16,"") ->  | H19: =IF(Musique!B16<>"",Synthèse!AA16,"") ->  | I19: =IF(Musique!B16<>"",Synthèse!AS16,"") ->  | J19: =IF(Musique!B16<>"",VALUE(Synthèse!$AJ16),"") ->  | K19: =IF(Musique!B16<>"",Synthèse!V16,"") ->  | L19: =Synthèse!AM16 ->  | M19: =IF(Musique!B16<>"",Synthèse!$T16,"") ->  | N19: =Synthèse!$K16 ->  | O19: =IF(Musique!B16<>"",Musique!B16,"") ->  | R19: 5*9 | S19: 51 + 33 | T19: FBB-FGO_2 | U19: 84 | V19: 2*3 | W19: 31 + 10 | X19: FOF_2-ODE_1 | Y19: 41
C20: =IF(Musique!B15<>"",Synthèse!$R15,"") ->  | D20: =IF(Musique!B15<>"",Synthèse!AV15,"") ->  | E20: =IF(Musique!B15<>"",Musique!C15,"") ->  | F20: =IF(Musique!B15<>"",Synthèse!AC15,"") ->  | G20: =IF(Musique!B15<>"",Synthèse!AD15,"") ->  | H20: =IF(Musique!B15<>"",Synthèse!AA15,"") ->  | I20: =IF(Musique!B15<>"",Synthèse!AS15,"") ->  | J20: =IF(Musique!B15<>"",VALUE(Synthèse!$AJ15),"") ->  | K20: =IF(Musique!B15<>"",Synthèse!V15,"") ->  | L20: =Synthèse!AM15 ->  | M20: =IF(Musique!B15<>"",Synthèse!$T15,"") ->  | N20: =Synthèse!$K15 ->  | O20: =IF(Musique!B15<>"",Musique!B15,"") ->  | R20: 9*1 | S20: 33 + 51 | T20: FGO_2-FAV | U20: 84 | V20: 7*3 | W20: 31 + 10 | X20: FAV-ODE_1 | Y20: 41
C21: =IF(Musique!B14<>"",Synthèse!$R14,"") ->  | D21: =IF(Musique!B14<>"",Synthèse!AV14,"") ->  | E21: =IF(Musique!B14<>"",Musique!C14,"") ->  | F21: =IF(Musique!B14<>"",Synthèse!AC14,"") ->  | G21: =IF(Musique!B14<>"",Synthèse!AD14,"") ->  | H21: =IF(Musique!B14<>"",Synthèse!AA14,"") ->  | I21: =IF(Musique!B14<>"",Synthèse!AS14,"") ->  | J21: =IF(Musique!B14<>"",VALUE(Synthèse!$AJ14),"") ->  | K21: =IF(Musique!B14<>"",Synthèse!V14,"") ->  | L21: =Synthèse!AM14 ->  | M21: =IF(Musique!B14<>"",Synthèse!$T14,"") ->  | N21: =Synthèse!$K14 ->  | O21: =IF(Musique!B14<>"",Musique!B14,"") ->  | R21: 2*6 | S21: 31 + 52 | T21: FOF_2-FBB | U21: 83
C22: =IF(Musique!B13<>"",Synthèse!$R13,"") ->  | D22: =IF(Musique!B13<>"",Synthèse!AV13,"") ->  | E22: =IF(Musique!B13<>"",Musique!C13,"") ->  | F22: =IF(Musique!B13<>"",Synthèse!AC13,"") ->  | G22: =IF(Musique!B13<>"",Synthèse!AD13,"") ->  | H22: =IF(Musique!B13<>"",Synthèse!AA13,"") ->  | I22: =IF(Musique!B13<>"",Synthèse!AS13,"") ->  | J22: =IF(Musique!B13<>"",VALUE(Synthèse!$AJ13),"") ->  | K22: =IF(Musique!B13<>"",Synthèse!V13,"") ->  | L22: =Synthèse!AM13 ->  | M22: =IF(Musique!B13<>"",Synthèse!$T13,"") ->  | N22: =Synthèse!$K13 ->  | O22: =IF(Musique!B13<>"",Musique!B13,"") ->  | R22: 6*7 | S22: 52 + 31 | T22: FBB-FAV | U22: 83
R23: 4*10 | S23: 41 + 41 | T23: FAV-FAV | U23: 82
R24: 8*2 | S24: 51 + 31 | T24: FBB-FOF_2 | U24: 82
F25: Arrivée : | G25: =IF(Synthèse!S23<>"",Synthèse!S23,"") ->  | H25: =IF(Synthèse!T23<>"",Synthèse!T23,"") ->  | I25: =IF(Synthèse!U23<>"",Synthèse!U23,"") ->  | J25: =IF(Synthèse!V23<>"",Synthèse!V23,"") ->  | K25: =IF(Synthèse!W23<>"",Synthèse!W23,"") ->  | R25: 8*7 | S25: 51 + 31 | T25: FBB-FAV | U25: 82
R26: 2*5 | S26: 31 + 51 | T26: FOF_2-FBB | U26: 82
R27: 2*1 | S27: 31 + 51 | T27: FOF_2-FAV | U27: 82
R28: 5*7 | S28: 51 + 31 | T28: FBB-FAV | U28: 82
R29: 1*7 | S29: 51 + 31 | T29: FAV-FAV | U29: 82
R30: 4*9 | S30: 41 + 33 | T30: FAV-FGO_2 | U30: 74
R31: 10*9 | S31: 41 + 33 | T31: FAV-FGO_2 | U31: 74
R32: 4*2 | S32: 41 + 31 | T32: FAV-FOF_2 | U32: 72
R33: 4*7 | S33: 41 + 31 | T33: FAV-FAV | U33: 72
R34: 10*2 | S34: 41 + 31 | T34: FAV-FOF_2 | U34: 72
R35: 10*7 | S35: 41 + 31 | T35: FAV-FAV | U35: 72
R36: 2*9 | S36: 31 + 33 | T36: FOF_2-FGO_2 | U36: 64
R37: 9*7 | S37: 33 + 31 | T37: FGO_2-FAV | U37: 64
R38: 2*7 | S38: 31 + 31 | T38: FOF_2-FAV | U38: 62
C152: Px | K152: Px
C153: 6 | K153: <6
B155: N° | C155: Px | D155: Cote | E155: Sag | F155: FHC | G155: IdBF | H155: RH | J155: N° | K155: Px | L155: Cote | M155: Sag | N155: FHC | O155: IdBF | P155: RH
B156: 11 | C156: 6 | D156: 0 | E156: F6 | F156: OGO_2 | G156: 1 | H156: 30 | J156: 4 | K156: 5 | L156: 0 | M156: F5 | N156: FAV | O156: 4 | P156: 41
B157: 3 | C157: 6 | D157: 0 | E157: H4 | F157: ODE_1 | G157: 1 | H157: 10 | J157: 10 | K157: 5 | L157: 0 | M157: H6 | N157: FAV | O157: 4 | P157: 41
J158: 8 | K158: 2 | L158: 0 | M158: H7 | N158: FBB | O158: 3 | P158: 51
J159: 2 | K159: 2 | L159: 0 | M159: F4 | N159: FOF_2 | O159: 1 | P159: 31
J160: 6 | K160: 1 | L160: 0 | M160: H8 | N160: FBB | O160: 3 | P160: 52
J161: 5 | K161: 1 | L161: 0 | M161: H7 | N161: FBB | O161: 3 | P161: 51
J162: 9 | K162: 0 | L162: 0 | M162: H4 | N162: FGO_2 | O162: 1 | P162: 33
J163: 1 | K163: 0 | L163: 0 | M163: H8 | N163: FAV | O163: 4 | P163: 51
J164: 7 | K164: 0 | L164: 0 | M164: H7 | N164: FAV | O164: 4 | P164: 31

Sheet Ps-Pi
Z1: 1
B2: Px | C2: PK | D2: N° | E2: RH | F2: Rg RH | G2: FHC | H2: ID | I2: PW | J2: vB% | K2: S | L2: Pour une utilisation optimale de ce classeur,
B3: =IF(C3="","",IF(C3=6,"Ps","Pi")) -> Ps | C3: =Résumé!C3 -> 6 | D3: =Résumé!B3 -> 3 | E3: =Résumé!H3 -> 30 | F3: =IF(D3<>"",VLOOKUP(D3,Synthèse!$Z$2:$AB$21,3,0),"") -> 4 | G3: =Résumé!F3 -> OFV | H3: =Résumé!G3 -> 1 | I3: =Résumé!I3 -> 0 | J3: =IF(Résumé!K3<>"",1-(Résumé!K3/25),"") -> 0.88 | K3: =LEFT(Résumé!E3,1) -> 2 | L3: veuillez cliquer sur le bouton « Nouvelle course »,
B4: =IF(C4="","",IF(C4=6,"Ps","Pi")) -> Ps | C4: =Résumé!C4 -> 6 | D4: =Résumé!B4 -> 1 | E4: =Résumé!H4 -> 40 | F4: =IF(D4<>"",VLOOKUP(D4,Synthèse!$Z$2:$AB$21,3,0),"") -> 1 | G4: =Résumé!F4 -> ODE_3 | H4: =Résumé!G4 -> 3 | I4: =Résumé!I4 -> 0 | J4: =IF(Résumé!K4<>"",1-(Résumé!K4/25),"") -> 0.64 | K4: =LEFT(Résumé!E4,1) -> 2 | L4: dans la feuille « Synthèse » ou dans la feuille « Musique »,
B6: Ps | C6: =Résumé!C5 -> 6 | D6: =Résumé!B5 -> 10 | E6: =Résumé!H5 -> 32 | F6: =IF(D6<>"",VLOOKUP(D6,Synthèse!$Z$2:$AB$21,3,0),"") -> 3 | G6: =Résumé!F5 -> ODE_3 | H6: =Résumé!G5 -> 3 | I6: =Résumé!I5 -> 2 | J6: =IF(Résumé!K5<>"",1-(Résumé!K5/25),"") -> 0.68 | K6: =LEFT(Résumé!E5,1) -> 2 | L6: avant toute nouvelle étude.
B7: Ps | C7: =Résumé!C6 -> 6 | D7: =Résumé!B6 -> 6 | E7: =Résumé!H6 -> 16 | F7: =IF(D7<>"",VLOOKUP(D7,Synthèse!$Z$2:$AB$21,3,0),"") -> 5 | G7: =Résumé!F6 -> ODE_1 | H7: =Résumé!G6 -> 1 | I7: =Résumé!I6 -> 6 | J7: =IF(Résumé!K6<>"",1-(Résumé!K6/25),"") -> 0.48 | K7: =LEFT(Résumé!E6,1) -> 2
B9: Ps | C9: =Résumé!C7 -> 6 | D9: =Résumé!B7 -> 4 | E9: =Résumé!H7 -> 37 | F9: =IF(D9<>"",VLOOKUP(D9,Synthèse!$Z$2:$AB$21,3,0),"") -> 2 | G9: =Résumé!F7 -> ODE_3 | H9: =Résumé!G7 -> 3 | I9: =Résumé!I7 -> 7 | J9: =IF(Résumé!K7<>"",1-(Résumé!K7/25),"") -> 0.6 | K9: =LEFT(Résumé!E7,1) -> 2
B10: Pi | C10: =Résumé!C8 -> 2 | D10: =Résumé!B8 -> 8 | E10: =Résumé!H8 -> 31 | F10: =IF(D10<>"",VLOOKUP(D10,Synthèse!$Z$2:$AB$21,3,0),"") -> 3 | G10: =Résumé!F8 -> FAV | H10: =Résumé!G8 -> 2 | I10: =Résumé!I8 -> 3 | J10: =IF(Résumé!K8<>"",1-(Résumé!K8/25),"") -> 0.68 | K10: =LEFT(Résumé!E8,1) -> 2
B12: Pi | C12: =Résumé!C9 -> 1 | D12: =Résumé!B9 -> 7 | E12: =Résumé!H9 -> 21 | F12: =IF(D12<>"",VLOOKUP(D12,Synthèse!$Z$2:$AB$21,3,0),"") -> 5 | G12: =Résumé!F9 -> FOF_2 | H12: =Résumé!G9 -> 2 | I12: =Résumé!I9 -> 6 | J12: =IF(Résumé!K9<>"",1-(Résumé!K9/25),"") -> 0.56 | K12: =LEFT(Résumé!E9,1) -> 2
B13: Pi | C13: =Résumé!C10 -> 1 | D13: =Résumé!B10 -> 2 | E13: =Résumé!H10 -> 31 | F13: =IF(D13<>"",VLOOKUP(D13,Synthèse!$Z$2:$AB$21,3,0),"") -> 2 | G13: =Résumé!F10 -> FOF_2 | H13: =Résumé!G10 -> 2 | I13: =Résumé!I10 -> 6 | J13: =IF(Résumé!K10<>"",1-(Résumé!K10/25),"") -> 0.56 | K13: =LEFT(Résumé!E10,1) -> 2
B15: Pi | C15: =Résumé!C11 -> 1 | D15: =Résumé!B11 -> 9 | E15: =Résumé!H11 -> 42 | F15: =IF(D15<>"",VLOOKUP(D15,Synthèse!$Z$2:$AB$21,3,0),"") -> 1 | G15: =Résumé!F11 -> FAV | H15: =Résumé!G11 -> 2 | I15: =Résumé!I11 -> 12 | J15: =IF(Résumé!K11<>"",1-(Résumé!K11/25),"") -> 0.64 | K15: =LEFT(Résumé!E11,1) -> 2
B16: Pi | C16: =Résumé!C12 -> 0 | D16: =Résumé!B12 -> 5 | E16: =Résumé!H12 -> 22 | F16: =IF(D16<>"",VLOOKUP(D16,Synthèse!$Z$2:$AB$21,3,0),"") -> 4 | G16: =Résumé!F12 -> FGO_2 | H16: =Résumé!G12 -> 1 | I16: =Résumé!I12 -> 9 | J16: =IF(Résumé!K12<>"",1-(Résumé!K12/25),"") -> 0.44 | K16: =LEFT(Résumé!E12,1) -> 2
C17: =Résumé!C13 ->  | D17: =Résumé!B13 ->  | E17: =Résumé!H13 ->  | F17: =IF(D17<>"",VLOOKUP(D17,Synthèse!$Z$2:$AB$21,3,0),"") ->  | G17: =Résumé!F13 ->  | H17: =Résumé!G13 ->  | I17: =Résumé!I13 ->  | J17: =IF(Résumé!K13<>"",1-(Résumé!K13/25),"") ->  | K17: =LEFT(Résumé!E13,1) -> 
C19: =Résumé!C14 ->  | D19: =Résumé!B14 ->  | E19: =Résumé!H14 ->  | F19: =IF(D19<>"",VLOOKUP(D19,Synthèse!$Z$2:$AB$21,3,0),"") ->  | G19: =Résumé!F14 ->  | H19: =Résumé!G14 ->  | I19: =Résumé!I14 ->  | J19: =IF(Résumé!K14<>"",1-(Résumé!K14/25),"") ->  | K19: =LEFT(Résumé!E14,1) -> 
C20: =Résumé!C15 ->  | D20: =Résumé!B15 ->  | E20: =Résumé!H15 ->  | F20: =IF(D20<>"",VLOOKUP(D20,Synthèse!$Z$2:$AB$21,3,0),"") ->  | G20: =Résumé!F15 ->  | H20: =Résumé!G15 ->  | I20: =Résumé!I15 ->  | J20: =IF(Résumé!K15<>"",1-(Résumé!K15/25),"") ->  | K20: =LEFT(Résumé!E15,1) -> 
C21: =Résumé!C16 ->  | D21: =Résumé!B16 ->  | E21: =Résumé!H16 ->  | F21: =IF(D21<>"",VLOOKUP(D21,Synthèse!$Z$2:$AB$21,3,0),"") ->  | G21: =Résumé!F16 ->  | H21: =Résumé!G16 ->  | I21: =Résumé!I16 ->  | J21: =IF(Résumé!K16<>"",1-(Résumé!K16/25),"") ->  | K21: =LEFT(Résumé!E16,1) -> 
C22: =Résumé!C17 ->  | D22: =Résumé!B17 ->  | E22: =Résumé!H17 ->  | F22: =IF(D22<>"",VLOOKUP(D22,Synthèse!$Z$2:$AB$21,3,0),"") ->  | G22: =Résumé!F17 ->  | H22: =Résumé!G17 ->  | I22: =Résumé!I17 ->  | J22: =IF(Résumé!K17<>"",1-(Résumé!K17/25),"") ->  | K22: =LEFT(Résumé!E17,1) -> 
C23: =Résumé!C18 ->  | D23: =Résumé!B18 ->  | E23: =Résumé!H18 ->  | F23: =IF(D23<>"",VLOOKUP(D23,Synthèse!$Z$2:$AB$21,3,0),"") ->  | G23: =Résumé!F18 ->  | H23: =Résumé!G18 ->  | I23: =Résumé!I18 ->  | J23: =IF(Résumé!K18<>"",1-(Résumé!K18/25),"") ->  | K23: =LEFT(Résumé!E18,1) -> 
C24: =Résumé!C19 ->  | D24: =Résumé!B19 ->  | E24: =Résumé!H19 ->  | F24: =IF(D24<>"",VLOOKUP(D24,Synthèse!$Z$2:$AB$21,3,0),"") ->  | G24: =Résumé!F19 ->  | H24: =Résumé!G19 ->  | I24: =Résumé!I19 ->  | J24: =IF(Résumé!K19<>"",1-(Résumé!K19/25),"") ->  | K24: =LEFT(Résumé!E19,1) -> 
C25: =Résumé!C20 ->  | D25: =Résumé!B20 ->  | E25: =Résumé!H20 ->  | F25: =IF(D25<>"",VLOOKUP(D25,Synthèse!$Z$2:$AB$21,3,0),"") ->  | G25: =Résumé!F20 ->  | H25: =Résumé!G20 ->  | I25: =Résumé!I20 ->  | J25: =IF(Résumé!K20<>"",1-(Résumé!K20/25),"") ->  | K25: =LEFT(Résumé!E20,1) -> 
C26: =Résumé!C21 ->  | D26: =Résumé!B21 ->  | E26: =Résumé!H21 ->  | F26: =IF(D26<>"",VLOOKUP(D26,Synthèse!$Z$2:$AB$21,3,0),"") ->  | G26: =Résumé!F21 ->  | H26: =Résumé!G21 ->  | I26: =Résumé!I21 ->  | J26: =IF(Résumé!K21<>"",1-(Résumé!K21/25),"") ->  | K26: =LEFT(Résumé!E21,1) -> 
C27: =Résumé!C22 ->  | D27: =Résumé!B22 ->  | E27: =Résumé!H22 ->  | F27: =IF(D27<>"",VLOOKUP(D27,Synthèse!$Z$2:$AB$21,3,0),"") ->  | G27: =Résumé!F22 ->  | H27: =Résumé!G22 ->  | I27: =Résumé!I22 ->  | J27: =IF(Résumé!K22<>"",1-(Résumé!K22/25),"") ->  | K27: =LEFT(Résumé!E22,1) -> 

Sheet Rodney simple
A1: Numéro du cheval | B1: Musique – Course 1 | C1: Musique – Course 2 | D1: Musique – Course 3 | E1: Musique – Course 4 | F1: Musique – Course 5 | G1: Musique – Course 6 | I1: Écart type | J1: PI | K1: PI mank | L1: %R PI | M1: %R PI Mank | N1: R+2
A2: 1 | B2: =IF(Musique!F2=0,10,Musique!F2) -> 4 | C2: =IF(Musique!G2=0,10,Musique!G2) -> 10 | D2: =IF(Musique!H2=0,10,Musique!H2) -> 4 | E2: =IF(Musique!I2=0,10,Musique!I2) -> 10 | F2: =IF(Musique!J2=0,10,Musique!J2) -> 4 | G2: =IF(Musique!K2=0,10,Musique!K2) -> 2 | I2: =IF(B2="","",ROUND(STDEVP(B2:G2),2)) -> 3.14 | J2: =IF(B2="","",COUNTIF(B2:G2,"<10")) -> 4 | K2: =IF(B2="","",9-((IF((COUNTIF(B2:G2,"1"))>=1,1,0))+(IF((COUNTIF(B2:G2,"2"))>=1,1,0))+(IF((COUNTIF(B2:G2,"3"))>=1,1,0))+(IF((COUNTIF(B2:G2,"4"))>=1,1,0))+(IF((COUNTIF(B2:G2,"5"))>=1,1,0))+(IF((COUNTIF(B2:G2,"6"))>=1,1,0))+(IF((COUNTIF(B2:G2,"7"))>=1,1,0))+(IF((COUNTIF(B2:G2,"8"))>=1,1,0))+(IF((COUNTIF(B2:G2,"9"))>=1,1,0)))) -> 7 | L2: =IF(B2="","",I2*(J2/J22)*100) -> 30.63414634 | M2: =IF(B2="","",I2*(K2/K22)*100) -> 38.56140351 | N2: =IF(B2="","",(L2/M2)*100) -> 79.44250871
A3: 2 | B3: =IF(Musique!F3=0,10,Musique!F3) -> 10 | C3: =IF(Musique!G3=0,10,Musique!G3) -> 1 | D3: =IF(Musique!H3=0,10,Musique!H3) -> 9 | E3: =IF(Musique!I3=0,10,Musique!I3) -> 7 | F3: =IF(Musique!J3=0,10,Musique!J3) -> 3 | G3: =IF(Musique!K3=0,10,Musique!K3) -> 3 | I3: 3.35 | J3: =IF(B3="","",COUNTIF(B3:G3,"<10")) -> 5 | K3: 5 | L3: =IF(B3="","",I3*(J3/J22)*100) -> 40.85365854 | M3: =IF(B3="","",I3*(K3/K22)*100) -> 29.38596491 | N3: 139.0243902
A4: 3 | B4: =IF(Musique!F4=0,10,Musique!F4) -> 7 | C4: =IF(Musique!G4=0,10,Musique!G4) -> 5 | D4: =IF(Musique!H4=0,10,Musique!H4) -> 10 | E4: =IF(Musique!I4=0,10,Musique!I4) -> 3 | F4: =IF(Musique!J4=0,10,Musique!J4) -> 6 | G4: =IF(Musique!K4=0,10,Musique!K4) -> 4 | I4: 2.27 | J4: 5 | K4: 4 | L4: =IF(B4="","",I4*(J4/J22)*100) -> 27.68292683 | M4: =IF(B4="","",I4*(K4/K22)*100) -> 15.92982456 | N4: 173.7804878
A5: 4 | B5: =IF(Musique!F5=0,10,Musique!F5) -> 3 | C5: =IF(Musique!G5=0,10,Musique!G5) -> 2 | D5: =IF(Musique!H5=0,10,Musique!H5) -> 10 | E5: =IF(Musique!I5=0,10,Musique!I5) -> 2 | F5: =IF(Musique!J5=0,10,Musique!J5) -> 10 | G5: =IF(Musique!K5=0,10,Musique!K5) -> 6 | I5: 3.45 | J5: 4 | K5: 6 | L5: =IF(B5="","",I5*(J5/J22)*100) -> 33.65853659 | M5: =IF(B5="","",I5*(K5/K22)*100) -> 36.31578947 | N5: 92.68292683
A6: 5 | B6: =IF(Musique!F6=0,10,Musique!F6) -> 1 | C6: =IF(Musique!G6=0,10,Musique!G6) -> 10 | D6: =IF(Musique!H6=0,10,Musique!H6) -> 7 | E6: =IF(Musique!I6=0,10,Musique!I6) -> 10 | F6: =IF(Musique!J6=0,10,Musique!J6) -> 7 | G6: =IF(Musique!K6=0,10,Musique!K6) -> 1 | I6: 3.74 | J6: 4 | K6: 7 | L6: =IF(B6="","",I6*(J6/J22)*100) -> 36.48780488 | M6: =IF(B6="","",I6*(K6/K22)*100) -> 45.92982456 | N6: 79.44250871
A7: 6 | B7: =IF(Musique!F7=0,10,Musique!F7) -> 2 | C7: =IF(Musique!G7=0,10,Musique!G7) -> 10 | D7: =IF(Musique!H7=0,10,Musique!H7) -> 6 | E7: =IF(Musique!I7=0,10,Musique!I7) -> 10 | F7: =IF(Musique!J7=0,10,Musique!J7) -> 7 | G7: =IF(Musique!K7=0,10,Musique!K7) -> 9 | I7: 2.81 | J7: 4 | K7: 5 | L7: =IF(B7="","",I7*(J7/J22)*100) -> 27.41463415 | M7: =IF(B7="","",I7*(K7/K22)*100) -> 24.64912281 | N7: 111.2195122
A8: 7 | B8: =IF(Musique!F8=0,10,Musique!F8) -> 10 | C8: =IF(Musique!G8=0,10,Musique!G8) -> 1 | D8: =IF(Musique!H8=0,10,Musique!H8) -> 10 | E8: =IF(Musique!I8=0,10,Musique!I8) -> 3 | F8: =IF(Musique!J8=0,10,Musique!J8) -> 10 | G8: =IF(Musique!K8=0,10,Musique!K8) -> 6 | I8: 3.64 | J8: 3 | K8: 6 | L8: =IF(B8="","",I8*(J8/J22)*100) -> 26.63414634 | M8: =IF(B8="","",I8*(K8/K22)*100) -> 38.31578947 | N8: 69.51219512
A9: 8 | B9: =IF(Musique!F9=0,10,Musique!F9) -> 10 | C9: =IF(Musique!G9=0,10,Musique!G9) -> 10 | D9: =IF(Musique!H9=0,10,Musique!H9) -> 1 | E9: =IF(Musique!I9=0,10,Musique!I9) -> 2 | F9: =IF(Musique!J9=0,10,Musique!J9) -> 10 | G9: =IF(Musique!K9=0,10,Musique!K9) -> 4 | I9: 3.93 | J9: 3 | K9: 6 | L9: =IF(B9="","",I9*(J9/J22)*100) -> 28.75609756 | M9: =IF(B9="","",I9*(K9/K22)*100) -> 41.36842105 | N9: 69.51219512
A10: 9 | B10: =IF(Musique!F10=0,10,Musique!F10) -> 2 | C10: =IF(Musique!G10=0,10,Musique!G10) -> 1 | D10: =IF(Musique!H10=0,10,Musique!H10) -> 10 | E10: =IF(Musique!I10=0,10,Musique!I10) -> 10 | F10: =IF(Musique!J10=0,10,Musique!J10) -> 3 | G10: =IF(Musique!K10=0,10,Musique!K10) -> 1 | I10: 3.95 | J10: 4 | K10: 6 | L10: =IF(B10="","",I10*(J10/J22)*100) -> 38.53658537 | M10: =IF(B10="","",I10*(K10/K22)*100) -> 41.57894737 | N10: 92.68292683
A11: 10 | B11: =IF(Musique!F11=0,10,Musique!F11) -> 4 | C11: =IF(Musique!G11=0,10,Musique!G11) -> 3 | D11: =IF(Musique!H11=0,10,Musique!H11) -> 6 | E11: =IF(Musique!I11=0,10,Musique!I11) -> 10 | F11: =IF(Musique!J11=0,10,Musique!J11) -> 4 | G11: =IF(Musique!K11=0,10,Musique!K11) -> 8 | I11: 2.48 | J11: 5 | K11: 5 | L11: =IF(B11="","",I11*(J11/J22)*100) -> 30.24390244 | M11: =IF(B11="","",I11*(K11/K22)*100) -> 21.75438596 | N11: 139.0243902
A12: 11 | B12: =IF(Musique!F12=0,10,Musique!F12) ->  | C12: =IF(Musique!G12=0,10,Musique!G12) ->  | D12: =IF(Musique!H12=0,10,Musique!H12) ->  | E12: =IF(Musique!I12=0,10,Musique!I12) ->  | F12: =IF(Musique!J12=0,10,Musique!J12) ->  | G12: =IF(Musique!K12=0,10,Musique!K12) ->  | L12: =IF(B12="","",I12*(J12/J22)*100) ->  | M12: =IF(B12="","",I12*(K12/K22)*100) -> 
A13: 12 | B13: =IF(Musique!F13=0,10,Musique!F13) ->  | C13: =IF(Musique!G13=0,10,Musique!G13) ->  | D13: =IF(Musique!H13=0,10,Musique!H13) ->  | E13: =IF(Musique!I13=0,10,Musique!I13) ->  | F13: =IF(Musique!J13=0,10,Musique!J13) ->  | G13: =IF(Musique!K13=0,10,Musique!K13) ->  | L13: =IF(B13="","",I13*(J13/J22)*100) ->  | M13: =IF(B13="","",I13*(K13/K22)*100) -> 
A14: 13 | B14: =IF(Musique!F14=0,10,Musique!F14) ->  | C14: =IF(Musique!G14=0,10,Musique!G14) ->  | D14: =IF(Musique!H14=0,10,Musique!H14) ->  | E14: =IF(Musique!I14=0,10,Musique!I14) ->  | F14: =IF(Musique!J14=0,10,Musique!J14) ->  | G14: =IF(Musique!K14=0,10,Musique!K14) ->  | L14: =IF(B14="","",I14*(J14/J22)*100) ->  | M14: =IF(B14="","",I14*(K14/K22)*100) -> 
A15: 14 | B15: =IF(Musique!F15=0,10,Musique!F15) ->  | C15: =IF(Musique!G15=0,10,Musique!G15) ->  | D15: =IF(Musique!H15=0,10,Musique!H15) ->  | E15: =IF(Musique!I15=0,10,Musique!I15) ->  | F15: =IF(Musique!J15=0,10,Musique!J15) ->  | G15: =IF(Musique!K15=0,10,Musique!K15) ->  | L15: =IF(B15="","",I15*(J15/J22)*100) ->  | M15: =IF(B15="","",I15*(K15/K22)*100) -> 
A16: 15 | B16: =IF(Musique!F16=0,10,Musique!F16) ->  | C16: =IF(Musique!G16=0,10,Musique!G16) ->  | D16: =IF(Musique!H16=0,10,Musique!H16) ->  | E16: =IF(Musique!I16=0,10,Musique!I16) ->  | F16: =IF(Musique!J16=0,10,Musique!J16) ->  | G16: =IF(Musique!K16=0,10,Musique!K16) ->  | L16: =IF(B16="","",I16*(J16/J22)*100) ->  | M16: =IF(B16="","",I16*(K16/K22)*100) -> 
A17: 16 | B17: =IF(Musique!F17=0,10,Musique!F17) ->  | C17: =IF(Musique!G17=0,10,Musique!G17) ->  | D17: =IF(Musique!H17=0,10,Musique!H17) ->  | E17: =IF(Musique!I17=0,10,Musique!I17) ->  | F17: =IF(Musique!J17=0,10,Musique!J17) ->  | G17: =IF(Musique!K17=0,10,Musique!K17) ->  | L17: =IF(B17="","",I17*(J17/J22)*100) ->  | M17: =IF(B17="","",I17*(K17/K22)*100) -> 
A18: 17 | B18: =IF(Musique!F18=0,10,Musique!F18) ->  | C18: =IF(Musique!G18=0,10,Musique!G18) ->  | D18: =IF(Musique!H18=0,10,Musique!H18) ->  | E18: =IF(Musique!I18=0,10,Musique!I18) ->  | F18: =IF(Musique!J18=0,10,Musique!J18) ->  | G18: =IF(Musique!K18=0,10,Musique!K18) ->  | L18: =IF(B18="","",I18*(J18/J22)*100) ->  | M18: =IF(B18="","",I18*(K18/K22)*100) -> 
A19: 18 | B19: =IF(Musique!F19=0,10,Musique!F19) ->  | C19: =IF(Musique!G19=0,10,Musique!G19) ->  | D19: =IF(Musique!H19=0,10,Musique!H19) ->  | E19: =IF(Musique!I19=0,10,Musique!I19) ->  | F19: =IF(Musique!J19=0,10,Musique!J19) ->  | G19: =IF(Musique!K19=0,10,Musique!K19) ->  | L19: =IF(B19="","",I19*(J19/J22)*100) ->  | M19: =IF(B19="","",I19*(K19/K22)*100) -> 
A20: 19 | B20: =IF(Musique!F20=0,10,Musique!F20) ->  | C20: =IF(Musique!G20=0,10,Musique!G20) ->  | D20: =IF(Musique!H20=0,10,Musique!H20) ->  | E20: =IF(Musique!I20=0,10,Musique!I20) ->  | F20: =IF(Musique!J20=0,10,Musique!J20) ->  | G20: =IF(Musique!K20=0,10,Musique!K20) ->  | L20: =IF(B20="","",I20*(J20/J22)*100) ->  | M20: =IF(B20="","",I20*(K20/K22)*100) -> 
A21: 20 | B21: =IF(Musique!F21=0,10,Musique!F21) ->  | C21: =IF(Musique!G21=0,10,Musique!G21) ->  | D21: =IF(Musique!H21=0,10,Musique!H21) ->  | E21: =IF(Musique!I21=0,10,Musique!I21) ->  | F21: =IF(Musique!J21=0,10,Musique!J21) ->  | G21: =IF(Musique!K21=0,10,Musique!K21) ->  | L21: =IF(B21="","",I21*(J21/J22)*100) ->  | M21: =IF(B21="","",I21*(K21/K22)*100) -> 
J22: =SUM(J2:J21) -> 41 | K22: =SUM(K2:K21) -> 57

Sheet Musique
A1: N° | B1: Cheval | C1: Sag | D1: Musique | E1: Musique épurée | F1: P1 | G1: P2 | H1: P3 | I1: P4 | J1: P5 | K1: P6 | L1: P7 | M1: P8 | N1: P9 | O1: P10 | P1: P11 | Q1: P12 | R1: Nbre de courses
A2: 1 | B2: SAON SECRET | C2: 2875 | D2: 4m Da 4m 0a 4m 2m 3m 1m 3m Dm Da (14) 5m | E2: =MusiqueEpuree(D2) -> 404042313005 | F2: =IF($D2="","",ABS(LEFT($E2,1))) -> 4 | G2: =IF($D2="","",IF(LEN($E2)<2,"",ABS(RIGHT((LEFT($E2,2)),1)))) -> 0 | H2: =IF($D2="","",IF(LEN($E2)<3,"",ABS(RIGHT((LEFT($E2,3)),1)))) -> 4 | I2: =IF($D2="","",IF(LEN($E2)<4,"",ABS(RIGHT((LEFT($E2,4)),1)))) -> 0 | J2: =IF($D2="","",IF(LEN($E2)<5,"",ABS(RIGHT((LEFT($E2,5)),1)))) -> 4 | K2: =IF($D2="","",IF(LEN($E2)<6,"",ABS(RIGHT((LEFT($E2,6)),1)))) -> 2 | L2: =IF($D2="","",IF(LEN($E2)<6,"",ABS(RIGHT((LEFT($E2,7)),1)))) -> 3 | M2: =IF($D2="","",IF(LEN($E2)<6,"",ABS(RIGHT((LEFT($E2,8)),1)))) -> 1 | N2: =IF($D2="","",IF(LEN($E2)<6,"",ABS(RIGHT((LEFT($E2,9)),1)))) -> 3 | O2: =IF($D2="","",IF(LEN($E2)<6,"",ABS(RIGHT((LEFT($E2,10)),1)))) -> 0 | P2: =IF($D2="","",IF(LEN($E2)<6,"",ABS(RIGHT((LEFT($E2,11)),1)))) -> 0 | Q2: =IF($D2="","",IF(LEN($E2)<6,"",ABS(RIGHT((LEFT($E2,12)),1)))) -> 5 | R2: =IF($D2="","",IF(LEN($E2)<6,LEN($E2),6)) -> 6
A3: 2 | B3: SEA TRIAL | C3: 2875 | D3: 0a 1m 9a (14) 7m 3m 3m 3m 8a 3m 3m 1m 2m | E3: =MusiqueEpuree(D3) -> 019733383312 | F3: 0 | G3: 1 | H3: 9 | I3: 7 | J3: 3 | K3: 3 | L3: =IF($D3="","",IF(LEN($E3)<6,"",ABS(RIGHT((LEFT($E3,7)),1)))) -> 3 | M3: =IF($D3="","",IF(LEN($E3)<6,"",ABS(RIGHT((LEFT($E3,8)),1)))) -> 8 | N3: =IF($D3="","",IF(LEN($E3)<6,"",ABS(RIGHT((LEFT($E3,9)),1)))) -> 3 | O3: =IF($D3="","",IF(LEN($E3)<6,"",ABS(RIGHT((LEFT($E3,10)),1)))) -> 3 | P3: =IF($D3="","",IF(LEN($E3)<6,"",ABS(RIGHT((LEFT($E3,11)),1)))) -> 1 | Q3: =IF($D3="","",IF(LEN($E3)<6,"",ABS(RIGHT((LEFT($E3,12)),1)))) -> 2 | R3: 6
A4: 3 | B4: ALTARE SI | C4: 2875 | D4: 7a 5a Da 3a 6a 4a Da 6a 7a 4a 6a 4a | E4: 750364067464 | F4: 7 | G4: 5 | H4: 0 | I4: 3 | J4: 6 | K4: 4 | L4: 0 | M4: 6 | N4: 7 | O4: 4 | P4: 6 | Q4: 4 | R4: 6
A5: 4 | B5: LAIA CHOPE | C5: 2875 | D5: 3a 2a Da 2a 0a 6a Dm 2a Dm 7a 3a Dm | E5: 320206020730 | F5: 3 | G5: 2 | H5: 0 | I5: 2 | J5: 0 | K5: 6 | L5: 0 | M5: 2 | N5: 0 | O5: 7 | P5: 3 | Q5: 0 | R5: 6
A6: 5 | B6: RUBY WEDDING | C6: 2875 | D6: 1a Dm 7a Dm 7m 1m 7a 4a Da (14) 1a Da 2a | E6: =MusiqueEpuree(D6) -> 107071740102 | F6: 1 | G6: 0 | H6: 7 | I6: 0 | J6: 7 | K6: 1 | L6: 7 | M6: 4 | N6: 0 | O6: 1 | P6: 0 | Q6: 2 | R6: 6
A7: 6 | B7: ORANGEFIELD | C7: 2875 | D7: 2m Da 6m 0a 7a 9a 6m 3m 3m 3m Dm 0a | E7: 206079633300 | F7: 2 | G7: 0 | H7: 6 | I7: 0 | J7: 7 | K7: 9 | L7: 6 | M7: 3 | N7: 3 | O7: 3 | P7: 0 | Q7: 0 | R7: 6
A8: 7 | B8: PUPA DI SARONNO | C8: 2875 | D8: Da 1m 0a 3m 0a 6m 4m 7m 1m Dm 4m Dm | E8: 010306471040 | F8: 0 | G8: 1 | H8: 0 | I8: 3 | J8: 0 | K8: 6 | L8: 4 | M8: 7 | N8: 1 | O8: 0 | P8: 4 | Q8: 0 | R8: 6
A9: 8 | B9: FRED LALLOUPET | C9: 2875 | D9: Dm Da 1m 2m Da (14) 4m 3m 1m 2m 1m Dm 1m | E9: 001204312101 | F9: 0 | G9: 0 | H9: 1 | I9: 2 | J9: 0 | K9: 4 | L9: 3 | M9: 1 | N9: 2 | O9: 1 | P9: 0 | Q9: 1 | R9: 6
A10: 9 | B10: PROPOSAL | C10: 2875 | D10: 2m 1m 0a 0a 3m 1m 1m 2m Da Da 2m 0a | E10: 210031120020 | F10: 2 | G10: 1 | H10: 0 | I10: 0 | J10: 3 | K10: 1 | L10: 1 | M10: 2 | N10: 0 | O10: 0 | P10: 2 | Q10: 0 | R10: 6
A11: 10 | B11: LE VALENTIN | C11: 2875 | D11: 4m 3m 6a Da 4a 8m 7m 4m 4a 3m 1m 3a | E11: 436048744313 | F11: 4 | G11: 3 | H11: 6 | I11: 0 | J11: 4 | K11: 8 | L11: 7 | M11: 4 | N11: 4 | O11: 3 | P11: 1 | Q11: 3 | R11: 6
A12: 11
A13: 12
A14: 13
A15: 14
A16: 15
A17: 16
A18: 17
A19: 18
A20: 19
A21: 20

Sheet Turfomania.fr
B8: Course n°1 - PRIX LE PACHA
B10: Plat - 3 ans - 1200 mètres, Ligne Droite - départ vers 12h15
B12: COURSE A CONDITIONS , PLAT, 1.200 mètres, Ligne DROITE.- Pour poulains entiers, hongres et pouliches de 3 ans , n'ayant pas, depuis le 15 septembre 2014 inclus, gagné u ne Listed Race ni, depuis le 15 juin 2015 inclus, gagné une course B. P oi ds :57 k. Les chevaux ayant, depuis le 15 mars 2015 inclus, gagné une course B ou, depuis le 15 juin 2015 inc lus, été classés 2ème d'une Listed Ra ce porteront 2 k. Les chevaux n'ayant jamais gagné recevront 1 k.1/2 ceu x n'ayant jamais couru, 3 k.
B14: Allocations : 17000 6800 5100 3400 1700
B16: SimpleCoupléTrio
B18: N° | C18: Cheval | D18: Poids | E18: Corde | F18: S/A | G18: Jockey | H18: Entraîneur | I18: Record | J18: Gain | K18: Oeill. | L18: Dernières performances
B19: 1 | C19: SALLAL | D19: 57 | E19: 4 | F19: M3 | G19: BENOIST G. | H19: FABRE (S) A. (E1) | J19: 49400 | L19: 1p 4p 8p 1p (14) 1p 2p
B20: 2 | C20: CITY MONEY | D20: Non Partant
B21: 3 | C21: JASNIN | D21: 57 | E21: 9 | F21: M3 | G21: THOMAS R. | H21: PHELIPPON JUL. | J21: 85800 | L21: 7p 3p 2p 4p 5p 3p 1p 2p 1p 4p 1p 0p
B22: 4 | C22: DUQUESA PENGUIN | D22: 57 | E22: 3 | F22: H3 | G22: SOUMILLON C. | H22: PROD'HOMME D. | J22: 41300 | L22: 2p 1p 3p 2p (14) 3p 3p 3p 3p 15p
B23: 5 | C23: SHAMAL | D23: 57 | E23: 5 | F23: M3 | G23: CHEMINAUD V. | H23: PORZIER (S) YM. | J23: 47937 | L23: 2p 4p 1p 4p 3p (14) 9p 1p 1p
B24: 6 | C24: FINSBURY SQUARE | D24: 57 | E24: 1 | F24: M3 | G24: DEMURO C. | H24: CHAPPET F. | J24: 111100 | K24: X | L24: 4p 6p 4p 4p 2p 2p 1p 2p (14) 3p 1p 4p 2p
B25: 7 | C25: UM TAGAH | D25: 55.5 | E25: 6 | F25: F3 | G25: RISPOLI U. | H25: DELZANGLES M. (E1) | J25: 13400 | L25: 1p 5p
B26: 8 | C26: PRECIOUSLY | D26: 55.5 | E26: 7 | F26: F3 | G26: PICCONE T. | H26: CHEREL G. | J26: 63400 | L26: 7p 1p 4p 6p 6p 1p (14) 5p 5p 3p 1p 1p
B27: 9 | C27: KENOUSKA | D27: 55.5 | E27: 2 | F27: F3 | G27: PESLIER O. | H27: SOGORB P. | J27: 100800 | L27: 5p 1p 2p 3p 0p 5p 9p (14) 3p 5p 5p 8p 1p
B29: Haut de page Pronostics Arrivées et rapports
B32: Course n°2 - PRIX DE MAISONS SUR SEINE
B34: Plat - femelles - A Réclamer Course F - 2 ans - 1600 mètres, Corde à gauche - départ vers 12h45
B36: A RECLAMER , PLAT, 1.600 mètres, corde à GAUCHE.- Pour pouliches de 2 ans , mises à réc lamer pour 11.000, 14.000 ou 17.000. Poids : 56 k . Les pouliches mises à réclamer pour 14.000 porteront 1 k.1/ 2 pour 17.000, 3 k. En outre , les pouliches ayant, depuis le 1er avril 2015 inclus, reçu une allocation de 8 .500 ou gagné un e course F porteront 2 k. plusieurs allocations de 8.500 ou gagné plusieurs courses F, 4 k.
B38: Allocations : 9500 3800 2850 1900 950
B40: SimpleCoupléTrio2 sur 4Multi
B42: N° | C42: Cheval | D42: Poids | E42: Corde | F42: S/A | G42: Jockey | H42: Entraîneur | I42: Record | J42: Gain | K42: Oeill. | L42: Dernières performances
B43: 1 | C43: SIRTEMA | D43: 59 | E43: 5 | F43: F2 | G43: GAMBART V. | H43: BOUTIN (S) M. | J43: 7100 | L43: 5p 3p 3p 5p
B44: 2 | C44: NEVER SAY NEVER | D44: 59 | E44: 4 | F44: F2 | G44: PASQUIER S. | H44: GOURRAUD (S) Y. | K44: X | L44: 8p 0p 8p
B45: 3 | C45: DES ANNEES FOLLES | D45: 59 | E45: 6 | F45: F2 | G45: MOREAU A. | H45: BARBEROT (S) Y. | J45: 3900 | L45: 4p 6p 6p 5p 4p 7p
B46: 4 | C46: LA FIESTA | D46: 59 | E46: 9 | F46: F2 | G46: LERNER M. | H46: GREWE H. | J46: 6000 | L46: 7p 1p
B47: 5 | C47: CONSTANTINA | D47: 59 | E47: 1 | F47: F2 | G47: SOUMILLON C. | H47: ROSSI CH. | J47: 9100 | L47: 5p 2p 2p 0p
B48: 6 | C48: ZIRIATT | D48: 59 | E48: 7 | F48: F2 | G48: RISPOLI U. | H48: BIETOLINI G.
B49: 7 | C49: LIPSIE | D49: 59 | E49: 2 | F49: F2 | G49: PELLETAN M. | H49: BIETOLINI G. | J49: 16750 | K49: A | L49: 2p 2p 6p 5p 2p 0p 7p 2p
B50: 8 | C50: YUBRIS | D50: 59 | E50: 3 | F50: F2 | G50: DEMURO C. | H50: ZARROLI D.
B51: 9 | C51: NAOUSA | D51: 57.5 | E51: 12 | F51: F2 | G51: GUYON M. | H51: BERTRAN DE BALANDA (S) J. | J51: 8900 | L51: 4p 2p 4p
B52: 10 | C52: SNAPPY DOO | D52: 57.5 | E52: 11 | F52: F2 | G52: BREUX D. | H52: BOTTI (S) A&G.
B53: 11 | C53: GAEA | D53: 56 | E53: 10 | F53: F2 | G53: HARDOUIN E. | H53: JESUS S. | L53: 6p 0p 8p 0p
B54: 12 | C54: WHYPPEE | D54: 56 | E54: 8 | F54: F2 | G54: BOISSEAU L. | H54: COLLET (S) ROB. | J54: 8800 | K54: A | L54: 6p 2p 7p 0p 8p 7p 4p 4p 9p 9p
B56: Haut de page Pronostics Arrivées et rapports
B59: Course n°3 - PRIX SARACA
B61: Plat - Listed - 2 ans - 1300 mètres, Ligne Droite - départ vers 13h15
B63: COURSE A CONDITIONS , PLAT, 1.300 mètres, Ligne DROITE.- Pour poulains entiers, hongres et pouliches de 2 ans , n'ayant pas gagné u ne Listed Race, n i été classés 2ème d'une course de Groupe. Poids : 58 k . Versement à la poule des propriétai res :210 à l'engagement ou 1.980 à l 'engagement supplémentaire.
B65: Allocations : 27500 11000 8250 5500 2750
B67: Simple
B69: N° | C69: Cheval | D69: Poids | E69: Corde | F69: S/A | G69: Jockey | H69: Entraîneur | I69: Record | J69: Gain | K69: Oeill. | L69: Dernières performances
B70: 1 | C70: INSOLITO | D70: 58 | E70: 7 | F70: M2 | G70: RISPOLI U. | H70: BONIN (S) A. | J70: 46200 | L70: 3p 3p 1p 3p 4p 1p 5p
B71: 2 | C71: KIDMENEVER | D71: 58 | E71: 1 | F71: M2 | G71: JARNET T. | H71: NAKKACHDJI X. | J71: 18012 | K71: A | L71: 1p 4p 6p 2p 5p
B72: 3 | C72: MAXIMUM AURELIUS | D72: 58 | E72: 2 | F72: M2 | G72: BOUDOT PC. | H72: GRAFFARD (S) FH. | J72: 13000 | L72: 1p 2p 6p
B73: 4 | C73: NADINO | D73: 58 | E73: 4 | F73: M2 | G73: PESLIER O. | H73: NIGGE (S) M&S. | J73: 19000 | L73: 1p 3p 2p 3p
B74: 5 | C74: ABOULIE | D74: 56.5 | E74: 3 | F74: F2 | G74: SOUMILLON C. | H74: ROUGET (S) JC. | J74: 12500 | L74: 1p 4p
B75: 6 | C75: DRESSED IN FUR | D75: 56.5 | E75: 6 | F75: F2 | G75: GUYON M. | H75: BRANDT MME P. | J75: 18416 | L75: 4p 1p 4p 1p 5p Tp
B76: 7 | C76: DAMILA | D76: 56.5 | E76: 5 | F76: F2 | G76: VERON F. | H76: PANTALL HA. | J76: 26250 | L76: 1p 3p 2p 2p 2p
B78: Haut de page Pronostics Arrivées et rapports
B81: Course n°4 - PRIX DE L'HIPPODROME DE MAISONS-LAFFITTE
B83: Plat - Handicap Course D - 4 ans et Plus - 1200 mètres, Ligne Droite - Ref: +18,5 - départ vers 13h50
B85: HANDICAP DIVISE, Réf. +185 , PLAT, 1.200 mètres, Ligne DROITE.- Pour chevaux entiers, hongres et jume nts de 4 ans et au-dessus, ayant cour u depuis le 1er mars 2015 inclus. Un souvenir sera offert au propriétaire du cheval gagnant par FRANCE GALOP.
B87: Allocations : 24440 9880 7280 4680 2860 1820 1040
B89: SimpleCoupléTrioTiercéQuartéQuinté2 sur 4Multi
B91: N° | C91: Cheval | D91: Poids | E91: Corde | F91: S/A | G91: Jockey | H91: Entraîneur | I91: Record | J91: Gain | K91: Oeill. | L91: Dernières performances
B92: 1 | C92: MINISTRE D'ETAT | D92: 60 | E92: 4 | F92: H8 | G92: GUYON M. | H92: CARDENNE MLLE C. | J92: 196325 | L92: 4p 1p 1p 7p 2p 4p 7p 3p (14) 3p 0p 6p 2p
B93: 2 | C93: WINSHINE | D93: 60 | E93: 7 | F93: F4 | G93: SANTIAGO MLLE D. | H93: SMRCZEK S. | J93: 143810 | L93: 0p 6p 7p 2p 3p 6p 5p 7p 8p (14) 0p 3p 1p
B94: 3 | C94: QUIRINUS | D94: 60 | E94: 9 | F94: H8 | G94: BACHELOT T. | H94: SMRCZEK S. | J94: 266680 | K94: X | L94: 7p 0p 5p 3p 8p 3p 6p 2p 3p 2p 7p (14) 0p
B96: SimpleCoupléTrio
B98: N° | C98: Cheval | D98: Poids | E98: Corde | F98: S/A | G98: Jockey | H98: Entraîneur | I98: Record | J98: Gain | K98: Oeill. | L98: Dernières performances
B99: 1 | C99: TITUS MILLS | D99: 63 | E99: 6 | F99: H7 | G99: BERNADET MLLE MA. | H99: BRAEM L. | J99: 123693 | L99: 1p 3p 4p 9p 1p 3p 4p 8p 0p 9p (14) 0p 1p
B100: 2 | C100: MENEAS | D100: 59.5 | E100: 7 | F100: H5 | G100: DOMINOIS MLLE P. | H100: SMAGA D. | J100: 115350 | L100: 4p 1p 3p 4p 3p (13) 4p 7p (12) 1p 1p 1p
B101: 3 | C101: VALIDOR | D101: 59 | E101: 9 | F101: H9 | G101: SANTIAGO MLLE D. | H101: NICOT G. | J101: 281390 | L101: 7p 0p 5p 7p 1p 1p 6p (14) 1p 1p 0p 6p 0p
B102: 4 | C102: STORM MAN | D102: Non Partant
B103: 5 | C103: AGAMON LAKE | D103: 57.5 | E103: 3 | F103: H4 | G103: EON MLLE M. | H103: SEPULCHRE (S) D. | J103: 2700 | K103: X | L103: 0p 3p 7p 6p 4p (14) 0p
B104: 6 | C104: COOL STAR | D104: 56 | E104: 4 | F104: H10 | G104: BOUVIER MLLE A. | H104: BONIN (S) A. | J104: 252280 | L104: 0p 3p 9p 4p 3p 0p 3p 8p 0p 0p (14) 0p 0p
B105: 7 | C105: ZIMRI | D105: 56 | E105: 5 | F105: H11 | G105: MARCIALIS MLLE J. | H105: BOLLACK-BADEL M. | J105: 333100 | L105: 0p 5p 3p 2p 5p 2p 5p (14) 2p 4p 7p 5p 0p
B106: 8 | C106: SOULSIDE | D106: 56 | E106: 1 | F106: H6 | G106: GROSSO MLLE L. | H106: CAULLERY N. | J106: 97550 | K106: X | L106: 3p 3p 0p 4p 5p 8p 5p 4p 7p 2p 2p 1p
B107: 9 | C107: TRES CONFIDENTIEL | D107: 54.5 | E107: 2 | F107: F5 | G107: PIETRASIEWICZ MLLE J. | H107: HENDRIKS MME J. | J107: 16450 | L107: 0p 6p 0p 0p (14) 9p 9p 7p 0p 8p 3p (13) 6p 0p
B109: Haut de page Pronostics Arrivées et rapports
B112: Course n°8 - PRIX DE LA PRAIRIE DU PARC
B114: Plat - Handicap Course D - 4 ans et Plus - 1200 mètres, Ligne Droite - Ref: +26 - départ vers 15h55
B116: HANDICAP DIVISE, Réf. +260 , PLAT, 1.200 mètres, Ligne DROITE.- Pour chevaux entiers, hongres et jume nts de 4 ans et au-dessus, ayant cour u depuis le 1er mars 2015 inclus.
B118: Allocations : 13000 5200 3900 2600 1300
B120: SimpleCoupléTrio2 sur 4Multi
B122: N° | C122: Cheval | D122: Poids | E122: Corde | F122: S/A | G122: Jockey | H122: Entraîneur | I122: Record | J122: Gain | K122: Oeill. | L122: Dernières performances
B123: 1 | C123: SAON SECRET | D123: Non Partant
B124: 2 | C124: SEA TRIAL | D124: 59 | E124: 1 | F124: H6 | G124: PESLIER O. | H124: NICOT MLLE C. (E1) | J124: 221660 | L124: 5p 3p 2p 0p 5p 4p 0p 1p 0p 3p 5p (14) 1p
B125: 3 | C125: ALTARE SI | D125: 59 | E125: 6 | F125: H7 | G125: BOUDOT PC. | H125: GOUDOT (S) B. | J125: 163640 | L125: 0p 8p 0p 3p 0p 8p 1p 2p 4p 0p 8p 0p
B126: 4 | C126: LAIA CHOPE | D126: 59 | E126: 12 | F126: F4 | G126: BADEL ALXI. | H126: PROD'HOMME D. | J126: 46300 | L126: 0p 7p 0p 0p 0p (14) 4p 7p (13) 3p 2p 3p 5p 4p
B127: 5 | C127: RUBY WEDDING | D127: 58.5 | E127: 4 | F127: F5 | G127: HARDOUIN E. | H127: NICOT G. | J127: 98050 | L127: 2p 4p 8p 4p 4p 9p 0p 4p 0p 4p 0p (14) 0p
B128: 6 | C128: ORANGEFIELD | D128: 58 | E128: 5 | F128: H4 | G128: BARZALONA M. | H128: MONFORT (S) P&F. | J128: 52300 | L128: 6p 7p 1p 0p 6p 1p 3p 9p 9p (14) 0p 0p 0p
B129: 7 | C129: PUPA DI SARONNO | D129: 58 | E129: 2 | F129: F4 | G129: VERON F. | H129: PANTALL HA. | J129: 22714 | L129: 4p 2p 6p 1p 6p 1p 0p 7p (14) 9p (13) 6p 2p
B130: 8 | C130: FRED LALLOUPET | D130: 57 | E130: 9 | F130: M8 | G130: BENOIST G. | H130: SMAGA D. | J130: 251260 | L130: 0p 6p 0p 0p 6p 0p (14) 6p 7p 7p 5p 0p 9p
B131: 9 | C131: PROPOSAL | D131: 56.5 | E131: 15 | F131: H5 | G131: BEUZELIN LP. | H131: HAMMOND (S) J. | J131: 63350 | L131: 6p 1p 7p (14) 8p 2p 1p 7p 3p 3p 8p 8p 0p
B132: 10 | C132: LE VALENTIN | D132: 56 | E132: 3 | F132: H9 | G132: CHEMINAUD V. | H132: NICOT MLLE C. (E1) | J132: 250930 | L132: 8p 0p 8p 5p 2p 7p 2p (14) 0p 0p 0p 0p 2p
B133: 11 | C133: COLOR CODE | D133: 55 | E133: 17 | F133: H4 | G133: DEMURO C. | H133: BOUTIN (S) M. | J133: 88400 | L133: 3p 0p 1p 9p 2p 0p 4p 6p 3p 6p 4p 8p
B134: 12 | C134: LEODERPROFI | D134: 55 | E134: 13 | F134: H8 | G134: HELLYN S. | H134: GEISLER G. | J134: 81191 | L134: 3p 8p 4p 6p 9p 2p (14) 3p 1p 1p 3p 6p 2p
B135: 13 | C135: VIANELLO | D135: 55 | E135: 14 | F135: H8 | G135: GUYON M. | H135: CAPITTE (S) JM. | J135: 175475 | K135: X | L135: 4p 0p (14) 4p 3p 0p 1p 0p 6p 7p 2p 8p 7p
B136: 14 | C136: DRAGOSLAV | D136: 54.5 | E136: 16 | F136: M7 | G136: HAMELIN A. | H136: SCHUTZ W. | J136: 69450 | L136: 4p 4p 7p 4p 4p 5p 2p 0p 7p 2p 6p 2p
B137: 15 | C137: MAZARIEGOS | D137: 54.5 | E137: 8 | F137: H4 | G137: CRASTUS A. | H137: DELCHER SANCHEZ M. | J137: 25000 | L137: 1p 2p 5p 4p 8p 5p 0p (14) 5p 1p 5p 2p 2p
B138: 16 | C138: AGNES CHAMP | D138: 53.5 | E138: 10 | F138: H9 | G138: LEMAITRE A. | H138: BOUTIN (S) M. | J138: 294350 | K138: X | L138: 5p 1p 3p 6p 3p 0p 9p 0p 6p 3p 9p 2p
B139: 17 | C139: ZEMIRO | D139: 53.5 | E139: 7 | F139: H7 | G139: GAMBART V. | H139: BOUTIN (S) M. | J139: 148150 | K139: A | L139: 6p 8p 9p 7p 9p 5p 0p 4p 1p 8p 0p 3p
B140: 18 | C140: CRUEL SUMMER | D140: 53.5 | E140: 11 | F140: F6 | G140: BERTO M. | H140: HENDRIKS MME J. | J140: 78575 | L140: 1p 6p 1p 3p 5p 2p (14) 7p 2p 3p 3p 3p 9p
B142: Haut de page Pronostics Arrivées et rapports
B145: Course n°9 - PRIX DE LA PORTE DU PARC
B147: Plat - Handicap Course E - 4 ans et Plus - 1200 mètres, Ligne Droite - Ref: +33 - départ vers 16h25
B149: HANDICAP DIVISE, Réf. +330 , PLAT, 1.200 mètres, Ligne DROITE.- Pour chevaux entiers, hongres et jume nts de 4 ans et au-dessus, ayant cour u depuis le 1er mars 2015 inclus.
B151: Allocations : 9000 3600 2700 1800 900
B153: SimpleCoupléTrio2 sur 4Multi
B155: N° | C155: Cheval | D155: Poids | E155: Corde | F155: S/A | G155: Jockey | H155: Entraîneur | I155: Record | J155: Gain | K155: Oeill. | L155: Dernières performances
B156: 1 | C156: UMA MIA | D156: 60 | E156: 16 | F156: F4 | G156: BERTO M. | H156: PALUSSIERE M. | J156: 64650 | K156: X | L156: 2p 5p 0p 1p 5p 7p 5p 9p 5p 0p 9p 4p
B157: 2 | C157: LLOYDMINSTER | D157: 60 | E157: 4 | F157: H5 | G157: BREUX D. | H157: CARDENNE MLLE C. | J157: 18400 | L157: 1p 7p 3p 8p 0p 5p (14) 2p 6p 0p 4p 6p 8p
B158: 3 | C158: MUSICAL VALLEY | D158: 60 | E158: 2 | F158: H6 | G158: SANTIAGO MLLE D. | H158: SCHOOF R. | J158: 55854 | K158: A | L158: 0p 0p (14) 9p 20p 0p (13) 2p 1p 2p 2p 5p 1p 0p
B159: 4 | C159: RHYTHM OF LIFE | D159: 59.5 | E159: 9 | F159: M6 | G159: MARCHELLI R. | H159: ECURIE DES PLAGES (E1) | J159: 114750 | K159: X | L159: 3p 9p 0p 0p 6p 7p 0p 2p 6p 2p 5p 5p
B160: 5 | C160: AS D'ARTOIS | D160: 59.5 | E160: 15 | F160: H5 | G160: HARDOUIN E. | H160: FERRAT MME V. | J160: 54800 | K160: X | L160: 4p 1p 1p 4p 8p 8p 0p (14) 0p 0p 0p 8p 4p
B161: 6 | C161: DONDARGENT | D161: Non Partant
B162: 7 | C162: LADY HARTWOOD | D162: 58 | E162: 5 | F162: F8 | G162: LEFEBVRE F. | H162: DISSAUX MLLE V. | J162: 138600 | K162: X | L162: 0p 0p 6p 2p 0p 6p 6p 1p 6p 1p 7p 0p
B163: 8 | C163: MISS DUNANERIE | D163: 56 | E163: 1 | F163: F8 | G163: HAMELIN A. | H163: FOUIN (S) Y. | J163: 77480 | K163: X | L163: 4p 6p 2p 0p 3p 2p 1p 3p 0p 0p 5p 3p
B164: 9 | C164: BLUSTER | D164: 56 | E164: 6 | F164: H9 | G164: BENOIST G. | H164: COLLET (S) ROB. | J164: 292490 | K164: X | L164: 6p 0p 2p 3p 4p 9p 8p 0p 9p 3p 7p 8p
B165: 10 | C165: AUENDON | D165: 56 | E165: 17 | F165: H8 | G165: SARAIVA W. | H165: FRACAS ALEX. | J165: 77620 | K165: X | L165: 8p 0p 4p (14) 1p 5p 0p 0p 0p 5p 0p (13) 0p 3p
B166: 11 | C166: COLUNGA | D166: 54.5 | E166: 7 | F166: F7 | G166: CONGIU G. | H166: AZZOPARDI P. | J166: 33350 | K166: X | L166: 1p 6p 2p 0p 0p 0p (14) 0p 0p 9p 6p 0p 8p
B167: 12 | C167: MARANGU | D167: 54.5 | E167: 8 | F167: H9 | G167: DELALANDE M. | H167: PEDRONO F. | J167: 90125 | L167: 0p 6p 0p 2p 0p 0p (14) 0p 20p 8p 0p 0p 0p
B168: 13 | C168: FIRST MENANTIE | D168: 54 | E168: 3 | F168: H4 | G168: VERON F. | H168: BAUER C. | J168: 9600 | K168: A | L168: 0p 0p 0p 0p 0p 1p 5p 0p 7p 0p 0p 0p
B169: 14 | C169: HAMARKHIS | D169: 53 | E169: 10 | F169: M4 | G169: BREUX S. | H169: BERNAUD G. | J169: 8150 | K169: A | L169: 6p 0p 7p 3p 9p 0p 6p (14) 8p 2p 1p 9p 0p
B170: 15 | C170: MY DELIGHT | D170: 53 | E170: 14 | F170: H8 | G170: COUTIER A. | H170: SAGOT A. | J170: 43550 | L170: 0p 5p 0p 0p 5p (14) 0p 4p 0p 0p 0p 8p 7p
B171: 16 | C171: SUN SEA BIRD | D171: 53 | E171: 11 | F171: H7 | G171: MAILLOT S. | H171: ECURIE DES PLAGES (E1) | J171: 219860 | K171: X | L171: 0p 0p 0p 0p 4p 9p 0p 7p 7p 4p 8p 0p
B172: 17 | C172: NILSON | D172: 53 | E172: 12 | F172: H6 | G172: KASZTELAN N. | H172: ECURIE DES PLAGES (E1) | J172: 86900 | L172: 0p 8p 3p 8p 8p 0p 0p 0p (14) 0p 8p 0p 7p
B174: Haut de page Pronostics Arrivées et rapports
B176: Site mobile
B177: Application iPhone
B178: Application Androïd
B179: footer-picto1
B180: Courses
B181: Partants PMU
B182: Courses pmu Hippiques
B183: Quinté du jour
B184: Pronostic Quinté +
B185: Résultats PMU
B186: footer-picto2
B187: Actualités des courses
B188: Turf actualités
B189: PMU Résultats
B190: Flux RSS des actualités
B191: footer-picto3
B192: Aides & Guides
B193: Guide du Turfiste
B194: PMU en ligne
B195: Gagner aux courses
B196: Lexique hippique
B197: FAQ
B198: footer-picto4
B199: Les grands Evènements
B200: Grand Prix d'Amérique
B201: Qatar - Prix de l'Arc de Triomphe
B202: Prix de Diane
B203: Prix du Jockey Club
B204: footer-picto5
B205: Jouer en ligne
B206: Tiercé
B207: Quinté
B208: PMU Poker
B209: Opérateurs Hippiques
B210: Jouer la cote
B211: Prix des jeux
B212: Partenariat Cashback
B213: footer-picto6
B214: Fiches Hippodromes
B215: MAISONS LAFFITTE
B216: COMPIEGNE
B217: LAVAL
B218: VICHY
B219: PARIS VINCENNES
B220: LA PLATA (ARG)
B221: footer-picto7
B222: + de sites eliraweb
B223: Banque en ligne
B224: Bourses en ligne
B225: Forfait Mobile
B226: Prime énergie - kelenergie.fr
B227: EliraCash
B228: footer-picto8
B229: Infos légales
B230: Conditions générales de vente
B231: Mentions légales
B232: Données personnelles et cookies
B233: Nous contacter
B234: W3C
B235: TURFOMANIA © Copyright 2003 - 2015 : Turfomania.fr - Tous Droits Réservés. Le Site Turfomania.fr est édité par Eliraweb
B236: Turfomania.fr n'est pas un site de prise de paris hippiques, c'est un site communautaire pour gagner plus souvent aux courses !
B237: « Jouer comporte des risques : dépendance, isolement... Appelez le 09 74 75 13 13 »
B238: Cookies
B239: En poursuivant votre navigation sur ce site, vous acceptez l'utilisation de cookies pour vous proposer des services et offres adaptés.
B241: Pour en savoir plus et paramétrer les cookies.

Sheet Temp (hidden)
B4: Devenir membre
B5: Des pronostics professionnels quotidiens sur toutes les courses pmu
B6: Espace communautaire (fiche membre, participation aux forums, t'chat ...)
B7: Paris virtuels : devenez l'as des courses !
B8: Alertes SMS lorsque le cheval que vous suivez est engagé dans une course
B9: Accès aux pronostics Turf Machine
B10: S'inscrire gratuitement
B11: Gratuit
B12: Club Premium
B13: Les fonctionnalités de l'espace gratuit +
B14: Le journal quotidien de TURFOMANIA
B15: Des bons coups gagnants tous les jours
B16: Un coup sûr à jouer tous les jours
B17: Le Scan premium de Turfomania le nouvel outil des joueurs experts sur toutes les courses pmu
B18: Suppression des publicités sur tout le site et webmobile
B19: Devenir Membre Premium
B20: à partir de 1,80€
B21: Déjà membre ?
B22: Login
B23: Mot de passe
B24: Mot de passe perdu ?
B25: Identifiez-vous
B26: Turfomania
B27: Pour gagner plus
B28: souvent aux courses !
B29: Le journal de Turfomania
B30: Pour + de fonctionnalités sur Turfomania, connectez-vous à votre
B31: Espace membre
B32: Home
B33: S'identifier
B34: Déjà membre ?
B35: Login
B36: Mot de passe
B37: Mot de passe perdu ?
B38: Nouveau membre ?
B39: Devenez Membre Gratuit
B40: Devenez Membre Premium
B41: Parier
B42: Partants
B43: Pronostics
B44: Arrivées & rapports
B45: Actualités
B46: Forums
B47: Betclic
B48: Devenir Premium
B49: 1 Parier avec BetClicParier avec BetClic
B50: 200 € de bonus offerts Parier avec BetClic
B51: 2 Parier avec PMUParier avec PMU
B52: 170 € de bonus offerts Parier avec PMU
B53: 3 Parier avec GenybetParier avec Genybet
B54: 250 € de bonus offerts Parier avec Genybet
B55: Pronostics
B56: Spécial Quinté +
B57: Pronostics courses
B58: Statistiques/bilans
B59: Club Premium
B60: Abonnement
B61: Pronostics premium
B62: Le journal
B63: Fiches
B64: Chevaux
B65: Jockeys
B66: Entraineurs
B67: Propriétaires
B68: Hippodromes
B69: Paris virtuels
B70: Jouer en ligne
B71: Acheter des points
B72: Comment jouer ?
B73: Règles du jeu
B75: Partants & Programmes PMU
B76: Accueil > Partants & Programmes PMU
B78: PMU PMH Toutes les réunions
B80: Spécialité | C80: Jour | D80: Réunion | E80: Heure | F80: Courses | H80: Hippodromme | I80: PMU/PMH
B81: Acourse | C81: Jeudi 17 Septembre 2015 | D81: Réunion 1 | E81: 12h15 | F81: 8 courses | G81: Q+ | H81: PARIS VINCENNES | I81: PMU
B82: coursecourse | C82: Jeudi 17 Septembre 2015 | D82: Réunion 2 | E82: 11h10 | F82: 9 courses | H82: NANCY | I82: PMU
B83: course | C83: Jeudi 17 Septembre 2015 | D83: Réunion 3 | E83: 15h40 | F83: 8 courses | H83: SAINT CLOUD | I83: PMU
B84: coursecourse | C84: Jeudi 17 Septembre 2015 | D84: Réunion 4 | E84: 15h50 | F84: 8 courses | H84: NANTES | I84: PMU
B85: Acourse | C85: Mercredi 16 Septembre 2015 | D85: Réunion 1 | E85: 13h20 | F85: 8 courses | G85: Q+ | H85: AMIENS | I85: PMU
B86: course | C86: Mercredi 16 Septembre 2015 | D86: Réunion 2 | E86: 11h40 | F86: 8 courses | H86: FONTAINEBLEAU | I86: PMU
B87: course | C87: Mercredi 16 Septembre 2015 | D87: Réunion 3 | E87: 15h50 | F87: 8 courses | H87: AUTEUIL | I87: PMU
B88: Acourse | C88: Mercredi 16 Septembre 2015 | D88: Réunion 4 | E88: 17h25 | F88: 8 courses | H88: CABOURG | I88: PMU
B89: A | C89: Mercredi 16 Septembre 2015 | D89: Réunion PMU | E89: 13h30 | F89: 7 courses | H89: MARSEILLE BORELY | I89: PMU/PMH
B90: course | C90: Mardi 15 Septembre 2015 | D90: Réunion 1 | E90: 11h55 | F90: 9 courses | G90: Q+ | H90: MAISONS LAFFITTE | I90: PMU
B91: course | C91: Mardi 15 Septembre 2015 | D91: Réunion 2 | E91: 11h40 | F91: 8 courses | H91: COMPIEGNE | I91: PMU
B92: Acourse | C92: Mardi 15 Septembre 2015 | D92: Réunion 3 | E92: 15h40 | F92: 7 courses | H92: LAVAL | I92: PMU
B93: Acourse | C93: Mardi 15 Septembre 2015 | D93: Réunion 4 | E93: 16h30 | F93: 8 courses | H93: VICHY | I93: PMU
B94: Acourse | C94: Mardi 15 Septembre 2015 | D94: Réunion 5 | E94: 19h25 | F94: 7 courses | H94: PARIS VINCENNES | I94: PMU
B95: course | C95: Mardi 15 Septembre 2015 | D95: Réunion 6 | E95: 20h35 | F95: 5 courses | H95: LA PLATA | I95: PMU
B96: Acourse | C96: Lundi 14 Septembre 2015 | D96: Réunion 1 | E96: 13h20 | F96: 8 courses | G96: Q+ | H96: PARIS VINCENNES | I96: PMU
B97: coursecourse | C97: Lundi 14 Septembre 2015 | D97: Réunion 2 | E97: 11h10 | F97: 9 courses | H97: MOULINS | I97: PMU
B98: course | C98: Lundi 14 Septembre 2015 | D98: Réunion 3 | E98: 15h45 | F98: 8 courses | H98: SAINT CLOUD | I98: PMU
B99: course | C99: Lundi 14 Septembre 2015 | D99: Réunion 4 | E99: 17h20 | F99: 6 courses | H99: CASABLANCA | I99: PMU
B100: Acourse | C100: Lundi 14 Septembre 2015 | D100: Réunion PMU | E100: 18h20 | F100: 7 courses | H100: LE CROISE LAROCHE | I100: PMU/PMH
B102: 1
B103: 2
B104: 3
B105: 4
B106: 5
B107: 6
B108: >>
B109: Site mobile
B110: Application iPhone
B111: Application Androïd
B112: footer-picto1
B113: Courses
B114: Partants PMU
B115: Courses pmu Hippiques
B116: Quinté du jour
B117: Pronostic Quinté +
B118: Résultats PMU
B119: footer-picto2
B120: Actualités des courses
B121: Turf actualités
B122: PMU Résultats
B123: Flux RSS des actualités
B124: footer-picto3
B125: Aides & Guides
B126: Guide du Turfiste
B127: PMU en ligne
B128: Gagner aux courses
B129: Lexique hippique
B130: FAQ
B131: footer-picto4
B132: Les grands Evènements
B133: Grand Prix d'Amérique
B134: Qatar - Prix de l'Arc de Triomphe
B135: Prix de Diane
B136: Prix du Jockey Club
B137: footer-picto5
B138: Jouer en ligne
B139: Tiercé
B140: Quinté
B141: PMU Poker
B142: Opérateurs Hippiques
B143: Jouer la cote
B144: Prix des jeux
B145: Partenariat Cashback
B146: footer-picto6
B147: Fiches Hippodromes
B148: MAISONS LAFFITTE
B149: COMPIEGNE
B150: LAVAL
B151: VICHY
B152: PARIS VINCENNES
B153: LA PLATA (ARG)
B154: footer-picto7
B155: + de sites eliraweb
B156: Banque en ligne
B157: Bourses en ligne
B158: Forfait Mobile
B159: Prime énergie - kelenergie.fr
B160: EliraCash
B161: footer-picto8
B162: Infos légales
B163: Conditions générales de vente
B164: Mentions légales
B165: Données personnelles et cookies
B166: Nous contacter
B167: W3C
B168: TURFOMANIA © Copyright 2003 - 2015 : Turfomania.fr - Tous Droits Réservés. Le Site Turfomania.fr est édité par Eliraweb
B169: Turfomania.fr n'est pas un site de prise de paris hippiques, c'est un site communautaire pour gagner plus souvent aux courses !
B170: « Jouer comporte des risques : dépendance, isolement... Appelez le 09 74 75 13 13 »
B171: Cookies
B172: En poursuivant votre navigation sur ce site, vous acceptez l'utilisation de cookies pour vous proposer des services et offres adaptés.
B174: Pour en savoir plus et paramétrer les cookies.

Sheet Temp2 (hidden)
B4: Devenir membre
B5: Des pronostics professionnels quotidiens sur toutes les courses pmu
B6: Espace communautaire (fiche membre, participation aux forums, t'chat ...)
B7: Paris virtuels : devenez l'as des courses !
B8: Alertes SMS lorsque le cheval que vous suivez est engagé dans une course
B9: Accès aux pronostics Turf Machine
B10: S'inscrire gratuitement
B11: Gratuit
B12: Club Premium
B13: Les fonctionnalités de l'espace gratuit +
B14: Le journal quotidien de TURFOMANIA
B15: Des bons coups gagnants tous les jours
B16: Un coup sûr à jouer tous les jours
B17: Le Scan premium de Turfomania le nouvel outil des joueurs experts sur toutes les courses pmu
B18: Suppression des publicités sur tout le site et webmobile
B19: Devenir Membre Premium
B20: à partir de 1,80€
B21: Déjà membre ?
B22: Login
B23: Mot de passe
B24: Mot de passe perdu ?
B25: Identifiez-vous
B26: Turfomania
B27: Pour gagner plus
B28: souvent aux courses !
B29: Le journal de Turfomania
B30: Pour + de fonctionnalités sur Turfomania, connectez-vous à votre
B31: Espace membre
B32: Home
B33: S'identifier
B34: Déjà membre ?
B35: Login
B36: Mot de passe
B37: Mot de passe perdu ?
B38: Nouveau membre ?
B39: Devenez Membre Gratuit
B40: Devenez Membre Premium
B41: Parier
B42: Partants
B43: Pronostics
B44: Arrivées & rapports
B45: Actualités
B46: Forums
B47: Betclic
B48: Devenir Premium
B49: 1 Parier avec BetClicParier avec BetClic
B50: 200 € de bonus offerts Parier avec BetClic
B51: 2 Parier avec PMUParier avec PMU
B52: 170 € de bonus offerts Parier avec PMU
B53: 3 Parier avec GenybetParier avec Genybet
B54: 250 € de bonus offerts Parier avec Genybet
B55: Pronostics
B56: Spécial Quinté +
B57: Pronostics courses
B58: Statistiques/bilans
B59: Club Premium
B60: Abonnement
B61: Pronostics premium
B62: Le journal
B63: Fiches
B64: Chevaux
B65: Jockeys
B66: Entraineurs
B67: Propriétaires
B68: Hippodromes
B69: Paris virtuels
B70: Jouer en ligne
B71: Acheter des points
B72: Comment jouer ?
B73: Règles du jeu
B75: Partants & Programmes PMU
B76: Accueil > Partants & Programmes PMU
B78: PMU PMH Toutes les réunions
B80: Spécialité | C80: Jour | D80: Réunion | E80: Heure | F80: Courses | H80: Hippodromme | I80: PMU/PMH
B81: Acoursecourse | C81: Lundi 14 Septembre 2015 | D81: Réunion PMU | E81: 14h10 | F81: 6 courses | H81: HYERES | I81: PMU/PMH
B82: course | C82: Dimanche 13 Septembre 2015 | D82: Réunion 1 | E82: 13h40 | F82: 9 courses | G82: Q+ | H82: LONGCHAMP | I82: PMU
B83: course | C83: Dimanche 13 Septembre 2015 | D83: Réunion 2 | E83: 10h55 | F83: 8 courses | H83: MONT DE MARSAN | I83: PMU
B84: Acourse | C84: Dimanche 13 Septembre 2015 | D84: Réunion 3 | E84: 14h55 | F84: 8 courses | H84: MAUQUENCHY | I84: PMU
B85: Acourse | C85: Dimanche 13 Septembre 2015 | D85: Réunion 4 | E85: 12h00 | F85: 7 courses | H85: AUCH | I85: PMU/PMH
B86: A | C86: Dimanche 13 Septembre 2015 | D86: Réunion 5 | E86: 14h00 | F86: 8 courses | H86: MONS | I86: PMU/PMH
B87: A | C87: Dimanche 13 Septembre 2015 | D87: Réunion 6 | E87: 14h00 | F87: 2 courses | H87: BJERKE | I87: PMU
B88: course | C88: Dimanche 13 Septembre 2015 | D88: Réunion 7 | E88: 14h30 | F88: 8 courses | H88: CURRAGH | I88: PMU/PMH
B89: Acoursecourse | C89: Dimanche 13 Septembre 2015 | D89: Réunion PMU | E89: 14h00 | F89: 8 courses | H89: LYON PARILLY | I89: PMU/PMH
B90: Acourse | C90: Dimanche 13 Septembre 2015 | D90: Réunion PMU | E90: 14h10 | F90: 7 courses | H90: CARPENTRAS | I90: PMU/PMH
B91: Acourse | C91: Samedi 12 Septembre 2015 | D91: Réunion 1 | E91: 13h00 | F91: 9 courses | G91: Q+ | H91: PARIS VINCENNES | I91: PMU
B92: coursecourse | C92: Samedi 12 Septembre 2015 | D92: Réunion 2 | E92: 11h55 | F92: 7 courses | H92: CHOLET | I92: PMU
B93: course | C93: Samedi 12 Septembre 2015 | D93: Réunion 3 | E93: 15h35 | F93: 8 courses | H93: FONTAINEBLEAU | I93: PMU
B94: Acourse | C94: Samedi 12 Septembre 2015 | D94: Réunion 4 | E94: 17h40 | F94: 8 courses | H94: VICHY | I94: PMU
B95: A | C95: Samedi 12 Septembre 2015 | D95: Réunion 5 | E95: 11h00 | F95: 8 courses | H95: WOLVEGA | I95: PMU/PMH
B96: course | C96: Samedi 12 Septembre 2015 | D96: Réunion 6 | E96: 14h30 | F96: 7 courses | H96: DONCASTER | I96: PMU/PMH
B97: course | C97: Samedi 12 Septembre 2015 | D97: Réunion 7 | E97: 16h00 | F97: 8 courses | H97: LEOPARDSTOWN | I97: PMU/PMH
B98: Acourse | C98: Samedi 12 Septembre 2015 | D98: Réunion PMU | E98: 13h30 | F98: 9 courses | H98: AVIGNON | I98: PMU/PMH
B99: coursecourse | C99: Vendredi 11 Septembre 2015 | D99: Réunion 1 | E99: 13h30 | F99: 8 courses | H99: LYON PARILLY | I99: PMU
B100: course | C100: Vendredi 11 Septembre 2015 | D100: Réunion 2 | E100: 11h40 | F100: 8 courses | H100: ENGHIEN SOISY | I100: PMU
B102: 1
B103: 2
B104: 3
B105: 4
B106: 5
B107: 6
B108: 7
B109: >>
B110: Site mobile
B111: Application iPhone
B112: Application Androïd
B113: footer-picto1
B114: Courses
B115: Partants PMU
B116: Courses pmu Hippiques
B117: Quinté du jour
B118: Pronostic Quinté +
B119: Résultats PMU
B120: footer-picto2
B121: Actualités des courses
B122: Turf actualités
B123: PMU Résultats
B124: Flux RSS des actualités
B125: footer-picto3
B126: Aides & Guides
B127: Guide du Turfiste
B128: PMU en ligne
B129: Gagner aux courses
B130: Lexique hippique
B131: FAQ
B132: footer-picto4
B133: Les grands Evènements
B134: Grand Prix d'Amérique
B135: Qatar - Prix de l'Arc de Triomphe
B136: Prix de Diane
B137: Prix du Jockey Club
B138: footer-picto5
B139: Jouer en ligne
B140: Tiercé
B141: Quinté
B142: PMU Poker
B143: Opérateurs Hippiques
B144: Jouer la cote
B145: Prix des jeux
B146: Partenariat Cashback
B147: footer-picto6
B148: Fiches Hippodromes
B149: MAISONS LAFFITTE
B150: COMPIEGNE
B151: LAVAL
B152: VICHY
B153: PARIS VINCENNES
B154: LA PLATA (ARG)
B155: footer-picto7
B156: + de sites eliraweb
B157: Banque en ligne
B158: Bourses en ligne
B159: Forfait Mobile
B160: Prime énergie - kelenergie.fr
B161: EliraCash
B162: footer-picto8
B163: Infos légales
B164: Conditions générales de vente
B165: Mentions légales
B166: Données personnelles et cookies
B167: Nous contacter
B168: W3C
B169: TURFOMANIA © Copyright 2003 - 2015 : Turfomania.fr - Tous Droits Réservés. Le Site Turfomania.fr est édité par Eliraweb
B170: Turfomania.fr n'est pas un site de prise de paris hippiques, c'est un site communautaire pour gagner plus souvent aux courses !
B171: « Jouer comporte des risques : dépendance, isolement... Appelez le 09 74 75 13 13 »
B172: Cookies
B173: En poursuivant votre navigation sur ce site, vous acceptez l'utilisation de cookies pour vous proposer des services et offres adaptés.
B175: Pour en savoir plus et paramétrer les cookies.

Sheet Feuil2
